Workbook

Sheet Menu principal

Sheet Volet Financier

Sheet GSF

Sheet PLANING SF
B7: Presentation Vs Planning | D7: Validation Vs Presentation
B8: =IFERROR(HYPERLINK(highlightSeries(B7)),"6") -> 6 | D8: =IFERROR(HYPERLINK(highlightSeries(D7)),"6") -> 6
AS10: =MATCH(valSelOption,$AP$11:$AT$11,0) -> 3
AP11: Presentation Vs Planning | AQ11: PRESENTATION | AR11: Validation Vs Presentation | AS11: Validation Vs Presentation
AO12: =B31 -> Janvier | AP12: =VALUE(TEXT(C31,"jj")) -> 1900-01-10 | AQ12: =VALUE(TEXT(D31,"jj")) -> 1900-01-10 | AR12: =VALUE(TEXT(E31,"jj")) -> 1900-01-11 | AS12: =INDEX($AP$12:$AR$23,,$AS$10) -> 11
AO13: Février | AP13: 1900-01-10 | AQ13: 1900-01-12 | AR13: 1900-01-13 | AS13: =INDEX($AP$12:$AR$23,,$AS$10) -> 13
AO14: Mars | AP14: 1900-01-10 | AQ14: 1900-01-10 | AR14: 1900-01-11 | AS14: 11
AO15: Avril | AP15: 1900-01-10 | AQ15: 1900-01-15 | AR15: 1900-01-16 | AS15: 16
AO16: Mai | AP16: 1900-01-10 | AQ16: 1900-01-18 | AR16: 1900-01-19 | AS16: 19
AO17: Juin | AP17: 1900-01-10 | AQ17: 1900-01-10 | AR17: 1900-01-11 | AS17: 11
AO18: Juillet | AP18: 1900-01-10 | AQ18: 1900-01-10 | AR18: 1900-01-11 | AS18: 11
AO19: Août | AP19: 1900-01-10 | AQ19: 1900-01-13 | AR19: 1900-01-14 | AS19: 14
AO20: Septembre | AP20: 1900-01-10 | AQ20: 1900-01-10 | AR20: 1900-01-11 | AS20: 11
AO21: Octobre | AP21: 1900-01-10 | AQ21: 1900-01-11 | AR21: 1900-01-12 | AS21: 12
AO22: Novembre | AP22: 1900-01-10 | AQ22: 1900-01-15 | AR22: 1900-01-16 | AS22: 16
AO23: Décembre | AP23: 1900-01-10 | AQ23: 1900-01-10 | AR23: 1900-01-11 | AS23: 11
C30: Date Planning | D30: Date de présentation | E30: Date de validation | F30: Presentation VS Planning | G30: Validation VS Presentation
B31: Janvier | C31: 2018-01-10 | D31: 2018-01-10 | E31: =D31+1 -> 2018-01-11 | F31: =DATEDIF(C31,D31,"d") -> 0 | G31: =DATEDIF(D31,E31,"d") -> 1 | H31: =IF($AS$11="Presentation Vs Planning",F31,G31) -> 1
B32: Février | C32: 2018-02-10 | D32: 2018-02-12 | E32: =D32+1 -> 2018-02-13 | F32: =DATEDIF(C32,D32,"d") -> 2 | G32: =DATEDIF(D32,E32,"d") -> 1 | H32: =IF($AS$11="Presentation Vs Planning",F32,G32) -> 1
B33: Mars | C33: 2018-03-10 | D33: 2018-03-10 | E33: 2018-03-11 | F33: 0 | G33: 1 | H33: 1
B34: Avril | C34: 2018-04-10 | D34: 2018-04-15 | E34: 2018-04-16 | F34: 5 | G34: 1 | H34: 1
B35: Mai | C35: 2018-05-10 | D35: 2018-05-18 | E35: 2018-05-19 | F35: 8 | G35: 1 | H35: 1
B36: Juin | C36: 2018-06-10 | D36: 2018-06-10 | E36: 2018-06-11 | F36: 0 | G36: 1 | H36: 1
B37: Juillet | C37: 2018-07-10 | D37: 2018-07-10 | E37: 2018-07-11 | F37: 0 | G37: 1 | H37: 1
B38: Août | C38: 2018-08-10 | D38: 2018-08-13 | E38: 2018-08-14 | F38: 3 | G38: 1 | H38: 1
B39: Septembre | C39: 2018-09-10 | D39: 2018-09-10 | E39: 2018-09-11 | F39: 0 | G39: 1 | H39: 1
B40: Octobre | C40: 2018-10-10 | D40: 2018-10-11 | E40: 2018-10-12 | F40: 1 | G40: 1 | H40: 1
B41: Novembre | C41: 2018-11-10 | D41: 2018-11-15 | E41: 2018-11-16 | F41: 5 | G41: 1 | H41: 1
B42: Décembre | C42: 2018-12-10 | D42: 2018-12-10 | E42: 2018-12-11 | F42: 0 | G42: 1 | H42: 1
B51: Référentiel N°01 | C51: Art.10 du code comptable | G51: Voir detail
B52: Référentiel N°02 | C52: Procédure Interne. Reporting des situations financières de la compagnie. | G52: Voir detail
B53: Référentiel N°03 | C53: Dispositions du contrat de nomination d'agent général. | G53: Voir detail
B55: Constats
B59: Cause N°01
B60: Cause N°02
B61: Cause N°03
B63: Conséquence N°01
B64: Conséquence N°02
B65: Conséquence N°03
B67: Recommandation N°01
B68: Recommandation N°02
B69: Recommandation N°03

Sheet Documentation
B8: ='PLANING SF'!B30 -> 0 | C8: ='PLANING SF'!C30 -> Date Planning | D8: ='PLANING SF'!D30 -> Date de présentation | E8: ='PLANING SF'!E30 -> Date de validation | F8: ='PLANING SF'!F30 -> Presentation VS Planning | G8: ='PLANING SF'!G30 -> Validation VS Presentation | H8: Validation VS Planning
B9: ='PLANING SF'!B31 -> Janvier | C9: ='PLANING SF'!C31 -> 2018-01-10 | D9: ='PLANING SF'!D31 -> 2018-01-10 | E9: ='PLANING SF'!E31 -> 2018-01-11 | F9: ='PLANING SF'!F31 -> 0 | G9: ='PLANING SF'!G31 -> 1 | H9: =F9+G9 -> 1 | AO9: =#REF! ->  | AP9: =VALUE(TEXT(#REF!,"jj")) ->  | AQ9: =VALUE(TEXT(#REF!,"jj")) ->  | AR9: =VALUE(TEXT(#REF!,"jj")) -> 
B10: ='PLANING SF'!B32 -> Février | C10: ='PLANING SF'!C32 -> 2018-02-10 | D10: ='PLANING SF'!D32 -> 2018-02-12 | E10: ='PLANING SF'!E32 -> 2018-02-13 | F10: ='PLANING SF'!F32 -> 2 | G10: ='PLANING SF'!G32 -> 1 | H10: =F10+G10 -> 3 | AO10: =#REF! ->  | AP10: =VALUE(TEXT(#REF!,"jj")) ->  | AQ10: =VALUE(TEXT(#REF!,"jj")) ->  | AR10: =VALUE(TEXT(#REF!,"jj")) -> 
B11: ='PLANING SF'!B33 -> Mars | C11: ='PLANING SF'!C33 -> 2018-03-10 | D11: ='PLANING SF'!D33 -> 2018-03-10 | E11: ='PLANING SF'!E33 -> 2018-03-11 | F11: ='PLANING SF'!F33 -> 0 | G11: ='PLANING SF'!G33 -> 1 | H11: 1
B12: ='PLANING SF'!B34 -> Avril | C12: ='PLANING SF'!C34 -> 2018-04-10 | D12: ='PLANING SF'!D34 -> 2018-04-15 | E12: ='PLANING SF'!E34 -> 2018-04-16 | F12: ='PLANING SF'!F34 -> 5 | G12: ='PLANING SF'!G34 -> 1 | H12: 6
B13: ='PLANING SF'!B35 -> Mai | C13: ='PLANING SF'!C35 -> 2018-05-10 | D13: ='PLANING SF'!D35 -> 2018-05-18 | E13: ='PLANING SF'!E35 -> 2018-05-19 | F13: ='PLANING SF'!F35 -> 8 | G13: ='PLANING SF'!G35 -> 1 | H13: 9
B14: ='PLANING SF'!B36 -> Juin | C14: ='PLANING SF'!C36 -> 2018-06-10 | D14: ='PLANING SF'!D36 -> 2018-06-10 | E14: ='PLANING SF'!E36 -> 2018-06-11 | F14: ='PLANING SF'!F36 -> 0 | G14: ='PLANING SF'!G36 -> 1 | H14: 1
B15: ='PLANING SF'!B37 -> Juillet | C15: ='PLANING SF'!C37 -> 2018-07-10 | D15: ='PLANING SF'!D37 -> 2018-07-10 | E15: ='PLANING SF'!E37 -> 2018-07-11 | F15: ='PLANING SF'!F37 -> 0 | G15: ='PLANING SF'!G37 -> 1 | H15: 1
B16: ='PLANING SF'!B38 -> Août | C16: ='PLANING SF'!C38 -> 2018-08-10 | D16: ='PLANING SF'!D38 -> 2018-08-13 | E16: ='PLANING SF'!E38 -> 2018-08-14 | F16: ='PLANING SF'!F38 -> 3 | G16: ='PLANING SF'!G38 -> 1 | H16: 4
B17: ='PLANING SF'!B39 -> Septembre | C17: ='PLANING SF'!C39 -> 2018-09-10 | D17: ='PLANING SF'!D39 -> 2018-09-10 | E17: ='PLANING SF'!E39 -> 2018-09-11 | F17: ='PLANING SF'!F39 -> 0 | G17: ='PLANING SF'!G39 -> 1 | H17: 1
B18: ='PLANING SF'!B40 -> Octobre | C18: ='PLANING SF'!C40 -> 2018-10-10 | D18: ='PLANING SF'!D40 -> 2018-10-11 | E18: ='PLANING SF'!E40 -> 2018-10-12 | F18: ='PLANING SF'!F40 -> 1 | G18: ='PLANING SF'!G40 -> 1 | H18: 2
B19: ='PLANING SF'!B41 -> Novembre | C19: ='PLANING SF'!C41 -> 2018-11-10 | D19: ='PLANING SF'!D41 -> 2018-11-15 | E19: ='PLANING SF'!E41 -> 2018-11-16 | F19: ='PLANING SF'!F41 -> 5 | G19: ='PLANING SF'!G41 -> 1 | H19: 6
B20: ='PLANING SF'!B42 -> Décembre | C20: ='PLANING SF'!C42 -> 2018-12-10 | D20: ='PLANING SF'!D42 -> 2018-12-10 | E20: ='PLANING SF'!E42 -> 2018-12-11 | F20: ='PLANING SF'!F42 -> 0 | G20: ='PLANING SF'!G42 -> 1 | H20: 1
B48: Référentiel N°01 | C48: Art.10 du code comptable | G48: Voir detail
B49: Référentiel N°02 | C49: Procédure Interne. Reporting des situations financières de la compagnie. | G49: Voir detail
B50: Référentiel N°03 | C50: Dispositions du contrat de nomination d'agent général. | G50: Voir detail
B52: Constats
B56: Cause N°01
B57: Cause N°02
B58: Cause N°03
B60: Conséquence N°01
B61: Conséquence N°02
B62: Conséquence N°03
B64: Recommandation N°01
B65: Recommandation N°02
B66: Recommandation N°03

Sheet Emplois

Sheet Ressources

Sheet Production
B8: Mois | C8: Production IRIS | D8: Production S.F | E8: Ecarts | F8: Observation
B9: =SITUAT!A4 -> juillet | C9: =SITUAT!B4 -> 0 | D9: 12330000 | E9: =C9-D9 -> -12330000 | F9: =IF(E9=0,"","Un ecart de "&E9&" DZD a été constaté dans le mois de "&B9) -> Un ecart de -12330000 DZD a été constaté dans le mois de juillet | AO9: =#REF! ->  | AP9: =VALUE(TEXT(#REF!,"jj")) ->  | AQ9: =VALUE(TEXT(#REF!,"jj")) ->  | AR9: =VALUE(TEXT(#REF!,"jj")) -> 
B10: =SITUAT!A5 -> août | C10: =SITUAT!B5 -> 0 | D10: 12330000 | E10: -12330000 | F10: =IF(E10=0,"","Un ecart de "&E10&" DZD a été constaté dans le mois de "&B10) -> Un ecart de -12330000 DZD a été constaté dans le mois de août | AO10: =#REF! ->  | AP10: =VALUE(TEXT(#REF!,"jj")) ->  | AQ10: =VALUE(TEXT(#REF!,"jj")) ->  | AR10: =VALUE(TEXT(#REF!,"jj")) -> 
B11: =SITUAT!A6 -> septembre | C11: =SITUAT!B6 -> 0 | D11: 12330000 | E11: -12330000 | F11: Un ecart de -12330000 DZD a été constaté dans le mois de septembre
B12: =SITUAT!A7 -> octobre | C12: =SITUAT!B7 -> 0 | D12: 12330000 | E12: -12330000 | F12: Un ecart de -12330000 DZD a été constaté dans le mois de octobre
B13: =SITUAT!A8 -> novembre | C13: =SITUAT!B8 -> 0 | D13: 12330000 | E13: -12330000 | F13: Un ecart de -12330000 DZD a été constaté dans le mois de novembre
B14: =SITUAT!A9 -> décembre | C14: =SITUAT!B9 -> 0 | D14: 12330000 | E14: -12330000 | F14: Un ecart de -12330000 DZD a été constaté dans le mois de décembre
B15: =SITUAT!A10 -> janvier | C15: =SITUAT!B10 -> 0 | D15: 12330000 | E15: -12330000 | F15: Un ecart de -12330000 DZD a été constaté dans le mois de janvier
B16: =SITUAT!A11 -> février | C16: =SITUAT!B11 -> 0 | D16: 12330000 | E16: -12330000 | F16: Un ecart de -12330000 DZD a été constaté dans le mois de février
B17: =SITUAT!A12 -> mars | C17: =SITUAT!B12 -> 0 | D17: 12330000 | E17: -12330000 | F17: Un ecart de -12330000 DZD a été constaté dans le mois de mars
B18: =SITUAT!A13 -> avril | C18: =SITUAT!B13 -> 0 | D18: 12330000 | E18: -12330000 | F18: Un ecart de -12330000 DZD a été constaté dans le mois de avril
B19: =SITUAT!A14 -> mai | C19: =SITUAT!B14 -> 0 | D19: 12330000 | E19: -12330000 | F19: Un ecart de -12330000 DZD a été constaté dans le mois de mai
B20: =SITUAT!A15 -> juin | C20: =SITUAT!B15 -> 0 | D20: 12330000 | E20: -12330000 | F20: Un ecart de -12330000 DZD a été constaté dans le mois de juin
B21: Total | C21: =SUM(C9:C20) -> 0 | D21: =SUM(D9:D20) -> 147960000 | E21: =SUM(E9:E20) -> -147960000 | F21: Un ecart de -147960000 DZD a été constaté dans le mois de Total
B48: Référentiel N°01 | C48: Art.10 du code comptable | G48: Voir detail
B49: Référentiel N°02 | C49: Procédure Interne. Reporting des situations financières de la compagnie. | G49: Voir detail
B50: Référentiel N°03 | C50: Dispositions du contrat de nomination d'agent général. | G50: Voir detail
B52: Constats
B56: Cause N°01
B57: Cause N°02
B58: Cause N°03
B60: Conséquence N°01
B61: Conséquence N°02
B62: Conséquence N°03
B64: Recommandation N°01
B65: Recommandation N°02
B66: Recommandation N°03

Sheet Ristournes
B8: Mois | C8: Ristournes IRIS | D8: Ristournes S.F | E8: Ecarts | F8: Observation
B9: =SITUAT!A4 -> juillet | C9: =SITUAT!C4 -> 0 | D9: 12330000 | E9: =C9-D9 -> -12330000 | F9: =IF(E9=0,"","Un ecart de "&E9&" DZD a été constaté dans le mois de "&B9) -> Un ecart de -12330000 DZD a été constaté dans le mois de juillet | AO9: =#REF! ->  | AP9: =VALUE(TEXT(#REF!,"jj")) ->  | AQ9: =VALUE(TEXT(#REF!,"jj")) ->  | AR9: =VALUE(TEXT(#REF!,"jj")) -> 
B10: =SITUAT!A5 -> août | C10: =SITUAT!C5 -> 0 | D10: 12330000 | E10: -12330000 | F10: =IF(E10=0,"","Un ecart de "&E10&" DZD a été constaté dans le mois de "&B10) -> Un ecart de -12330000 DZD a été constaté dans le mois de août | AO10: =#REF! ->  | AP10: =VALUE(TEXT(#REF!,"jj")) ->  | AQ10: =VALUE(TEXT(#REF!,"jj")) ->  | AR10: =VALUE(TEXT(#REF!,"jj")) -> 
B11: =SITUAT!A6 -> septembre | C11: =SITUAT!C6 -> 0 | D11: 12330000 | E11: -12330000 | F11: Un ecart de -12330000 DZD a été constaté dans le mois de septembre
B12: =SITUAT!A7 -> octobre | C12: =SITUAT!C7 -> 0 | D12: 12330000 | E12: -12330000 | F12: Un ecart de -12330000 DZD a été constaté dans le mois de octobre
B13: =SITUAT!A8 -> novembre | C13: =SITUAT!C8 -> 0 | D13: 12330000 | E13: -12330000 | F13: Un ecart de -12330000 DZD a été constaté dans le mois de novembre
B14: =SITUAT!A9 -> décembre | C14: =SITUAT!C9 -> 0 | D14: 12330000 | E14: -12330000 | F14: Un ecart de -12330000 DZD a été constaté dans le mois de décembre
B15: =SITUAT!A10 -> janvier | C15: =SITUAT!C10 -> 0 | D15: 12330000 | E15: -12330000 | F15: Un ecart de -12330000 DZD a été constaté dans le mois de janvier
B16: =SITUAT!A11 -> février | C16: =SITUAT!C11 -> 0 | D16: 12330000 | E16: -12330000 | F16: Un ecart de -12330000 DZD a été constaté dans le mois de février
B17: =SITUAT!A12 -> mars | C17: =SITUAT!C12 -> 0 | D17: 12330000 | E17: -12330000 | F17: Un ecart de -12330000 DZD a été constaté dans le mois de mars
B18: =SITUAT!A13 -> avril | C18: =SITUAT!C13 -> 0 | D18: 12330000 | E18: -12330000 | F18: Un ecart de -12330000 DZD a été constaté dans le mois de avril
B19: =SITUAT!A14 -> mai | C19: =SITUAT!C14 -> 0 | D19: 12330000 | E19: -12330000 | F19: Un ecart de -12330000 DZD a été constaté dans le mois de mai
B20: =SITUAT!A15 -> juin | C20: =SITUAT!C15 -> 0 | D20: 12330000 | E20: -12330000 | F20: Un ecart de -12330000 DZD a été constaté dans le mois de juin
B21: Total | C21: =SUM(C9:C20) -> 0 | D21: =SUM(D9:D20) -> 147960000 | E21: =SUM(E9:E20) -> -147960000 | F21: Un ecart de -147960000 DZD a été constaté dans le mois de Total
B48: Référentiel N°01 | C48: Art.10 du code comptable | G48: Voir detail
B49: Référentiel N°02 | C49: Procédure Interne. Reporting des situations financières de la compagnie. | G49: Voir detail
B50: Référentiel N°03 | C50: Dispositions du contrat de nomination d'agent général. | G50: Voir detail
B52: Constats
B56: Cause N°01
B57: Cause N°02
B58: Cause N°03
B60: Conséquence N°01
B61: Conséquence N°02
B62: Conséquence N°03
B64: Recommandation N°01
B65: Recommandation N°02
B66: Recommandation N°03

Sheet Recouvrement creances
B8: Mois | C8: Recouvrements CREA IRIS | D8: Recouvrements CREA S.F | E8: Ecarts | F8: Observation
B9: =SITUAT!A4 -> juillet | C9: =SITUAT!D4 -> 80000 | D9: 12330000 | E9: =C9-D9 -> -12250000 | F9: =IF(E9=0,"","Un ecart de "&E9&" DZD a été constaté dans le mois de "&B9) -> Un ecart de -12250000 DZD a été constaté dans le mois de juillet | AI9: =#REF! ->  | AJ9: =VALUE(TEXT(#REF!,"jj")) ->  | AK9: =VALUE(TEXT(#REF!,"jj")) ->  | AL9: =VALUE(TEXT(#REF!,"jj")) -> 
B10: =SITUAT!A5 -> août | C10: =SITUAT!D5 -> 80000 | D10: 12330000 | E10: -12250000 | F10: =IF(E10=0,"","Un ecart de "&E10&" DZD a été constaté dans le mois de "&B10) -> Un ecart de -12250000 DZD a été constaté dans le mois de août | AI10: =#REF! ->  | AJ10: =VALUE(TEXT(#REF!,"jj")) ->  | AK10: =VALUE(TEXT(#REF!,"jj")) ->  | AL10: =VALUE(TEXT(#REF!,"jj")) -> 
B11: =SITUAT!A6 -> septembre | C11: =SITUAT!D6 -> 80000 | D11: 12330000 | E11: -12250000 | F11: Un ecart de -12250000 DZD a été constaté dans le mois de septembre
B12: =SITUAT!A7 -> octobre | C12: =SITUAT!D7 -> 80000 | D12: 12330000 | E12: -12250000 | F12: Un ecart de -12250000 DZD a été constaté dans le mois de octobre
B13: =SITUAT!A8 -> novembre | C13: =SITUAT!D8 -> 80000 | D13: 12330000 | E13: -12250000 | F13: Un ecart de -12250000 DZD a été constaté dans le mois de novembre
B14: =SITUAT!A9 -> décembre | C14: =SITUAT!D9 -> 80000 | D14: 12330000 | E14: -12250000 | F14: Un ecart de -12250000 DZD a été constaté dans le mois de décembre
B15: =SITUAT!A10 -> janvier | C15: =SITUAT!D10 -> 103879.58 | D15: 12330000 | E15: -12226120.42 | F15: Un ecart de -12226120,42 DZD a été constaté dans le mois de janvier
B16: =SITUAT!A11 -> février | C16: =SITUAT!D11 -> 200000 | D16: 12330000 | E16: -12130000 | F16: Un ecart de -12130000 DZD a été constaté dans le mois de février
B17: =SITUAT!A12 -> mars | C17: =SITUAT!D12 -> 0 | D17: 12330000 | E17: -12330000 | F17: Un ecart de -12330000 DZD a été constaté dans le mois de mars
B18: =SITUAT!A13 -> avril | C18: =SITUAT!D13 -> 695954.18 | D18: 12330000 | E18: -11634045.82 | F18: Un ecart de -11634045,82 DZD a été constaté dans le mois de avril
B19: =SITUAT!A14 -> mai | C19: =SITUAT!D14 -> 0 | D19: 12330000 | E19: -12330000 | F19: Un ecart de -12330000 DZD a été constaté dans le mois de mai
B20: =SITUAT!A15 -> juin | C20: =SITUAT!D15 -> 105411.65 | D20: 12330000 | E20: -12224588.35 | F20: Un ecart de -12224588,35 DZD a été constaté dans le mois de juin
B21: Total | C21: =SUM(C9:C20) -> 1585245.41 | D21: =SUM(D9:D20) -> 147960000 | E21: =SUM(E9:E20) -> -146374754.6 | F21: Un ecart de -146374754,59 DZD a été constaté dans le mois de Total
B48: Référentiel N°01 | C48: Art.10 du code comptable | G48: Voir detail
B49: Référentiel N°02 | C49: Procédure Interne. Reporting des situations financières de la compagnie. | G49: Voir detail
B50: Référentiel N°03 | C50: Dispositions du contrat de nomination d'agent général. | G50: Voir detail
B52: Constats
B56: Cause N°01
B57: Cause N°02
B58: Cause N°03
B60: Conséquence N°01
B61: Conséquence N°02
B62: Conséquence N°03
B64: Recommandation N°01
B65: Recommandation N°02
B66: Recommandation N°03

Sheet Recouvrement impayees
B8: Mois | C8: Recouvrements IMPY IRIS | D8: Recouvrements IMPY S.F | E8: Ecarts | F8: Observation
B9: janvier | C9: 12335000 | D9: 12330000 | E9: =C9-D9 -> 5000 | F9: =IF(E9=0,"","Un ecart de "&E9&" DZD a été constaté dans le mois de "&B9) -> Un ecart de 5000 DZD a été constaté dans le mois de janvier | AI9: =#REF! ->  | AJ9: =VALUE(TEXT(#REF!,"jj")) ->  | AK9: =VALUE(TEXT(#REF!,"jj")) ->  | AL9: =VALUE(TEXT(#REF!,"jj")) -> 
B10: février | C10: 11335000 | D10: 12330000 | E10: -995000 | F10: =IF(E10=0,"","Un ecart de "&E10&" DZD a été constaté dans le mois de "&B10) -> Un ecart de -995000 DZD a été constaté dans le mois de février | AI10: =#REF! ->  | AJ10: =VALUE(TEXT(#REF!,"jj")) ->  | AK10: =VALUE(TEXT(#REF!,"jj")) ->  | AL10: =VALUE(TEXT(#REF!,"jj")) -> 
B11: mars | C11: 1335000 | D11: 12330000 | E11: -10995000 | F11: Un ecart de -10995000 DZD a été constaté dans le mois de mars
B12: avril | C12: 13000000 | D12: 12330000 | E12: 670000 | F12: Un ecart de 670000 DZD a été constaté dans le mois de avril
B13: mai | C13: 10335000 | D13: 12330000 | E13: -1995000 | F13: Un ecart de -1995000 DZD a été constaté dans le mois de mai
B14: juin | C14: 9335000 | D14: 12330000 | E14: -2995000 | F14: Un ecart de -2995000 DZD a été constaté dans le mois de juin
B15: juillet | C15: 12335000 | D15: 12330000 | E15: 5000 | F15: Un ecart de 5000 DZD a été constaté dans le mois de juillet
B16: août | C16: 8335000 | D16: 12330000 | E16: -3995000 | F16: Un ecart de -3995000 DZD a été constaté dans le mois de août
B17: septembre | C17: 12335000 | D17: 12330000 | E17: 5000 | F17: Un ecart de 5000 DZD a été constaté dans le mois de septembre
B18: octobre | C18: 12335000 | D18: 12330000 | E18: 5000 | F18: Un ecart de 5000 DZD a été constaté dans le mois de octobre
B19: novembre | C19: 12335000 | D19: 12330000 | E19: 5000 | F19: Un ecart de 5000 DZD a été constaté dans le mois de novembre
B20: décembre | C20: 12335000 | D20: 12330000 | E20: 5000 | F20: Un ecart de 5000 DZD a été constaté dans le mois de décembre
B21: Total | C21: =SUM(C9:C20) -> 127685000 | D21: =SUM(D9:D20) -> 147960000 | E21: =SUM(E9:E20) -> -20275000 | F21: Un ecart de -20275000 DZD a été constaté dans le mois de Total
B48: Référentiel N°01 | C48: Art.10 du code comptable | G48: Voir detail
B49: Référentiel N°02 | C49: Procédure Interne. Reporting des situations financières de la compagnie. | G49: Voir detail
B50: Référentiel N°03 | C50: Dispositions du contrat de nomination d'agent général. | G50: Voir detail
B52: Constats
B56: Cause N°01
B57: Cause N°02
B58: Cause N°03
B60: Conséquence N°01
B61: Conséquence N°02
B62: Conséquence N°03
B64: Recommandation N°01
B65: Recommandation N°02
B66: Recommandation N°03

Sheet Rec aboutis encaissé par agence
B8: Mois | C8: Recours Aboutis IRIS | D8: Recours Aboutis S.F | E8: Ecarts | F8: Observation
B9: =SITUAT!A4 -> juillet | C9: =SITUAT!F4 -> 0 | D9: 12330000 | E9: =C9-D9 -> -12330000 | F9: =IF(E9=0,"","Un ecart de "&E9&" DZD a été constaté dans le mois de "&B9) -> Un ecart de -12330000 DZD a été constaté dans le mois de juillet | AI9: =#REF! ->  | AJ9: =VALUE(TEXT(#REF!,"jj")) ->  | AK9: =VALUE(TEXT(#REF!,"jj")) ->  | AL9: =VALUE(TEXT(#REF!,"jj")) -> 
B10: =SITUAT!A5 -> août | C10: =SITUAT!F5 -> 0 | D10: 12330000 | E10: -12330000 | F10: =IF(E10=0,"","Un ecart de "&E10&" DZD a été constaté dans le mois de "&B10) -> Un ecart de -12330000 DZD a été constaté dans le mois de août | AI10: =#REF! ->  | AJ10: =VALUE(TEXT(#REF!,"jj")) ->  | AK10: =VALUE(TEXT(#REF!,"jj")) ->  | AL10: =VALUE(TEXT(#REF!,"jj")) -> 
B11: =SITUAT!A6 -> septembre | C11: =SITUAT!F6 -> 0 | D11: 12330000 | E11: -12330000 | F11: Un ecart de -12330000 DZD a été constaté dans le mois de septembre
B12: =SITUAT!A7 -> octobre | C12: =SITUAT!F7 -> 0 | D12: 12330000 | E12: -12330000 | F12: Un ecart de -12330000 DZD a été constaté dans le mois de octobre
B13: =SITUAT!A8 -> novembre | C13: =SITUAT!F8 -> 0 | D13: 12330000 | E13: -12330000 | F13: Un ecart de -12330000 DZD a été constaté dans le mois de novembre
B14: =SITUAT!A9 -> décembre | C14: =SITUAT!F9 -> 0 | D14: 12330000 | E14: -12330000 | F14: Un ecart de -12330000 DZD a été constaté dans le mois de décembre
B15: =SITUAT!A10 -> janvier | C15: =SITUAT!F10 -> 0 | D15: 12330000 | E15: -12330000 | F15: Un ecart de -12330000 DZD a été constaté dans le mois de janvier
B16: =SITUAT!A11 -> février | C16: =SITUAT!F11 -> 0 | D16: 12330000 | E16: -12330000 | F16: Un ecart de -12330000 DZD a été constaté dans le mois de février
B17: =SITUAT!A12 -> mars | C17: =SITUAT!F12 -> 0 | D17: 12330000 | E17: -12330000 | F17: Un ecart de -12330000 DZD a été constaté dans le mois de mars
B18: =SITUAT!A13 -> avril | C18: =SITUAT!F13 -> 0 | D18: 12330000 | E18: -12330000 | F18: Un ecart de -12330000 DZD a été constaté dans le mois de avril
B19: =SITUAT!A14 -> mai | C19: =SITUAT!F14 -> 0 | D19: 12330000 | E19: -12330000 | F19: Un ecart de -12330000 DZD a été constaté dans le mois de mai
B20: =SITUAT!A15 -> juin | C20: =SITUAT!F15 -> 0 | D20: 12330000 | E20: -12330000 | F20: Un ecart de -12330000 DZD a été constaté dans le mois de juin
B21: Total | C21: =SUM(C9:C20) -> 0 | D21: =SUM(D9:D20) -> 147960000 | E21: =SUM(E9:E20) -> -147960000 | F21: Un ecart de -147960000 DZD a été constaté dans le mois de Total
B48: Référentiel N°01 | C48: Art.10 du code comptable | G48: Voir detail
B49: Référentiel N°02 | C49: Procédure Interne. Reporting des situations financières de la compagnie. | G49: Voir detail
B50: Référentiel N°03 | C50: Dispositions du contrat de nomination d'agent général. | G50: Voir detail
B52: Constats
B56: Cause N°01
B57: Cause N°02
B58: Cause N°03
B60: Conséquence N°01
B61: Conséquence N°02
B62: Conséquence N°03
B64: Recommandation N°01
B65: Recommandation N°02
B66: Recommandation N°03

Sheet CHQ Crédités
B8: Mois | C8: Recours Aboutis IRIS | D8: Recours Aboutis S.F | E8: Ecarts | F8: Observation
B9: janvier | C9: 12335000 | D9: 12330000 | E9: =C9-D9 -> 5000 | F9: =IF(E9=0,"","Un ecart de "&E9&" DZD a été constaté dans le mois de "&B9) -> Un ecart de 5000 DZD a été constaté dans le mois de janvier | AI9: =#REF! ->  | AJ9: =VALUE(TEXT(#REF!,"jj")) ->  | AK9: =VALUE(TEXT(#REF!,"jj")) ->  | AL9: =VALUE(TEXT(#REF!,"jj")) -> 
B10: février | C10: 11335000 | D10: 12330000 | E10: -995000 | F10: =IF(E10=0,"","Un ecart de "&E10&" DZD a été constaté dans le mois de "&B10) -> Un ecart de -995000 DZD a été constaté dans le mois de février | AI10: =#REF! ->  | AJ10: =VALUE(TEXT(#REF!,"jj")) ->  | AK10: =VALUE(TEXT(#REF!,"jj")) ->  | AL10: =VALUE(TEXT(#REF!,"jj")) -> 
B11: mars | C11: 1335000 | D11: 12330000 | E11: -10995000 | F11: Un ecart de -10995000 DZD a été constaté dans le mois de mars
B12: avril | C12: 13000000 | D12: 12330000 | E12: 670000 | F12: Un ecart de 670000 DZD a été constaté dans le mois de avril
B13: mai | C13: 10335000 | D13: 12330000 | E13: -1995000 | F13: Un ecart de -1995000 DZD a été constaté dans le mois de mai
B14: juin | C14: 9335000 | D14: 12330000 | E14: -2995000 | F14: Un ecart de -2995000 DZD a été constaté dans le mois de juin
B15: juillet | C15: 12335000 | D15: 12330000 | E15: 5000 | F15: Un ecart de 5000 DZD a été constaté dans le mois de juillet
B16: août | C16: 8335000 | D16: 12330000 | E16: -3995000 | F16: Un ecart de -3995000 DZD a été constaté dans le mois de août
B17: septembre | C17: 12335000 | D17: 12330000 | E17: 5000 | F17: Un ecart de 5000 DZD a été constaté dans le mois de septembre
B18: octobre | C18: 12335000 | D18: 12330000 | E18: 5000 | F18: Un ecart de 5000 DZD a été constaté dans le mois de octobre
B19: novembre | C19: 12335000 | D19: 12330000 | E19: 5000 | F19: Un ecart de 5000 DZD a été constaté dans le mois de novembre
B20: décembre | C20: 12335000 | D20: 12330000 | E20: 5000 | F20: Un ecart de 5000 DZD a été constaté dans le mois de décembre
B21: Total | C21: =SUM(C9:C20) -> 127685000 | D21: =SUM(D9:D20) -> 147960000 | E21: =SUM(E9:E20) -> -20275000 | F21: Un ecart de -20275000 DZD a été constaté dans le mois de Total
B48: Référentiel N°01 | C48: Art.10 du code comptable | G48: Voir detail
B49: Référentiel N°02 | C49: Procédure Interne. Reporting des situations financières de la compagnie. | G49: Voir detail
B50: Référentiel N°03 | C50: Dispositions du contrat de nomination d'agent général. | G50: Voir detail
B52: Constats
B56: Cause N°01
B57: Cause N°02
B58: Cause N°03
B60: Conséquence N°01
B61: Conséquence N°02
B62: Conséquence N°03
B64: Recommandation N°01
B65: Recommandation N°02
B66: Recommandation N°03

Sheet Sinistres réglé
B8: Mois | C8: Sinistre IRIS | D8: Sinistres S.F | E8: Sinistres réglé par la (DG/DR) | F8: Ecarts | G8: Observation | I8: Mois | J8: Sinistre IRIS | K8: Relevé | L8: Sinistres réglé par la (DG/DR) | M8: Cheques en suspend | N8: Ecarts | O8: Observation
B9: janvier | C9: 12335000 | D9: 12330000 | F9: =C9-D9 -> 5000 | G9: =IF(F9=0,"","Un ecart de "&F9&" DZD a été constaté dans le mois de "&B9) -> Un ecart de 5000 DZD a été constaté dans le mois de janvier | I9: janvier | J9: 12335000 | K9: 12330000 | N9: =J9-K9 -> 5000 | O9: =IF(N9=0,"","Un ecart de "&N9&" DZD a été constaté dans le mois de "&I9) -> Un ecart de 5000 DZD a été constaté dans le mois de janvier | AR9: =#REF! ->  | AS9: =VALUE(TEXT(#REF!,"jj")) ->  | AT9: =VALUE(TEXT(#REF!,"jj")) ->  | AU9: =VALUE(TEXT(#REF!,"jj")) -> 
B10: février | C10: 12335000 | D10: 12330000 | F10: 5000 | G10: =IF(F10=0,"","Un ecart de "&F10&" DZD a été constaté dans le mois de "&B10) -> Un ecart de 5000 DZD a été constaté dans le mois de février | I10: février | J10: 12335000 | K10: 12330000 | N10: 5000 | O10: =IF(N10=0,"","Un ecart de "&N10&" DZD a été constaté dans le mois de "&I10) -> Un ecart de 5000 DZD a été constaté dans le mois de février | AR10: =#REF! ->  | AS10: =VALUE(TEXT(#REF!,"jj")) ->  | AT10: =VALUE(TEXT(#REF!,"jj")) ->  | AU10: =VALUE(TEXT(#REF!,"jj")) -> 
B11: mars | C11: 12335000 | D11: 12330000 | F11: 5000 | G11: Un ecart de 5000 DZD a été constaté dans le mois de mars | I11: mars | J11: 12335000 | K11: 12330000 | N11: 5000 | O11: Un ecart de 5000 DZD a été constaté dans le mois de mars
B12: avril | C12: 13000000 | D12: 12330000 | F12: 670000 | G12: Un ecart de 670000 DZD a été constaté dans le mois de avril | I12: avril | J12: 13000000 | K12: 12330000 | N12: 670000 | O12: Un ecart de 670000 DZD a été constaté dans le mois de avril
B13: mai | C13: 12335000 | D13: 12330000 | F13: 5000 | G13: Un ecart de 5000 DZD a été constaté dans le mois de mai | I13: mai | J13: 12335000 | K13: 12330000 | N13: 5000 | O13: Un ecart de 5000 DZD a été constaté dans le mois de mai
B14: juin | C14: 12335000 | D14: 12330000 | F14: 5000 | G14: Un ecart de 5000 DZD a été constaté dans le mois de juin | I14: juin | J14: 12335000 | K14: 12330000 | N14: 5000 | O14: Un ecart de 5000 DZD a été constaté dans le mois de juin
B15: juillet | C15: 12335000 | D15: 12330000 | F15: 5000 | G15: Un ecart de 5000 DZD a été constaté dans le mois de juillet | I15: juillet | J15: 12335000 | K15: 12330000 | N15: 5000 | O15: Un ecart de 5000 DZD a été constaté dans le mois de juillet
B16: août | C16: 12335000 | D16: 12330000 | F16: 5000 | G16: Un ecart de 5000 DZD a été constaté dans le mois de août | I16: août | J16: 12335000 | K16: 12330000 | N16: 5000 | O16: Un ecart de 5000 DZD a été constaté dans le mois de août
B17: septembre | C17: 12335000 | D17: 12330000 | F17: 5000 | G17: Un ecart de 5000 DZD a été constaté dans le mois de septembre | I17: septembre | J17: 12335000 | K17: 12330000 | N17: 5000 | O17: Un ecart de 5000 DZD a été constaté dans le mois de septembre
B18: octobre | C18: 12335000 | D18: 12330000 | F18: 5000 | G18: Un ecart de 5000 DZD a été constaté dans le mois de octobre | I18: octobre | J18: 12335000 | K18: 12330000 | N18: 5000 | O18: Un ecart de 5000 DZD a été constaté dans le mois de octobre
B19: novembre | C19: 12335000 | D19: 12330000 | F19: 5000 | G19: Un ecart de 5000 DZD a été constaté dans le mois de novembre | I19: novembre | J19: 12335000 | K19: 12330000 | N19: 5000 | O19: Un ecart de 5000 DZD a été constaté dans le mois de novembre
B20: décembre | C20: 12335000 | D20: 12330000 | F20: 5000 | G20: Un ecart de 5000 DZD a été constaté dans le mois de décembre | I20: décembre | J20: 12335000 | K20: 12330000 | N20: 5000 | O20: Un ecart de 5000 DZD a été constaté dans le mois de décembre
B21: Total | C21: =SUM(C9:C20) -> 148685000 | D21: =SUM(D9:D20) -> 147960000 | F21: =SUM(F9:F20) -> 725000 | G21: Un ecart de 725000 DZD a été constaté dans le mois de Total | I21: Total | J21: =SUM(J9:J20) -> 148685000 | K21: =SUM(K9:K20) -> 147960000 | N21: =SUM(N9:N20) -> 725000 | O21: Un ecart de 725000 DZD a été constaté dans le mois de Total
B48: Référentiel N°01 | C48: Art.10 du code comptable | H48: Voir detail
B49: Référentiel N°02 | C49: Procédure Interne. Reporting des situations financières de la compagnie. | H49: Voir detail
B50: Référentiel N°03 | C50: Dispositions du contrat de nomination d'agent général. | H50: Voir detail
B52: Constats
B56: Cause N°01
B57: Cause N°02
B58: Cause N°03
B60: Conséquence N°01
B61: Conséquence N°02
B62: Conséquence N°03
B64: Recommandation N°01
B65: Recommandation N°02
B66: Recommandation N°03

Sheet Honoraires réglés
B8: Mois | C8: Honoraires IRIS | D8: Honoraires S.F | E8: Ecarts | F8: Observation | H8: Mois | I8: Honoraires IRIS | J8: Relevé | K8: Cheques en suspend | L8: Ecarts | M8: Observation
B9: janvier | C9: 12335000 | D9: 12330000 | E9: =C9-D9 -> 5000 | F9: =IF(E9=0,"","Un ecart de "&E9&" DZD a été constaté dans le mois de "&B9) -> Un ecart de 5000 DZD a été constaté dans le mois de janvier | H9: janvier | I9: 12335000 | J9: 12330000 | L9: =I9-J9 -> 5000 | M9: =IF(L9=0,"","Un ecart de "&L9&" DZD a été constaté dans le mois de "&H9) -> Un ecart de 5000 DZD a été constaté dans le mois de janvier | AP9: =#REF! ->  | AQ9: =VALUE(TEXT(#REF!,"jj")) ->  | AR9: =VALUE(TEXT(#REF!,"jj")) ->  | AS9: =VALUE(TEXT(#REF!,"jj")) -> 
B10: février | C10: 12335000 | D10: 12330000 | E10: 5000 | F10: =IF(E10=0,"","Un ecart de "&E10&" DZD a été constaté dans le mois de "&B10) -> Un ecart de 5000 DZD a été constaté dans le mois de février | H10: février | I10: 12335000 | J10: 12330000 | L10: 5000 | M10: =IF(L10=0,"","Un ecart de "&L10&" DZD a été constaté dans le mois de "&H10) -> Un ecart de 5000 DZD a été constaté dans le mois de février | AP10: =#REF! ->  | AQ10: =VALUE(TEXT(#REF!,"jj")) ->  | AR10: =VALUE(TEXT(#REF!,"jj")) ->  | AS10: =VALUE(TEXT(#REF!,"jj")) -> 
B11: mars | C11: 12335000 | D11: 12330000 | E11: 5000 | F11: Un ecart de 5000 DZD a été constaté dans le mois de mars | H11: mars | I11: 12335000 | J11: 12330000 | L11: 5000 | M11: Un ecart de 5000 DZD a été constaté dans le mois de mars
B12: avril | C12: 13000000 | D12: 12330000 | E12: 670000 | F12: Un ecart de 670000 DZD a été constaté dans le mois de avril | H12: avril | I12: 13000000 | J12: 12330000 | L12: 670000 | M12: Un ecart de 670000 DZD a été constaté dans le mois de avril
B13: mai | C13: 12335000 | D13: 12330000 | E13: 5000 | F13: Un ecart de 5000 DZD a été constaté dans le mois de mai | H13: mai | I13: 12335000 | J13: 12330000 | L13: 5000 | M13: Un ecart de 5000 DZD a été constaté dans le mois de mai
B14: juin | C14: 12335000 | D14: 12330000 | E14: 5000 | F14: Un ecart de 5000 DZD a été constaté dans le mois de juin | H14: juin | I14: 12335000 | J14: 12330000 | L14: 5000 | M14: Un ecart de 5000 DZD a été constaté dans le mois de juin
B15: juillet | C15: 12335000 | D15: 12330000 | E15: 5000 | F15: Un ecart de 5000 DZD a été constaté dans le mois de juillet | H15: juillet | I15: 12335000 | J15: 12330000 | L15: 5000 | M15: Un ecart de 5000 DZD a été constaté dans le mois de juillet
B16: août | C16: 12335000 | D16: 12330000 | E16: 5000 | F16: Un ecart de 5000 DZD a été constaté dans le mois de août | H16: août | I16: 12335000 | J16: 12330000 | L16: 5000 | M16: Un ecart de 5000 DZD a été constaté dans le mois de août
B17: septembre | C17: 12335000 | D17: 12330000 | E17: 5000 | F17: Un ecart de 5000 DZD a été constaté dans le mois de septembre | H17: septembre | I17: 12335000 | J17: 12330000 | L17: 5000 | M17: Un ecart de 5000 DZD a été constaté dans le mois de septembre
B18: octobre | C18: 12335000 | D18: 12330000 | E18: 5000 | F18: Un ecart de 5000 DZD a été constaté dans le mois de octobre | H18: octobre | I18: 12335000 | J18: 12330000 | L18: 5000 | M18: Un ecart de 5000 DZD a été constaté dans le mois de octobre
B19: novembre | C19: 12335000 | D19: 12330000 | E19: 5000 | F19: Un ecart de 5000 DZD a été constaté dans le mois de novembre | H19: novembre | I19: 12335000 | J19: 12330000 | L19: 5000 | M19: Un ecart de 5000 DZD a été constaté dans le mois de novembre
B20: décembre | C20: 12335000 | D20: 12330000 | E20: 5000 | F20: Un ecart de 5000 DZD a été constaté dans le mois de décembre | H20: décembre | I20: 12335000 | J20: 12330000 | L20: 5000 | M20: Un ecart de 5000 DZD a été constaté dans le mois de décembre
B21: Total | C21: =SUM(C9:C20) -> 148685000 | D21: =SUM(D9:D20) -> 147960000 | E21: =SUM(E9:E20) -> 725000 | F21: Un ecart de 725000 DZD a été constaté dans le mois de Total | H21: Total | I21: =SUM(I9:I20) -> 148685000 | J21: =SUM(J9:J20) -> 147960000 | L21: =SUM(L9:L20) -> 725000 | M21: Un ecart de 725000 DZD a été constaté dans le mois de Total
B48: Référentiel N°01 | C48: Art.10 du code comptable | G48: Voir detail
B49: Référentiel N°02 | C49: Procédure Interne. Reporting des situations financières de la compagnie. | G49: Voir detail
B50: Référentiel N°03 | C50: Dispositions du contrat de nomination d'agent général. | G50: Voir detail
B52: Constats
B56: Cause N°01
B57: Cause N°02
B58: Cause N°03
B60: Conséquence N°01
B61: Conséquence N°02
B62: Conséquence N°03
B64: Recommandation N°01
B65: Recommandation N°02
B66: Recommandation N°03

Sheet Recours réglés
B8: Mois | C8: Recours IRIS | D8: Recours S.F | E8: Ecarts | F8: Observation | H8: Mois | I8: Recours IRIS | J8: Relevé | K8: Cheques en suspend | L8: Ecarts | M8: Observation
B9: =SITUAT!A4 -> juillet | C9: =SITUAT!G4 -> 0 | D9: 12330000 | E9: =C9-D9 -> -12330000 | F9: =IF(E9=0,"","Un ecart de "&E9&" DZD a été constaté dans le mois de "&B9) -> Un ecart de -12330000 DZD a été constaté dans le mois de juillet | H9: janvier | I9: 12335000 | J9: 12330000 | L9: =I9-J9 -> 5000 | M9: =IF(L9=0,"","Un ecart de "&L9&" DZD a été constaté dans le mois de "&H9) -> Un ecart de 5000 DZD a été constaté dans le mois de janvier | AP9: =#REF! ->  | AQ9: =VALUE(TEXT(#REF!,"jj")) ->  | AR9: =VALUE(TEXT(#REF!,"jj")) ->  | AS9: =VALUE(TEXT(#REF!,"jj")) -> 
B10: =SITUAT!A5 -> août | C10: =SITUAT!G5 -> 0 | D10: 12330000 | E10: -12330000 | F10: =IF(E10=0,"","Un ecart de "&E10&" DZD a été constaté dans le mois de "&B10) -> Un ecart de -12330000 DZD a été constaté dans le mois de août | H10: février | I10: 12335000 | J10: 12330000 | L10: 5000 | M10: =IF(L10=0,"","Un ecart de "&L10&" DZD a été constaté dans le mois de "&H10) -> Un ecart de 5000 DZD a été constaté dans le mois de février | AP10: =#REF! ->  | AQ10: =VALUE(TEXT(#REF!,"jj")) ->  | AR10: =VALUE(TEXT(#REF!,"jj")) ->  | AS10: =VALUE(TEXT(#REF!,"jj")) -> 
B11: =SITUAT!A6 -> septembre | C11: =SITUAT!G6 -> 0 | D11: 12330000 | E11: -12330000 | F11: Un ecart de -12330000 DZD a été constaté dans le mois de septembre | H11: mars | I11: 12335000 | J11: 12330000 | L11: 5000 | M11: Un ecart de 5000 DZD a été constaté dans le mois de mars
B12: =SITUAT!A7 -> octobre | C12: =SITUAT!G7 -> 0 | D12: 12330000 | E12: -12330000 | F12: Un ecart de -12330000 DZD a été constaté dans le mois de octobre | H12: avril | I12: 13000000 | J12: 12330000 | L12: 670000 | M12: Un ecart de 670000 DZD a été constaté dans le mois de avril
B13: =SITUAT!A8 -> novembre | C13: =SITUAT!G8 -> 0 | D13: 12330000 | E13: -12330000 | F13: Un ecart de -12330000 DZD a été constaté dans le mois de novembre | H13: mai | I13: 12335000 | J13: 12330000 | L13: 5000 | M13: Un ecart de 5000 DZD a été constaté dans le mois de mai
B14: =SITUAT!A9 -> décembre | C14: =SITUAT!G9 -> 0 | D14: 12330000 | E14: -12330000 | F14: Un ecart de -12330000 DZD a été constaté dans le mois de décembre | H14: juin | I14: 12335000 | J14: 12330000 | L14: 5000 | M14: Un ecart de 5000 DZD a été constaté dans le mois de juin
B15: =SITUAT!A10 -> janvier | C15: =SITUAT!G10 -> 0 | D15: 12330000 | E15: -12330000 | F15: Un ecart de -12330000 DZD a été constaté dans le mois de janvier | H15: juillet | I15: 12335000 | J15: 12330000 | L15: 5000 | M15: Un ecart de 5000 DZD a été constaté dans le mois de juillet
B16: =SITUAT!A11 -> février | C16: =SITUAT!G11 -> 0 | D16: 12330000 | E16: -12330000 | F16: Un ecart de -12330000 DZD a été constaté dans le mois de février | H16: août | I16: 12335000 | J16: 12330000 | L16: 5000 | M16: Un ecart de 5000 DZD a été constaté dans le mois de août
B17: =SITUAT!A12 -> mars | C17: =SITUAT!G12 -> 0 | D17: 12330000 | E17: -12330000 | F17: Un ecart de -12330000 DZD a été constaté dans le mois de mars | H17: septembre | I17: 12335000 | J17: 12330000 | L17: 5000 | M17: Un ecart de 5000 DZD a été constaté dans le mois de septembre
B18: =SITUAT!A13 -> avril | C18: =SITUAT!G13 -> 0 | D18: 12330000 | E18: -12330000 | F18: Un ecart de -12330000 DZD a été constaté dans le mois de avril | H18: octobre | I18: 12335000 | J18: 12330000 | L18: 5000 | M18: Un ecart de 5000 DZD a été constaté dans le mois de octobre
B19: =SITUAT!A14 -> mai | C19: =SITUAT!G14 -> 0 | D19: 12330000 | E19: -12330000 | F19: Un ecart de -12330000 DZD a été constaté dans le mois de mai | H19: novembre | I19: 12335000 | J19: 12330000 | L19: 5000 | M19: Un ecart de 5000 DZD a été constaté dans le mois de novembre
B20: =SITUAT!A15 -> juin | C20: =SITUAT!G15 -> 0 | D20: 12330000 | E20: -12330000 | F20: Un ecart de -12330000 DZD a été constaté dans le mois de juin | H20: décembre | I20: 12335000 | J20: 12330000 | L20: 5000 | M20: Un ecart de 5000 DZD a été constaté dans le mois de décembre
B21: Total | C21: =SUM(C9:C20) -> 0 | D21: =SUM(D9:D20) -> 147960000 | E21: =SUM(E9:E20) -> -147960000 | F21: Un ecart de -147960000 DZD a été constaté dans le mois de Total | H21: Total | I21: =SUM(I9:I20) -> 148685000 | J21: =SUM(J9:J20) -> 147960000 | L21: =SUM(L9:L20) -> 725000 | M21: Un ecart de 725000 DZD a été constaté dans le mois de Total
B48: Référentiel N°01 | C48: Art.10 du code comptable | G48: Voir detail
B49: Référentiel N°02 | C49: Procédure Interne. Reporting des situations financières de la compagnie. | G49: Voir detail
B50: Référentiel N°03 | C50: Dispositions du contrat de nomination d'agent général. | G50: Voir detail
B52: Constats
B56: Cause N°01
B57: Cause N°02
B58: Cause N°03
B60: Conséquence N°01
B61: Conséquence N°02
B62: Conséquence N°03
B64: Recommandation N°01
B65: Recommandation N°02
B66: Recommandation N°03

Sheet Primes impayees
B8: Mois | C8: Impayées IRIS | D8: Impayées S.F | E8: Ecarts | F8: Observation
B9: =SITUAT!A4 -> juillet | C9: =SITUAT!P4 -> 0 | D9: 12330000 | E9: =C9-D9 -> -12330000 | F9: =IF(E9=0,"","Un ecart de "&E9&" DZD a été constaté dans le mois de "&B9) -> Un ecart de -12330000 DZD a été constaté dans le mois de juillet | AJ9: =#REF! ->  | AK9: =VALUE(TEXT(#REF!,"jj")) ->  | AL9: =VALUE(TEXT(#REF!,"jj")) ->  | AM9: =VALUE(TEXT(#REF!,"jj")) -> 
B10: =SITUAT!A5 -> août | C10: =SITUAT!P5 -> 0 | D10: 12330000 | E10: -12330000 | F10: =IF(E10=0,"","Un ecart de "&E10&" DZD a été constaté dans le mois de "&B10) -> Un ecart de -12330000 DZD a été constaté dans le mois de août | AJ10: =#REF! ->  | AK10: =VALUE(TEXT(#REF!,"jj")) ->  | AL10: =VALUE(TEXT(#REF!,"jj")) ->  | AM10: =VALUE(TEXT(#REF!,"jj")) -> 
B11: =SITUAT!A6 -> septembre | C11: =SITUAT!P6 -> 0 | D11: 12330000 | E11: -12330000 | F11: Un ecart de -12330000 DZD a été constaté dans le mois de septembre
B12: =SITUAT!A7 -> octobre | C12: =SITUAT!P7 -> 0 | D12: 12330000 | E12: -12330000 | F12: Un ecart de -12330000 DZD a été constaté dans le mois de octobre
B13: =SITUAT!A8 -> novembre | C13: =SITUAT!P8 -> 0 | D13: 12330000 | E13: -12330000 | F13: Un ecart de -12330000 DZD a été constaté dans le mois de novembre
B14: =SITUAT!A9 -> décembre | C14: =SITUAT!P9 -> 0 | D14: 12330000 | E14: -12330000 | F14: Un ecart de -12330000 DZD a été constaté dans le mois de décembre
B15: =SITUAT!A10 -> janvier | C15: =SITUAT!P10 -> 0 | D15: 12330000 | E15: -12330000 | F15: Un ecart de -12330000 DZD a été constaté dans le mois de janvier
B16: =SITUAT!A11 -> février | C16: =SITUAT!P11 -> 0 | D16: 12330000 | E16: -12330000 | F16: Un ecart de -12330000 DZD a été constaté dans le mois de février
B17: =SITUAT!A12 -> mars | C17: =SITUAT!P12 -> 0 | D17: 12330000 | E17: -12330000 | F17: Un ecart de -12330000 DZD a été constaté dans le mois de mars
B18: =SITUAT!A13 -> avril | C18: =SITUAT!P13 -> 0 | D18: 12330000 | E18: -12330000 | F18: Un ecart de -12330000 DZD a été constaté dans le mois de avril
B19: =SITUAT!A14 -> mai | C19: =SITUAT!P14 -> 0 | D19: 12330000 | E19: -12330000 | F19: Un ecart de -12330000 DZD a été constaté dans le mois de mai
B20: =SITUAT!A15 -> juin | C20: =SITUAT!P15 -> 0 | D20: 12330000 | E20: -12330000 | F20: Un ecart de -12330000 DZD a été constaté dans le mois de juin
B21: Total | C21: =SUM(C9:C20) -> 0 | D21: =SUM(D9:D20) -> 147960000 | E21: =SUM(E9:E20) -> -147960000 | F21: Un ecart de -147960000 DZD a été constaté dans le mois de Total
B48: Référentiel N°01 | C48: Art.10 du code comptable | G48: Voir detail
B49: Référentiel N°02 | C49: Procédure Interne. Reporting des situations financières de la compagnie. | G49: Voir detail
B50: Référentiel N°03 | C50: Dispositions du contrat de nomination d'agent général. | G50: Voir detail
B52: Constats
B56: Cause N°01
B57: Cause N°02
B58: Cause N°03
B60: Conséquence N°01
B61: Conséquence N°02
B62: Conséquence N°03
B64: Recommandation N°01
B65: Recommandation N°02
B66: Recommandation N°03

Sheet SITUAT
A2: Periode auditée | B2: Ressources | I2: EMPLOIS | V2: ECART ENVOI DE FONDS | W2: VALIDATION COMPTA | X2: DATE
B3: PRODUCTION | C3: RISTOURNE | D3: PRIMES RECOUVREES PAR AGENCE | E3: CHQ Remis à l'encaissement (Crédités) | F3: RECOURS ENCAISSE AGENCE | G3: RECOURS REGLE | H3: SINISTRES et HON. SAISIS NON REGLES | I3: SINISTRES REGLES | J3: HONORAIRES | K3: recours aboutis LIQUIDATION | L3: SINISTRE REGLE DRCE/DG | M3: ata | N3: CHQ remis à l'encaissement (Non crédités) | O3: RECOURS REGLE | P3: PRIMES IMPAYEES | Q3: Frais generaux | R3: G50 | S3: REGULARISATION | T3: TOTAL
A4: juillet | D4: 80000 | Q4: 10197.97 | S4: 3569485.5 | T4: =SUM(I4:S4) -> 3579683.47 | U4: 3979614.97 | V4: =+#REF!-T4 ->  | W4: =T4+V4 ->  | X4: =#REF!-W4 -> 
A5: août | D5: 80000 | Q5: 4720 | T5: 4720 | U5: 363014.14 | V5: =+#REF!-T5 ->  | W5: =T5+V5 ->  | X5: =#REF!-W5 -> 
A6: septembre | D6: 80000 | Q6: 19676.4 | T6: 19676.4 | U6: 2800928.88 | V6: =+#REF!-T6 ->  | X6: =#REF!-W6 -> 
A7: octobre | D7: 80000 | Q7: 3572.06 | T7: 3572.06 | U7: 1920603.23 | V7: =+#REF!-T7 ->  | X7: =#REF!-W7 -> 
A8: novembre | D8: 80000 | S8: 5367221.99 | T8: 5367221.99 | U8: 3111747.76 | V8: =+#REF!-T8 ->  | X8: =#REF!-W8 -> 
A9: décembre | D9: 80000 | Q9: 12603.74 | T9: 12603.74 | U9: 1641864.03 | V9: =+#REF!-T9 ->  | X9: =#REF!-W9 -> 
A10: janvier | D10: 103879.58 | Q10: 1914.13 | S10: 1804955.21 | T10: 1806869.34 | U10: 4086966.37 | V10: =+#REF!-T10 ->  | X10: =#REF!-W10 -> 
A11: février | D11: 200000 | Q11: 42320 | S11: =1711.37+294036.92 -> 295748.29 | T11: 338068.29 | U11: 3252280.71 | V11: =+#REF!-T11 ->  | X11: =#REF!-W11 -> 
A12: mars | D12: 0 | Q12: 5137.1 | S12: 5456567.73 | T12: 5461704.83 | U12: 3745738.41 | V12: =+#REF!-T12 ->  | X12: =#REF!-W12 ->  | Z12: 3745738.41 | AA12: =V12-Z12 -> 
A13: avril | D13: 695954.18 | T13: 0 | U13: 4079356.67 | V13: =+#REF!-T13 ->  | X13: =#REF!-W13 -> 
A14: mai | D14: 0 | Q14: 5963.69 | S14: 3661546.74 | T14: 3667510.43 | U14: 3477545.65 | V14: =+#REF!-T14 ->  | X14: =#REF!-W14 -> 
A15: juin | D15: 105411.65 | Q15: 5743.29 | S15: 45099.82 | T15: 50843.11 | U15: 1103653.34 | V15: =+#REF!-T15 ->  | X15: =#REF!-W15 -> 
A16: TOTAL | B16: =SUM(B4:B15) -> 0 | C16: 0 | D16: 1585245.41 | E16: 0 | F16: 0 | G16: =SUM(G4:G15) -> 0 | H16: 0 | I16: 0 | J16: 0 | K16: 0 | L16: 0 | N16: =SUM(N4:N15) -> 0 | O16: =SUM(O4:O15) -> 0 | P16: =SUM(P4:P15) -> 0 | R16: =SUM(R4:R15) -> 0 | S16: =SUM(S4:S15) -> 20200625.28 | T16: =SUM(T4:T15) -> 20312473.66 | V16: =SUM(V4:V15) ->  | W16: =SUM(W4:W15) ->  | X16: =SUM(X4:X15) -> 
G21: 0 | O21: 0 | P21: 841096.84 | R21: 0 | S21: 232300.5 | T21: 0 | V21: 0 | W21: 0 | X21: 0 | Y21: 0 | Z21: 0 | AA21: 0 | AB21: 0 | AC21: 0 | AD21: 0
I22: =+I16+L16 -> 0
G23: 0 | L23: =+L16+I16 -> 0 | O23: 0
G24: 841096.84 | O24: 841096.84
G25: 0 | O25: 0
G26: 232300.5 | O26: 232300.5
G27: 0 | O27: 0
G28: 0 | O28: 0
G29: 0 | O29: 0
G30: 0 | O30: 0
G31: 0 | O31: 0
G32: 0 | O32: 0
G33: 0 | O33: 0
G34: 0 | O34: 0
G35: 0 | O35: 0
G36: 0 | O36: 0

Sheet Feuil1
A1: Police | B1: Date Souscription | C1: Date Reglement | D1: mois | E1: Assuré | F1: Catégorie | G1: Montant REG | H1: RO RC Taux | I1: RNO Taux | J1: TD Taux | K1: CP Taux | L1: TVA Taux | M1: TG Taux | N1: Assistance Taux | O1: FGA Taux | P1: Taux | Q1: Prime Total | R1: Prime NET Taux | S1: Prime NET Taux
A2: 16113 14 1100 1611 | B2: 09/07/2014 | C2: 25/02/2018 | D2: =TEXT(C2,"mmmm") -> février | E2: ACID NOURREDDINE | F2: S | G2: 23528.54 | H2: 3757.15 | I2: 14150.03 | J2: 40 | K2: 500 | L2: 3129.22 | M2: 1824.43 | N2: 0 | O2: 127.71 | P2: 100 | Q2: 23528.54 | R2: 17907.18 | S2: 17907.18 | T2: juillet | U2: =SUMIF($D$2:$D$5000,T2,$G$2:$G$5000) -> 80000 | V2: =SUMIF($E$2:$E$5000,U2,$H$2:$H$5000) -> 0
A3: 16113 14 1100 1821 | B3: 04/08/2014 | C3: 25/02/2018 | D3: =TEXT(C3,"mmmm") -> février | E3: ACID NOURREDDINE | F3: S | G3: 6479.46 | H3: 225.66 | I3: 4919.04 | J3: 4.16 | K3: 52.05 | L3: 883.45 | M3: 386.76 | N3: 0 | O3: 8.33 | P3: 10.41066256 | Q3: 62238.69 | R3: 5144.7 | S3: 5144.7 | T3: août | U3: =SUMIF($D$2:$D$5000,T3,$G$2:$G$5000) -> 80000 | V3: =SUMIF($E$2:$E$5000,U3,$H$2:$H$5000) -> 0
A4: 16113 14 1100 1823 | B4: 04/08/2014 | C4: 30/06/2018 | D4: juin | E4: ACID NOURREDDINE | F4: S | G4: 105411.65 | H4: 4911.13 | I4: 80108.97 | J4: 40 | K4: 500 | L4: 14538.42 | M4: 5150.8 | N4: 0 | O4: 162.33 | P4: 100 | Q4: 105411.65 | R4: 85020.1 | S4: 85020.1 | T4: septembre | U4: 80000 | V4: 0
A5: 16113 17 1199 0002 | B5: 01/01/2017 | C5: 17/04/2018 | D5: avril | E5: APC AIN BENIAN | F5: I | G5: 695954.18 | H5: 131972.83 | I5: 445631.07 | J5: 1280 | K5: 6400 | L5: 98019.2 | M5: 0 | N5: 8500 | O5: 4151.08 | P5: 100 | Q5: 695954.18 | R5: 586103.9 | S5: 586103.9 | T5: octobre | U5: 80000 | V5: 0
A6: 16113 15 1199 0001 | B6: 06/01/2015 | C6: 19/10/2017 | D6: octobre | E6: APC BOLOGHINE | F6: I | G6: 80000 | H6: 8311.64 | I6: 57398.25 | J6: 82.76 | K6: 620.7 | L6: 11572.97 | M6: 0 | N6: 1745.71 | O6: 267.97 | P6: 12.93117717 | Q6: 618659.84 | R6: 67455.6 | S6: 67455.6 | T6: novembre | U6: 80000 | V6: 0
A7: 16113 14 1199 0001 | B7: 02/01/2014 | C7: 17/07/2017 | D7: juillet | E7: APC BOLOGHINE | F7: I | G7: 80000 | H7: 9003.33 | I7: 58782.01 | J7: 83.46 | K7: 208.66 | L7: 11571.65 | M7: 0 | N7: 74.52 | O7: 276.36 | P7: 14.90416168 | Q7: 536762.83 | R7: 67859.87 | S7: 67859.87 | T7: décembre | U7: 80000 | V7: 0
A8: 16113 15 1199 0001 | B8: 06/01/2015 | C8: 29/11/2017 | D8: novembre | E8: APC BOLOGHINE | F8: I | G8: 80000 | H8: 8311.64 | I8: 57398.25 | J8: 82.76 | K8: 620.7 | L8: 11572.97 | M8: 0 | N8: 1745.71 | O8: 267.97 | P8: 12.93117717 | Q8: 618659.84 | R8: 67455.6 | S8: 67455.6 | T8: janvier | U8: 103879.58 | V8: 0
A9: 16113 15 1199 0001 | B9: 06/01/2015 | C9: 25/02/2018 | D9: février | E9: APC BOLOGHINE | F9: I | G9: 140000 | H9: 14545.38 | I9: 100446.94 | J9: 144.83 | K9: 1086.22 | L9: 20252.7 | M9: 0 | N9: 3054.99 | O9: 468.95 | P9: 22.62956005 | Q9: 618659.84 | R9: 118047.3 | S9: 118047.3 | T9: février | U9: 200000 | V9: 0
A10: 16113 15 1199 0001 | B10: 06/01/2015 | C10: 20/08/2017 | D10: août | E10: APC BOLOGHINE | F10: I | G10: 54780.26 | H10: 5691.42 | I10: 39303.64 | J10: 56.67 | K10: 425.02 | L10: 7924.63 | M10: 0 | N10: 1195.38 | O10: 183.49 | P10: 8.854665595 | Q10: 618659.84 | R10: 46190.44 | S10: 46190.44 | T10: mars | U10: 0 | V10: 0
A11: 16113 14 1199 0001 | B11: 02/01/2014 | C11: 20/08/2017 | D11: août | E11: APC BOLOGHINE | F11: I | G11: 25219.74 | H11: 2838.27 | I11: 18530.84 | J11: 26.31 | K11: 65.78 | L11: 3647.93 | M11: 0 | N11: 23.49 | O11: 87.12 | P11: 4.69848853 | Q11: 536762.83 | R11: 21392.6 | S11: 21392.6 | T11: avril | U11: 695954.18 | V11: 0
A12: 16113 15 1199 0001 | B12: 06/01/2015 | C12: 22/01/2018 | D12: janvier | E12: APC BOLOGHINE | F12: I | G12: 103879.58 | H12: 10792.63 | I12: 74531.33 | J12: 107.46 | K12: 805.97 | L12: 15027.44 | M12: 0 | N12: 2266.79 | O12: 347.96 | P12: 16.79106567 | Q12: 618659.84 | R12: 87590.75 | S12: 87590.75 | T12: mai | U12: 0 | V12: 0
A13: 16113 15 1199 0001 | B13: 06/01/2015 | C13: 24/09/2017 | D13: septembre | E13: APC BOLOGHINE | F13: I | G13: 80000 | H13: 8311.64 | I13: 57398.25 | J13: 82.76 | K13: 620.7 | L13: 11572.97 | M13: 0 | N13: 1745.71 | O13: 267.97 | P13: 12.93117717 | Q13: 618659.84 | R13: 67455.6 | S13: 67455.6 | T13: juin | U13: 105411.65 | V13: 0
A14: 16113 15 1199 0001 | B14: 06/01/2015 | C14: 20/12/2017 | D14: décembre | E14: APC BOLOGHINE | F14: I | G14: 80000 | H14: 8311.64 | I14: 57398.25 | J14: 82.76 | K14: 620.7 | L14: 11572.97 | M14: 0 | N14: 1745.71 | O14: 267.97 | P14: 12.93117717 | Q14: 618659.84 | R14: 67455.6 | S14: 67455.6
A15: 16113 14 3111 0022 | B15: 14/08/2014 | C15: 25/02/2018 | D15: février | E15: ACID NOURREDDINE | F15: S | G15: 29992 | H15: 0 | I15: 0 | J15: 40 | K15: 2000 | L15: 4352 | M15: 0 | N15: 0 | O15: 0 | P15: 100 | Q15: 29992 | R15: 23600 | S15: 23600

Sheet Relv
A1: DATE
A2: 43304
A3: 43298
A4: 43298
A5: 43298
A6: 43298
A7: 43297
A8: 43297
A9: 43297
A10: 43297
A11: 43297
A12: 43297
A13: 43297
A14: 43297
A15: 43297
A16: 43297
A17: 43297
A18: 43297
A19: 43297
A20: 43297
A21: 43297
A22: 43297
A23: 43296
A24: 43296
A25: 43296
A26: 43296
A27: 43296
A28: 43296
A29: 43296
A30: 43296
A31: 43296
A32: 43296
A33: 43296
A34: 43296
A35: 43296
A36: 43296
A37: 43296
A38: 43293
A39: 43293
A40: 43293
A41: 43291
A42: 43291
A43: 43291
A44: 43291
A45: 43290
A46: 43290
A47: 43290
A48: 43289
A49: 43289
A50: 43289
A51: 43289
A52: 43285
A53: 43285
A54: 43285
A55: 43285
A56: 43285
A57: 43285
A58: 43285
A59: 43285
A60: 43285
A61: 43285
A62: 43285
A63: 43285
A64: 43285
A65: 43285
A66: 43285
A67: 43285
A68: 43285
A69: 43285
A70: 43284
A71: 43283
A72: 43283
A73: 43283
A74: 43282
A75: 43282
A76: 43282
A77: 43282
A78: 43282
A79: 43282
A80: 43282
A81: 43282
A82: 43282
A83: 43282
A84: 43282
A85: 43282
A86: 43282
A87: 43282
A88: 43278
A89: 43278
A90: 43278
A91: 43277
A92: 43277
A93: 43277
A94: 43277
A95: 43276
A96: 43276
A97: 43276
A98: 43276
A99: 43276
A100: 43276
A101: 43276
A102: 43272
A103: 43272
A104: 43272
A105: 43270
A106: 43270
A107: 43270
A108: 43269
A109: 43269
A110: 43269
A111: 43268
A112: 43268
A113: 43268
A114: 43268
A115: 43268
A116: 43268
A117: 43268
A118: 43268
A119: 43268
A120: 43265
A121: 43265
A122: 43265
A123: 43265
A124: 43265
A125: 43265
A126: 43265
A127: 43265
A128: 43265
A129: 43265
A130: 43265
A131: 43265
A132: 43265
A133: 43265
A134: 43265
A135: 43265
A136: 43265
A137: 43265
A138: 43265
A139: 43265
A140: 43265
A141: 43264
A142: 43264
A143: 43264
A144: 43264
A145: 43264
A146: 43264
A147: 43263
A148: 43263
A149: 43263
A150: 43263
A151: 43263
A152: 43263
A153: 43263
A154: 43263
A155: 43263
A156: 43263
A157: 43261
A158: 43261
A159: 43261
A160: 43261
A161: 43261
A162: 43261
A163: 43257
A164: 43257
A165: 43257
A166: 43257
A167: 43256
A168: 43256
A169: 43256
A170: 43256
A171: 43256
A172: 43256
A173: 43256
A174: 43255
A175: 43255
A176: 43255
A177: 43255
A178: 43255
A179: 43255
A180: 43254
A181: 43254
A182: 43254
A183: 43254
A184: 43254
A185: 43254
A186: 43254
A187: 43254
A188: 43254
A189: 43132
A190: 43132
A191: 43132
A192: 43132
A193: 43131
A194: 43131
A195: 43131
A196: 43131
A197: 43131
A198: 43131
A199: 43130
A200: 43130
... 47 more rows

Sheet Base
A1: Police | B1: Date Souscription | C1: Date Reglement | D1: Colonne1 | E1: Assuré | F1: Montant REG | G1: Taux | H1: Prime Total | I1: Durée | J1: Classe | K1: produit | L1: Branche | M1: Nom du produit | N1: Type du client
A2: 16113 14 1100 1611 | B2: 09/07/2014 | C2: 25/02/2018 | D2: =Tableau2[[#This Row],[Police]]&Tableau2[[#This Row],[Date Reglement]] -> 16113 14 1100 161125/02/2018 | E2: ACID NOURREDDINE | F2: 23528.54 | G2: 100 | H2: 23528.54 | I2: =DATEDIF(Tableau2[[#This Row],[Date Souscription]],Tableau2[[#This Row],[Date Reglement]],"m")/12 -> 3.583333333 | J2: =IF(Tableau2[[#This Row],[Prime Total]]="","",VALUE(MID(Tableau2[[#This Row],[Police]],10,2))) -> 11 | K2: =IF(Tableau2[[#This Row],[Prime Total]]="","",VALUE(MID(Tableau2[[#This Row],[Police]],10,4))) -> 1100 | L2: =IF(Tableau2[[#This Row],[Prime Total]]="","",VLOOKUP(Tableau2[[#This Row],[Classe]],baseproduit,2,FALSE)) -> Automobile | M2: =IF(Tableau2[[#This Row],[Prime Total]]="","",VLOOKUP(Tableau2[[#This Row],[produit]],baseprofdetail,2)) -> Automobile Particulier | N2: =IF(Tableau2[[#This Row],[Prime Total]]="","",VLOOKUP(Tableau2[[#This Row],[produit]],baseprofdetail,3)) -> particulier
A3: 16113 14 1100 1821 | B3: 04/08/2014 | C3: 25/02/2018 | D3: =Tableau2[[#This Row],[Police]]&Tableau2[[#This Row],[Date Reglement]] -> 16113 14 1100 182125/02/2018 | E3: ACID NOURREDDINE | F3: 6479.46 | G3: 10.41066256 | H3: 62238.69 | I3: =DATEDIF(Tableau2[[#This Row],[Date Souscription]],Tableau2[[#This Row],[Date Reglement]],"m")/12 -> 3.5 | J3: =IF(Tableau2[[#This Row],[Prime Total]]="","",VALUE(MID(Tableau2[[#This Row],[Police]],10,2))) -> 11 | K3: =IF(Tableau2[[#This Row],[Prime Total]]="","",VALUE(MID(Tableau2[[#This Row],[Police]],10,4))) -> 1100 | L3: =IF(Tableau2[[#This Row],[Prime Total]]="","",VLOOKUP(Tableau2[[#This Row],[Classe]],baseproduit,2,FALSE)) -> Automobile | M3: =IF(Tableau2[[#This Row],[Prime Total]]="","",VLOOKUP(Tableau2[[#This Row],[produit]],baseprofdetail,2)) -> Automobile Particulier | N3: =IF(Tableau2[[#This Row],[Prime Total]]="","",VLOOKUP(Tableau2[[#This Row],[produit]],baseprofdetail,3)) -> particulier
A4: 16113 14 1100 1823 | B4: 04/08/2014 | C4: 30/06/2018 | D4: =Tableau2[[#This Row],[Police]]&Tableau2[[#This Row],[Date Reglement]] -> 16113 14 1100 182330/06/2018 | E4: ACID NOURREDDINE | F4: 105411.65 | G4: 100 | H4: 105411.65 | I4: =DATEDIF(Tableau2[[#This Row],[Date Souscription]],Tableau2[[#This Row],[Date Reglement]],"m")/12 -> 3.833333333 | J4: =IF(Tableau2[[#This Row],[Prime Total]]="","",VALUE(MID(Tableau2[[#This Row],[Police]],10,2))) -> 11 | K4: =IF(Tableau2[[#This Row],[Prime Total]]="","",VALUE(MID(Tableau2[[#This Row],[Police]],10,4))) -> 1100 | L4: =IF(Tableau2[[#This Row],[Prime Total]]="","",VLOOKUP(Tableau2[[#This Row],[Classe]],baseproduit,2,FALSE)) -> Automobile | M4: =IF(Tableau2[[#This Row],[Prime Total]]="","",VLOOKUP(Tableau2[[#This Row],[produit]],baseprofdetail,2)) -> Automobile Particulier | N4: =IF(Tableau2[[#This Row],[Prime Total]]="","",VLOOKUP(Tableau2[[#This Row],[produit]],baseprofdetail,3)) -> particulier
A5: 16113 14 1199 0001 | B5: 02/01/2014 | C5: 14/06/2017 | D5: =Tableau2[[#This Row],[Police]]&Tableau2[[#This Row],[Date Reglement]] -> 16113 14 1199 000114/06/2017 | E5: APC BOLOGHINE | F5: 80000 | G5: 14.90416168 | H5: 536762.83 | I5: =DATEDIF(Tableau2[[#This Row],[Date Souscription]],Tableau2[[#This Row],[Date Reglement]],"m")/12 -> 3.416666667 | J5: =IF(Tableau2[[#This Row],[Prime Total]]="","",VALUE(MID(Tableau2[[#This Row],[Police]],10,2))) -> 11 | K5: =IF(Tableau2[[#This Row],[Prime Total]]="","",VALUE(MID(Tableau2[[#This Row],[Police]],10,4))) -> 1199 | L5: =IF(Tableau2[[#This Row],[Prime Total]]="","",VLOOKUP(Tableau2[[#This Row],[Classe]],baseproduit,2,FALSE)) -> Automobile | M5: =IF(Tableau2[[#This Row],[Prime Total]]="","",VLOOKUP(Tableau2[[#This Row],[produit]],baseprofdetail,2)) -> Automobile Flotte | N5: =IF(Tableau2[[#This Row],[Prime Total]]="","",VLOOKUP(Tableau2[[#This Row],[produit]],baseprofdetail,3)) -> entreprise
A6: 16113 14 1199 0001 | B6: 02/01/2014 | C6: 14/06/2017 | D6: =Tableau2[[#This Row],[Police]]&Tableau2[[#This Row],[Date Reglement]] -> 16113 14 1199 000114/06/2017 | E6: APC BOLOGHINE | F6: 25219.74 | G6: 4.69848853 | H6: 536762.83 | I6: =DATEDIF(Tableau2[[#This Row],[Date Souscription]],Tableau2[[#This Row],[Date Reglement]],"m")/12 -> 3.416666667 | J6: =IF(Tableau2[[#This Row],[Prime Total]]="","",VALUE(MID(Tableau2[[#This Row],[Police]],10,2))) -> 11 | K6: =IF(Tableau2[[#This Row],[Prime Total]]="","",VALUE(MID(Tableau2[[#This Row],[Police]],10,4))) -> 1199 | L6: =IF(Tableau2[[#This Row],[Prime Total]]="","",VLOOKUP(Tableau2[[#This Row],[Classe]],baseproduit,2,FALSE)) -> Automobile | M6: =IF(Tableau2[[#This Row],[Prime Total]]="","",VLOOKUP(Tableau2[[#This Row],[produit]],baseprofdetail,2)) -> Automobile Flotte | N6: =IF(Tableau2[[#This Row],[Prime Total]]="","",VLOOKUP(Tableau2[[#This Row],[produit]],baseprofdetail,3)) -> entreprise
A7: 16113 14 1199 0001 | B7: 02/01/2014 | C7: 14/06/2017 | D7: =Tableau2[[#This Row],[Police]]&Tableau2[[#This Row],[Date Reglement]] -> 16113 14 1199 000114/06/2017 | E7: APC BOLOGHINE | F7: 80000 | G7: 14.90416168 | H7: 536762.83 | I7: =DATEDIF(Tableau2[[#This Row],[Date Souscription]],Tableau2[[#This Row],[Date Reglement]],"m")/12 -> 3.416666667 | J7: =IF(Tableau2[[#This Row],[Prime Total]]="","",VALUE(MID(Tableau2[[#This Row],[Police]],10,2))) -> 11 | K7: =IF(Tableau2[[#This Row],[Prime Total]]="","",VALUE(MID(Tableau2[[#This Row],[Police]],10,4))) -> 1199 | L7: =IF(Tableau2[[#This Row],[Prime Total]]="","",VLOOKUP(Tableau2[[#This Row],[Classe]],baseproduit,2,FALSE)) -> Automobile | M7: =IF(Tableau2[[#This Row],[Prime Total]]="","",VLOOKUP(Tableau2[[#This Row],[produit]],baseprofdetail,2)) -> Automobile Flotte | N7: =IF(Tableau2[[#This Row],[Prime Total]]="","",VLOOKUP(Tableau2[[#This Row],[produit]],baseprofdetail,3)) -> entreprise
A8: 16113 14 1199 0001 | B8: 02/01/2014 | C8: 14/06/2017 | D8: =Tableau2[[#This Row],[Police]]&Tableau2[[#This Row],[Date Reglement]] -> 16113 14 1199 000114/06/2017 | E8: APC BOLOGHINE | F8: 80000 | G8: 14.90416168 | H8: 536762.83 | I8: =DATEDIF(Tableau2[[#This Row],[Date Souscription]],Tableau2[[#This Row],[Date Reglement]],"m")/12 -> 3.416666667 | J8: =IF(Tableau2[[#This Row],[Prime Total]]="","",VALUE(MID(Tableau2[[#This Row],[Police]],10,2))) -> 11 | K8: =IF(Tableau2[[#This Row],[Prime Total]]="","",VALUE(MID(Tableau2[[#This Row],[Police]],10,4))) -> 1199 | L8: =IF(Tableau2[[#This Row],[Prime Total]]="","",VLOOKUP(Tableau2[[#This Row],[Classe]],baseproduit,2,FALSE)) -> Automobile | M8: =IF(Tableau2[[#This Row],[Prime Total]]="","",VLOOKUP(Tableau2[[#This Row],[produit]],baseprofdetail,2)) -> Automobile Flotte | N8: =IF(Tableau2[[#This Row],[Prime Total]]="","",VLOOKUP(Tableau2[[#This Row],[produit]],baseprofdetail,3)) -> entreprise
A9: 16113 17 1199 0002 | B9: 01/01/2017 | C9: 17/04/2018 | D9: =Tableau2[[#This Row],[Police]]&Tableau2[[#This Row],[Date Reglement]] -> 16113 17 1199 000217/04/2018 | E9: APC AIN BENIAN | F9: 695954.18 | G9: 100 | H9: 695954.18 | I9: =DATEDIF(Tableau2[[#This Row],[Date Souscription]],Tableau2[[#This Row],[Date Reglement]],"m")/12 -> 1.25 | J9: =IF(Tableau2[[#This Row],[Prime Total]]="","",VALUE(MID(Tableau2[[#This Row],[Police]],10,2))) -> 11 | K9: =IF(Tableau2[[#This Row],[Prime Total]]="","",VALUE(MID(Tableau2[[#This Row],[Police]],10,4))) -> 1199 | L9: =IF(Tableau2[[#This Row],[Prime Total]]="","",VLOOKUP(Tableau2[[#This Row],[Classe]],baseproduit,2,FALSE)) -> Automobile | M9: =IF(Tableau2[[#This Row],[Prime Total]]="","",VLOOKUP(Tableau2[[#This Row],[produit]],baseprofdetail,2)) -> Automobile Flotte | N9: =IF(Tableau2[[#This Row],[Prime Total]]="","",VLOOKUP(Tableau2[[#This Row],[produit]],baseprofdetail,3)) -> entreprise
A10: 16113 15 1199 0001 | B10: 06/01/2015 | C10: 20/12/2017 | D10: =Tableau2[[#This Row],[Police]]&Tableau2[[#This Row],[Date Reglement]] -> 16113 15 1199 000120/12/2017 | E10: APC BOLOGHINE | F10: 80000 | G10: 12.93117717 | H10: 618659.84 | I10: =DATEDIF(Tableau2[[#This Row],[Date Souscription]],Tableau2[[#This Row],[Date Reglement]],"m")/12 -> 2.916666667 | J10: =IF(Tableau2[[#This Row],[Prime Total]]="","",VALUE(MID(Tableau2[[#This Row],[Police]],10,2))) -> 11 | K10: =IF(Tableau2[[#This Row],[Prime Total]]="","",VALUE(MID(Tableau2[[#This Row],[Police]],10,4))) -> 1199 | L10: =IF(Tableau2[[#This Row],[Prime Total]]="","",VLOOKUP(Tableau2[[#This Row],[Classe]],baseproduit,2,FALSE)) -> Automobile | M10: =IF(Tableau2[[#This Row],[Prime Total]]="","",VLOOKUP(Tableau2[[#This Row],[produit]],baseprofdetail,2)) -> Automobile Flotte | N10: =IF(Tableau2[[#This Row],[Prime Total]]="","",VLOOKUP(Tableau2[[#This Row],[produit]],baseprofdetail,3)) -> entreprise
A11: 16113 14 1199 0001 | B11: 02/01/2014 | C11: 17/07/2017 | D11: =Tableau2[[#This Row],[Police]]&Tableau2[[#This Row],[Date Reglement]] -> 16113 14 1199 000117/07/2017 | E11: APC BOLOGHINE | F11: 80000 | G11: 14.90416168 | H11: 536762.83 | I11: =DATEDIF(Tableau2[[#This Row],[Date Souscription]],Tableau2[[#This Row],[Date Reglement]],"m")/12 -> 3.5 | J11: =IF(Tableau2[[#This Row],[Prime Total]]="","",VALUE(MID(Tableau2[[#This Row],[Police]],10,2))) -> 11 | K11: =IF(Tableau2[[#This Row],[Prime Total]]="","",VALUE(MID(Tableau2[[#This Row],[Police]],10,4))) -> 1199 | L11: =IF(Tableau2[[#This Row],[Prime Total]]="","",VLOOKUP(Tableau2[[#This Row],[Classe]],baseproduit,2,FALSE)) -> Automobile | M11: =IF(Tableau2[[#This Row],[Prime Total]]="","",VLOOKUP(Tableau2[[#This Row],[produit]],baseprofdetail,2)) -> Automobile Flotte | N11: =IF(Tableau2[[#This Row],[Prime Total]]="","",VLOOKUP(Tableau2[[#This Row],[produit]],baseprofdetail,3)) -> entreprise
A12: 16113 15 1199 0001 | B12: 06/01/2015 | C12: 29/11/2017 | D12: =Tableau2[[#This Row],[Police]]&Tableau2[[#This Row],[Date Reglement]] -> 16113 15 1199 000129/11/2017 | E12: APC BOLOGHINE | F12: 80000 | G12: 12.93117717 | H12: 618659.84 | I12: =DATEDIF(Tableau2[[#This Row],[Date Souscription]],Tableau2[[#This Row],[Date Reglement]],"m")/12 -> 2.833333333 | J12: =IF(Tableau2[[#This Row],[Prime Total]]="","",VALUE(MID(Tableau2[[#This Row],[Police]],10,2))) -> 11 | K12: =IF(Tableau2[[#This Row],[Prime Total]]="","",VALUE(MID(Tableau2[[#This Row],[Police]],10,4))) -> 1199 | L12: =IF(Tableau2[[#This Row],[Prime Total]]="","",VLOOKUP(Tableau2[[#This Row],[Classe]],baseproduit,2,FALSE)) -> Automobile | M12: =IF(Tableau2[[#This Row],[Prime Total]]="","",VLOOKUP(Tableau2[[#This Row],[produit]],baseprofdetail,2)) -> Automobile Flotte | N12: =IF(Tableau2[[#This Row],[Prime Total]]="","",VLOOKUP(Tableau2[[#This Row],[produit]],baseprofdetail,3)) -> entreprise
A13: 16113 15 1199 0001 | B13: 06/01/2015 | C13: 25/02/2018 | D13: =Tableau2[[#This Row],[Police]]&Tableau2[[#This Row],[Date Reglement]] -> 16113 15 1199 000125/02/2018 | E13: APC BOLOGHINE | F13: 140000 | G13: 22.62956005 | H13: 618659.84 | I13: =DATEDIF(Tableau2[[#This Row],[Date Souscription]],Tableau2[[#This Row],[Date Reglement]],"m")/12 -> 3.083333333 | J13: =IF(Tableau2[[#This Row],[Prime Total]]="","",VALUE(MID(Tableau2[[#This Row],[Police]],10,2))) -> 11 | K13: =IF(Tableau2[[#This Row],[Prime Total]]="","",VALUE(MID(Tableau2[[#This Row],[Police]],10,4))) -> 1199 | L13: =IF(Tableau2[[#This Row],[Prime Total]]="","",VLOOKUP(Tableau2[[#This Row],[Classe]],baseproduit,2,FALSE)) -> Automobile | M13: =IF(Tableau2[[#This Row],[Prime Total]]="","",VLOOKUP(Tableau2[[#This Row],[produit]],baseprofdetail,2)) -> Automobile Flotte | N13: =IF(Tableau2[[#This Row],[Prime Total]]="","",VLOOKUP(Tableau2[[#This Row],[produit]],baseprofdetail,3)) -> entreprise
A14: 16113 15 1199 0001 | B14: 06/01/2015 | C14: 20/08/2017 | D14: =Tableau2[[#This Row],[Police]]&Tableau2[[#This Row],[Date Reglement]] -> 16113 15 1199 000120/08/2017 | E14: APC BOLOGHINE | F14: 54780.26 | G14: 8.854665595 | H14: 618659.84 | I14: =DATEDIF(Tableau2[[#This Row],[Date Souscription]],Tableau2[[#This Row],[Date Reglement]],"m")/12 -> 2.583333333 | J14: =IF(Tableau2[[#This Row],[Prime Total]]="","",VALUE(MID(Tableau2[[#This Row],[Police]],10,2))) -> 11 | K14: =IF(Tableau2[[#This Row],[Prime Total]]="","",VALUE(MID(Tableau2[[#This Row],[Police]],10,4))) -> 1199 | L14: =IF(Tableau2[[#This Row],[Prime Total]]="","",VLOOKUP(Tableau2[[#This Row],[Classe]],baseproduit,2,FALSE)) -> Automobile | M14: =IF(Tableau2[[#This Row],[Prime Total]]="","",VLOOKUP(Tableau2[[#This Row],[produit]],baseprofdetail,2)) -> Automobile Flotte | N14: =IF(Tableau2[[#This Row],[Prime Total]]="","",VLOOKUP(Tableau2[[#This Row],[produit]],baseprofdetail,3)) -> entreprise
A15: 16113 14 1199 0001 | B15: 02/01/2014 | C15: 23/02/2017 | D15: =Tableau2[[#This Row],[Police]]&Tableau2[[#This Row],[Date Reglement]] -> 16113 14 1199 000123/02/2017 | E15: APC BOLOGHINE | F15: 111543.09 | G15: 20.78070309 | H15: 536762.83 | I15: =DATEDIF(Tableau2[[#This Row],[Date Souscription]],Tableau2[[#This Row],[Date Reglement]],"m")/12 -> 3.083333333 | J15: =IF(Tableau2[[#This Row],[Prime Total]]="","",VALUE(MID(Tableau2[[#This Row],[Police]],10,2))) -> 11 | K15: =IF(Tableau2[[#This Row],[Prime Total]]="","",VALUE(MID(Tableau2[[#This Row],[Police]],10,4))) -> 1199 | L15: =IF(Tableau2[[#This Row],[Prime Total]]="","",VLOOKUP(Tableau2[[#This Row],[Classe]],baseproduit,2,FALSE)) -> Automobile | M15: =IF(Tableau2[[#This Row],[Prime Total]]="","",VLOOKUP(Tableau2[[#This Row],[produit]],baseprofdetail,2)) -> Automobile Flotte | N15: =IF(Tableau2[[#This Row],[Prime Total]]="","",VLOOKUP(Tableau2[[#This Row],[produit]],baseprofdetail,3)) -> entreprise
A16: 16113 14 1199 0001 | B16: 02/01/2014 | C16: 26/03/2017 | D16: =Tableau2[[#This Row],[Police]]&Tableau2[[#This Row],[Date Reglement]] -> 16113 14 1199 000126/03/2017 | E16: APC BOLOGHINE | F16: 80000 | G16: 14.90416168 | H16: 536762.83 | I16: =DATEDIF(Tableau2[[#This Row],[Date Souscription]],Tableau2[[#This Row],[Date Reglement]],"m")/12 -> 3.166666667 | J16: =IF(Tableau2[[#This Row],[Prime Total]]="","",VALUE(MID(Tableau2[[#This Row],[Police]],10,2))) -> 11 | K16: =IF(Tableau2[[#This Row],[Prime Total]]="","",VALUE(MID(Tableau2[[#This Row],[Police]],10,4))) -> 1199 | L16: =IF(Tableau2[[#This Row],[Prime Total]]="","",VLOOKUP(Tableau2[[#This Row],[Classe]],baseproduit,2,FALSE)) -> Automobile | M16: =IF(Tableau2[[#This Row],[Prime Total]]="","",VLOOKUP(Tableau2[[#This Row],[produit]],baseprofdetail,2)) -> Automobile Flotte | N16: =IF(Tableau2[[#This Row],[Prime Total]]="","",VLOOKUP(Tableau2[[#This Row],[produit]],baseprofdetail,3)) -> entreprise
A17: 16113 15 1199 0001 | B17: 06/01/2015 | C17: 24/09/2017 | D17: =Tableau2[[#This Row],[Police]]&Tableau2[[#This Row],[Date Reglement]] -> 16113 15 1199 000124/09/2017 | E17: APC BOLOGHINE | F17: 80000 | G17: 12.93117717 | H17: 618659.84 | I17: =DATEDIF(Tableau2[[#This Row],[Date Souscription]],Tableau2[[#This Row],[Date Reglement]],"m")/12 -> 2.666666667 | J17: =IF(Tableau2[[#This Row],[Prime Total]]="","",VALUE(MID(Tableau2[[#This Row],[Police]],10,2))) -> 11 | K17: =IF(Tableau2[[#This Row],[Prime Total]]="","",VALUE(MID(Tableau2[[#This Row],[Police]],10,4))) -> 1199 | L17: =IF(Tableau2[[#This Row],[Prime Total]]="","",VLOOKUP(Tableau2[[#This Row],[Classe]],baseproduit,2,FALSE)) -> Automobile | M17: =IF(Tableau2[[#This Row],[Prime Total]]="","",VLOOKUP(Tableau2[[#This Row],[produit]],baseprofdetail,2)) -> Automobile Flotte | N17: =IF(Tableau2[[#This Row],[Prime Total]]="","",VLOOKUP(Tableau2[[#This Row],[produit]],baseprofdetail,3)) -> entreprise
A18: 16113 15 1199 0001 | B18: 06/01/2015 | C18: 22/01/2018 | D18: =Tableau2[[#This Row],[Police]]&Tableau2[[#This Row],[Date Reglement]] -> 16113 15 1199 000122/01/2018 | E18: APC BOLOGHINE | F18: 103879.58 | G18: 16.79106567 | H18: 618659.84 | I18: =DATEDIF(Tableau2[[#This Row],[Date Souscription]],Tableau2[[#This Row],[Date Reglement]],"m")/12 -> 3 | J18: =IF(Tableau2[[#This Row],[Prime Total]]="","",VALUE(MID(Tableau2[[#This Row],[Police]],10,2))) -> 11 | K18: =IF(Tableau2[[#This Row],[Prime Total]]="","",VALUE(MID(Tableau2[[#This Row],[Police]],10,4))) -> 1199 | L18: =IF(Tableau2[[#This Row],[Prime Total]]="","",VLOOKUP(Tableau2[[#This Row],[Classe]],baseproduit,2,FALSE)) -> Automobile | M18: =IF(Tableau2[[#This Row],[Prime Total]]="","",VLOOKUP(Tableau2[[#This Row],[produit]],baseprofdetail,2)) -> Automobile Flotte | N18: =IF(Tableau2[[#This Row],[Prime Total]]="","",VLOOKUP(Tableau2[[#This Row],[produit]],baseprofdetail,3)) -> entreprise
A19: 16113 13 1199 0001 | B19: 02/01/2013 | C19: 31/01/2017 | D19: =Tableau2[[#This Row],[Police]]&Tableau2[[#This Row],[Date Reglement]] -> 16113 13 1199 000131/01/2017 | E19: BOLOGHINE BOLOGHINE | F19: 100000 | G19: 16.30606377 | H19: 613268.79 | I19: =DATEDIF(Tableau2[[#This Row],[Date Souscription]],Tableau2[[#This Row],[Date Reglement]],"m")/12 -> 4 | J19: =IF(Tableau2[[#This Row],[Prime Total]]="","",VALUE(MID(Tableau2[[#This Row],[Police]],10,2))) -> 11 | K19: =IF(Tableau2[[#This Row],[Prime Total]]="","",VALUE(MID(Tableau2[[#This Row],[Police]],10,4))) -> 1199 | L19: =IF(Tableau2[[#This Row],[Prime Total]]="","",VLOOKUP(Tableau2[[#This Row],[Classe]],baseproduit,2,FALSE)) -> Automobile | M19: =IF(Tableau2[[#This Row],[Prime Total]]="","",VLOOKUP(Tableau2[[#This Row],[produit]],baseprofdetail,2)) -> Automobile Flotte | N19: =IF(Tableau2[[#This Row],[Prime Total]]="","",VLOOKUP(Tableau2[[#This Row],[produit]],baseprofdetail,3)) -> entreprise
A20: 16113 15 1199 0001 | B20: 06/01/2015 | C20: 19/10/2017 | D20: =Tableau2[[#This Row],[Police]]&Tableau2[[#This Row],[Date Reglement]] -> 16113 15 1199 000119/10/2017 | E20: APC BOLOGHINE | F20: 80000 | G20: 12.93117717 | H20: 618659.84 | I20: =DATEDIF(Tableau2[[#This Row],[Date Souscription]],Tableau2[[#This Row],[Date Reglement]],"m")/12 -> 2.75 | J20: =IF(Tableau2[[#This Row],[Prime Total]]="","",VALUE(MID(Tableau2[[#This Row],[Police]],10,2))) -> 11 | K20: =IF(Tableau2[[#This Row],[Prime Total]]="","",VALUE(MID(Tableau2[[#This Row],[Police]],10,4))) -> 1199 | L20: =IF(Tableau2[[#This Row],[Prime Total]]="","",VLOOKUP(Tableau2[[#This Row],[Classe]],baseproduit,2,FALSE)) -> Automobile | M20: =IF(Tableau2[[#This Row],[Prime Total]]="","",VLOOKUP(Tableau2[[#This Row],[produit]],baseprofdetail,2)) -> Automobile Flotte | N20: =IF(Tableau2[[#This Row],[Prime Total]]="","",VLOOKUP(Tableau2[[#This Row],[produit]],baseprofdetail,3)) -> entreprise
A21: 16113 13 1199 0001 | B21: 02/01/2013 | C21: 19/02/2017 | D21: =Tableau2[[#This Row],[Police]]&Tableau2[[#This Row],[Date Reglement]] -> 16113 13 1199 000119/02/2017 | E21: BOLOGHINE BOLOGHINE | F21: 38456.91 | G21: 6.27080827 | H21: 613268.79 | I21: =DATEDIF(Tableau2[[#This Row],[Date Souscription]],Tableau2[[#This Row],[Date Reglement]],"m")/12 -> 4.083333333 | J21: =IF(Tableau2[[#This Row],[Prime Total]]="","",VALUE(MID(Tableau2[[#This Row],[Police]],10,2))) -> 11 | K21: =IF(Tableau2[[#This Row],[Prime Total]]="","",VALUE(MID(Tableau2[[#This Row],[Police]],10,4))) -> 1199 | L21: =IF(Tableau2[[#This Row],[Prime Total]]="","",VLOOKUP(Tableau2[[#This Row],[Classe]],baseproduit,2,FALSE)) -> Automobile | M21: =IF(Tableau2[[#This Row],[Prime Total]]="","",VLOOKUP(Tableau2[[#This Row],[produit]],baseprofdetail,2)) -> Automobile Flotte | N21: =IF(Tableau2[[#This Row],[Prime Total]]="","",VLOOKUP(Tableau2[[#This Row],[produit]],baseprofdetail,3)) -> entreprise
A22: 16113 14 3111 0022 | B22: 14/08/2014 | C22: 25/02/2018 | D22: =Tableau2[[#This Row],[Police]]&Tableau2[[#This Row],[Date Reglement]] -> 16113 14 3111 002225/02/2018 | E22: ACID NOURREDDINE | F22: 29992 | G22: 100 | H22: 29992 | I22: =DATEDIF(Tableau2[[#This Row],[Date Souscription]],Tableau2[[#This Row],[Date Reglement]],"m")/12 -> 3.5 | J22: =IF(Tableau2[[#This Row],[Prime Total]]="","",VALUE(MID(Tableau2[[#This Row],[Police]],10,2))) -> 31 | K22: =IF(Tableau2[[#This Row],[Prime Total]]="","",VALUE(MID(Tableau2[[#This Row],[Police]],10,4))) -> 3111 | L22: =IF(Tableau2[[#This Row],[Prime Total]]="","",VLOOKUP(Tableau2[[#This Row],[Classe]],baseproduit,2,FALSE)) -> Transport Terrestre | M22: =IF(Tableau2[[#This Row],[Prime Total]]="","",VLOOKUP(Tableau2[[#This Row],[produit]],baseprofdetail,2)) -> RC voiturier | N22: =IF(Tableau2[[#This Row],[Prime Total]]="","",VLOOKUP(Tableau2[[#This Row],[produit]],baseprofdetail,3)) -> entreprise
D23: =Tableau2[[#This Row],[Police]]&Tableau2[[#This Row],[Date Reglement]] ->  | I23: =DATEDIF(Tableau2[[#This Row],[Date Souscription]],Tableau2[[#This Row],[Date Reglement]],"m")/12 -> 0 | J23: =IF(Tableau2[[#This Row],[Prime Total]]="","",VALUE(MID(Tableau2[[#This Row],[Police]],10,2))) ->  | K23: =IF(Tableau2[[#This Row],[Prime Total]]="","",VALUE(MID(Tableau2[[#This Row],[Police]],10,4))) ->  | L23: =IF(Tableau2[[#This Row],[Prime Total]]="","",VLOOKUP(Tableau2[[#This Row],[Classe]],baseproduit,2,FALSE)) ->  | M23: =IF(Tableau2[[#This Row],[Prime Total]]="","",VLOOKUP(Tableau2[[#This Row],[produit]],baseprofdetail,2)) ->  | N23: =IF(Tableau2[[#This Row],[Prime Total]]="","",VLOOKUP(Tableau2[[#This Row],[produit]],baseprofdetail,3)) -> 
D24: =Tableau2[[#This Row],[Police]]&Tableau2[[#This Row],[Date Reglement]] ->  | I24: =DATEDIF(Tableau2[[#This Row],[Date Souscription]],Tableau2[[#This Row],[Date Reglement]],"m")/12 -> 0 | J24: =IF(Tableau2[[#This Row],[Prime Total]]="","",VALUE(MID(Tableau2[[#This Row],[Police]],10,2))) ->  | K24: =IF(Tableau2[[#This Row],[Prime Total]]="","",VALUE(MID(Tableau2[[#This Row],[Police]],10,4))) ->  | L24: =IF(Tableau2[[#This Row],[Prime Total]]="","",VLOOKUP(Tableau2[[#This Row],[Classe]],baseproduit,2,FALSE)) ->  | M24: =IF(Tableau2[[#This Row],[Prime Total]]="","",VLOOKUP(Tableau2[[#This Row],[produit]],baseprofdetail,2)) ->  | N24: =IF(Tableau2[[#This Row],[Prime Total]]="","",VLOOKUP(Tableau2[[#This Row],[produit]],baseprofdetail,3)) -> 
D25: =Tableau2[[#This Row],[Police]]&Tableau2[[#This Row],[Date Reglement]] ->  | I25: =DATEDIF(Tableau2[[#This Row],[Date Souscription]],Tableau2[[#This Row],[Date Reglement]],"m")/12 -> 0 | J25: =IF(Tableau2[[#This Row],[Prime Total]]="","",VALUE(MID(Tableau2[[#This Row],[Police]],10,2))) ->  | K25: =IF(Tableau2[[#This Row],[Prime Total]]="","",VALUE(MID(Tableau2[[#This Row],[Police]],10,4))) ->  | L25: =IF(Tableau2[[#This Row],[Prime Total]]="","",VLOOKUP(Tableau2[[#This Row],[Classe]],baseproduit,2,FALSE)) ->  | M25: =IF(Tableau2[[#This Row],[Prime Total]]="","",VLOOKUP(Tableau2[[#This Row],[produit]],baseprofdetail,2)) ->  | N25: =IF(Tableau2[[#This Row],[Prime Total]]="","",VLOOKUP(Tableau2[[#This Row],[produit]],baseprofdetail,3)) -> 
D26: =Tableau2[[#This Row],[Police]]&Tableau2[[#This Row],[Date Reglement]] ->  | I26: =DATEDIF(Tableau2[[#This Row],[Date Souscription]],Tableau2[[#This Row],[Date Reglement]],"m")/12 -> 0 | J26: =IF(Tableau2[[#This Row],[Prime Total]]="","",VALUE(MID(Tableau2[[#This Row],[Police]],10,2))) ->  | K26: =IF(Tableau2[[#This Row],[Prime Total]]="","",VALUE(MID(Tableau2[[#This Row],[Police]],10,4))) ->  | L26: =IF(Tableau2[[#This Row],[Prime Total]]="","",VLOOKUP(Tableau2[[#This Row],[Classe]],baseproduit,2,FALSE)) ->  | M26: =IF(Tableau2[[#This Row],[Prime Total]]="","",VLOOKUP(Tableau2[[#This Row],[produit]],baseprofdetail,2)) ->  | N26: =IF(Tableau2[[#This Row],[Prime Total]]="","",VLOOKUP(Tableau2[[#This Row],[produit]],baseprofdetail,3)) -> 
D27: =Tableau2[[#This Row],[Police]]&Tableau2[[#This Row],[Date Reglement]] ->  | I27: =DATEDIF(Tableau2[[#This Row],[Date Souscription]],Tableau2[[#This Row],[Date Reglement]],"m")/12 -> 0 | J27: =IF(Tableau2[[#This Row],[Prime Total]]="","",VALUE(MID(Tableau2[[#This Row],[Police]],10,2))) ->  | K27: =IF(Tableau2[[#This Row],[Prime Total]]="","",VALUE(MID(Tableau2[[#This Row],[Police]],10,4))) ->  | L27: =IF(Tableau2[[#This Row],[Prime Total]]="","",VLOOKUP(Tableau2[[#This Row],[Classe]],baseproduit,2,FALSE)) ->  | M27: =IF(Tableau2[[#This Row],[Prime Total]]="","",VLOOKUP(Tableau2[[#This Row],[produit]],baseprofdetail,2)) ->  | N27: =IF(Tableau2[[#This Row],[Prime Total]]="","",VLOOKUP(Tableau2[[#This Row],[produit]],baseprofdetail,3)) -> 
D28: =Tableau2[[#This Row],[Police]]&Tableau2[[#This Row],[Date Reglement]] ->  | I28: =DATEDIF(Tableau2[[#This Row],[Date Souscription]],Tableau2[[#This Row],[Date Reglement]],"m")/12 -> 0 | J28: =IF(Tableau2[[#This Row],[Prime Total]]="","",VALUE(MID(Tableau2[[#This Row],[Police]],10,2))) ->  | K28: =IF(Tableau2[[#This Row],[Prime Total]]="","",VALUE(MID(Tableau2[[#This Row],[Police]],10,4))) ->  | L28: =IF(Tableau2[[#This Row],[Prime Total]]="","",VLOOKUP(Tableau2[[#This Row],[Classe]],baseproduit,2,FALSE)) ->  | M28: =IF(Tableau2[[#This Row],[Prime Total]]="","",VLOOKUP(Tableau2[[#This Row],[produit]],baseprofdetail,2)) ->  | N28: =IF(Tableau2[[#This Row],[Prime Total]]="","",VLOOKUP(Tableau2[[#This Row],[produit]],baseprofdetail,3)) -> 
D29: =Tableau2[[#This Row],[Police]]&Tableau2[[#This Row],[Date Reglement]] ->  | I29: =DATEDIF(Tableau2[[#This Row],[Date Souscription]],Tableau2[[#This Row],[Date Reglement]],"m")/12 -> 0 | J29: =IF(Tableau2[[#This Row],[Prime Total]]="","",VALUE(MID(Tableau2[[#This Row],[Police]],10,2))) ->  | K29: =IF(Tableau2[[#This Row],[Prime Total]]="","",VALUE(MID(Tableau2[[#This Row],[Police]],10,4))) ->  | L29: =IF(Tableau2[[#This Row],[Prime Total]]="","",VLOOKUP(Tableau2[[#This Row],[Classe]],baseproduit,2,FALSE)) ->  | M29: =IF(Tableau2[[#This Row],[Prime Total]]="","",VLOOKUP(Tableau2[[#This Row],[produit]],baseprofdetail,2)) ->  | N29: =IF(Tableau2[[#This Row],[Prime Total]]="","",VLOOKUP(Tableau2[[#This Row],[produit]],baseprofdetail,3)) -> 
D30: =Tableau2[[#This Row],[Police]]&Tableau2[[#This Row],[Date Reglement]] ->  | I30: =DATEDIF(Tableau2[[#This Row],[Date Souscription]],Tableau2[[#This Row],[Date Reglement]],"m")/12 -> 0 | J30: =IF(Tableau2[[#This Row],[Prime Total]]="","",VALUE(MID(Tableau2[[#This Row],[Police]],10,2))) ->  | K30: =IF(Tableau2[[#This Row],[Prime Total]]="","",VALUE(MID(Tableau2[[#This Row],[Police]],10,4))) ->  | L30: =IF(Tableau2[[#This Row],[Prime Total]]="","",VLOOKUP(Tableau2[[#This Row],[Classe]],baseproduit,2,FALSE)) ->  | M30: =IF(Tableau2[[#This Row],[Prime Total]]="","",VLOOKUP(Tableau2[[#This Row],[produit]],baseprofdetail,2)) ->  | N30: =IF(Tableau2[[#This Row],[Prime Total]]="","",VLOOKUP(Tableau2[[#This Row],[produit]],baseprofdetail,3)) -> 
D31: =Tableau2[[#This Row],[Police]]&Tableau2[[#This Row],[Date Reglement]] ->  | I31: =DATEDIF(Tableau2[[#This Row],[Date Souscription]],Tableau2[[#This Row],[Date Reglement]],"m")/12 -> 0 | J31: =IF(Tableau2[[#This Row],[Prime Total]]="","",VALUE(MID(Tableau2[[#This Row],[Police]],10,2))) ->  | K31: =IF(Tableau2[[#This Row],[Prime Total]]="","",VALUE(MID(Tableau2[[#This Row],[Police]],10,4))) ->  | L31: =IF(Tableau2[[#This Row],[Prime Total]]="","",VLOOKUP(Tableau2[[#This Row],[Classe]],baseproduit,2,FALSE)) ->  | M31: =IF(Tableau2[[#This Row],[Prime Total]]="","",VLOOKUP(Tableau2[[#This Row],[produit]],baseprofdetail,2)) ->  | N31: =IF(Tableau2[[#This Row],[Prime Total]]="","",VLOOKUP(Tableau2[[#This Row],[produit]],baseprofdetail,3)) -> 
D32: =Tableau2[[#This Row],[Police]]&Tableau2[[#This Row],[Date Reglement]] ->  | I32: =DATEDIF(Tableau2[[#This Row],[Date Souscription]],Tableau2[[#This Row],[Date Reglement]],"m")/12 -> 0 | J32: =IF(Tableau2[[#This Row],[Prime Total]]="","",VALUE(MID(Tableau2[[#This Row],[Police]],10,2))) ->  | K32: =IF(Tableau2[[#This Row],[Prime Total]]="","",VALUE(MID(Tableau2[[#This Row],[Police]],10,4))) ->  | L32: =IF(Tableau2[[#This Row],[Prime Total]]="","",VLOOKUP(Tableau2[[#This Row],[Classe]],baseproduit,2,FALSE)) ->  | M32: =IF(Tableau2[[#This Row],[Prime Total]]="","",VLOOKUP(Tableau2[[#This Row],[produit]],baseprofdetail,2)) ->  | N32: =IF(Tableau2[[#This Row],[Prime Total]]="","",VLOOKUP(Tableau2[[#This Row],[produit]],baseprofdetail,3)) -> 
D33: =Tableau2[[#This Row],[Police]]&Tableau2[[#This Row],[Date Reglement]] ->  | I33: =DATEDIF(Tableau2[[#This Row],[Date Souscription]],Tableau2[[#This Row],[Date Reglement]],"m")/12 -> 0 | J33: =IF(Tableau2[[#This Row],[Prime Total]]="","",VALUE(MID(Tableau2[[#This Row],[Police]],10,2))) ->  | K33: =IF(Tableau2[[#This Row],[Prime Total]]="","",VALUE(MID(Tableau2[[#This Row],[Police]],10,4))) ->  | L33: =IF(Tableau2[[#This Row],[Prime Total]]="","",VLOOKUP(Tableau2[[#This Row],[Classe]],baseproduit,2,FALSE)) ->  | M33: =IF(Tableau2[[#This Row],[Prime Total]]="","",VLOOKUP(Tableau2[[#This Row],[produit]],baseprofdetail,2)) ->  | N33: =IF(Tableau2[[#This Row],[Prime Total]]="","",VLOOKUP(Tableau2[[#This Row],[produit]],baseprofdetail,3)) -> 
D34: =Tableau2[[#This Row],[Police]]&Tableau2[[#This Row],[Date Reglement]] ->  | I34: =DATEDIF(Tableau2[[#This Row],[Date Souscription]],Tableau2[[#This Row],[Date Reglement]],"m")/12 -> 0 | J34: =IF(Tableau2[[#This Row],[Prime Total]]="","",VALUE(MID(Tableau2[[#This Row],[Police]],10,2))) ->  | K34: =IF(Tableau2[[#This Row],[Prime Total]]="","",VALUE(MID(Tableau2[[#This Row],[Police]],10,4))) ->  | L34: =IF(Tableau2[[#This Row],[Prime Total]]="","",VLOOKUP(Tableau2[[#This Row],[Classe]],baseproduit,2,FALSE)) ->  | M34: =IF(Tableau2[[#This Row],[Prime Total]]="","",VLOOKUP(Tableau2[[#This Row],[produit]],baseprofdetail,2)) ->  | N34: =IF(Tableau2[[#This Row],[Prime Total]]="","",VLOOKUP(Tableau2[[#This Row],[produit]],baseprofdetail,3)) -> 
D35: =Tableau2[[#This Row],[Police]]&Tableau2[[#This Row],[Date Reglement]] ->  | I35: =DATEDIF(Tableau2[[#This Row],[Date Souscription]],Tableau2[[#This Row],[Date Reglement]],"m")/12 -> 0 | J35: =IF(Tableau2[[#This Row],[Prime Total]]="","",VALUE(MID(Tableau2[[#This Row],[Police]],10,2))) ->  | K35: =IF(Tableau2[[#This Row],[Prime Total]]="","",VALUE(MID(Tableau2[[#This Row],[Police]],10,4))) ->  | L35: =IF(Tableau2[[#This Row],[Prime Total]]="","",VLOOKUP(Tableau2[[#This Row],[Classe]],baseproduit,2,FALSE)) ->  | M35: =IF(Tableau2[[#This Row],[Prime Total]]="","",VLOOKUP(Tableau2[[#This Row],[produit]],baseprofdetail,2)) ->  | N35: =IF(Tableau2[[#This Row],[Prime Total]]="","",VLOOKUP(Tableau2[[#This Row],[produit]],baseprofdetail,3)) -> 
D36: =Tableau2[[#This Row],[Police]]&Tableau2[[#This Row],[Date Reglement]] ->  | I36: =DATEDIF(Tableau2[[#This Row],[Date Souscription]],Tableau2[[#This Row],[Date Reglement]],"m")/12 -> 0 | J36: =IF(Tableau2[[#This Row],[Prime Total]]="","",VALUE(MID(Tableau2[[#This Row],[Police]],10,2))) ->  | K36: =IF(Tableau2[[#This Row],[Prime Total]]="","",VALUE(MID(Tableau2[[#This Row],[Police]],10,4))) ->  | L36: =IF(Tableau2[[#This Row],[Prime Total]]="","",VLOOKUP(Tableau2[[#This Row],[Classe]],baseproduit,2,FALSE)) ->  | M36: =IF(Tableau2[[#This Row],[Prime Total]]="","",VLOOKUP(Tableau2[[#This Row],[produit]],baseprofdetail,2)) ->  | N36: =IF(Tableau2[[#This Row],[Prime Total]]="","",VLOOKUP(Tableau2[[#This Row],[produit]],baseprofdetail,3)) -> 
D37: =Tableau2[[#This Row],[Police]]&Tableau2[[#This Row],[Date Reglement]] ->  | I37: =DATEDIF(Tableau2[[#This Row],[Date Souscription]],Tableau2[[#This Row],[Date Reglement]],"m")/12 -> 0 | J37: =IF(Tableau2[[#This Row],[Prime Total]]="","",VALUE(MID(Tableau2[[#This Row],[Police]],10,2))) ->  | K37: =IF(Tableau2[[#This Row],[Prime Total]]="","",VALUE(MID(Tableau2[[#This Row],[Police]],10,4))) ->  | L37: =IF(Tableau2[[#This Row],[Prime Total]]="","",VLOOKUP(Tableau2[[#This Row],[Classe]],baseproduit,2,FALSE)) ->  | M37: =IF(Tableau2[[#This Row],[Prime Total]]="","",VLOOKUP(Tableau2[[#This Row],[produit]],baseprofdetail,2)) ->  | N37: =IF(Tableau2[[#This Row],[Prime Total]]="","",VLOOKUP(Tableau2[[#This Row],[produit]],baseprofdetail,3)) -> 
D38: =Tableau2[[#This Row],[Police]]&Tableau2[[#This Row],[Date Reglement]] ->  | I38: =DATEDIF(Tableau2[[#This Row],[Date Souscription]],Tableau2[[#This Row],[Date Reglement]],"m")/12 -> 0 | J38: =IF(Tableau2[[#This Row],[Prime Total]]="","",VALUE(MID(Tableau2[[#This Row],[Police]],10,2))) ->  | K38: =IF(Tableau2[[#This Row],[Prime Total]]="","",VALUE(MID(Tableau2[[#This Row],[Police]],10,4))) ->  | L38: =IF(Tableau2[[#This Row],[Prime Total]]="","",VLOOKUP(Tableau2[[#This Row],[Classe]],baseproduit,2,FALSE)) ->  | M38: =IF(Tableau2[[#This Row],[Prime Total]]="","",VLOOKUP(Tableau2[[#This Row],[produit]],baseprofdetail,2)) ->  | N38: =IF(Tableau2[[#This Row],[Prime Total]]="","",VLOOKUP(Tableau2[[#This Row],[produit]],baseprofdetail,3)) -> 
D39: =Tableau2[[#This Row],[Police]]&Tableau2[[#This Row],[Date Reglement]] ->  | I39: =DATEDIF(Tableau2[[#This Row],[Date Souscription]],Tableau2[[#This Row],[Date Reglement]],"m")/12 -> 0 | J39: =IF(Tableau2[[#This Row],[Prime Total]]="","",VALUE(MID(Tableau2[[#This Row],[Police]],10,2))) ->  | K39: =IF(Tableau2[[#This Row],[Prime Total]]="","",VALUE(MID(Tableau2[[#This Row],[Police]],10,4))) ->  | L39: =IF(Tableau2[[#This Row],[Prime Total]]="","",VLOOKUP(Tableau2[[#This Row],[Classe]],baseproduit,2,FALSE)) ->  | M39: =IF(Tableau2[[#This Row],[Prime Total]]="","",VLOOKUP(Tableau2[[#This Row],[produit]],baseprofdetail,2)) ->  | N39: =IF(Tableau2[[#This Row],[Prime Total]]="","",VLOOKUP(Tableau2[[#This Row],[produit]],baseprofdetail,3)) -> 
D40: =Tableau2[[#This Row],[Police]]&Tableau2[[#This Row],[Date Reglement]] ->  | I40: =DATEDIF(Tableau2[[#This Row],[Date Souscription]],Tableau2[[#This Row],[Date Reglement]],"m")/12 -> 0 | J40: =IF(Tableau2[[#This Row],[Prime Total]]="","",VALUE(MID(Tableau2[[#This Row],[Police]],10,2))) ->  | K40: =IF(Tableau2[[#This Row],[Prime Total]]="","",VALUE(MID(Tableau2[[#This Row],[Police]],10,4))) ->  | L40: =IF(Tableau2[[#This Row],[Prime Total]]="","",VLOOKUP(Tableau2[[#This Row],[Classe]],baseproduit,2,FALSE)) ->  | M40: =IF(Tableau2[[#This Row],[Prime Total]]="","",VLOOKUP(Tableau2[[#This Row],[produit]],baseprofdetail,2)) ->  | N40: =IF(Tableau2[[#This Row],[Prime Total]]="","",VLOOKUP(Tableau2[[#This Row],[produit]],baseprofdetail,3)) -> 
D41: =Tableau2[[#This Row],[Police]]&Tableau2[[#This Row],[Date Reglement]] ->  | I41: =DATEDIF(Tableau2[[#This Row],[Date Souscription]],Tableau2[[#This Row],[Date Reglement]],"m")/12 -> 0 | J41: =IF(Tableau2[[#This Row],[Prime Total]]="","",VALUE(MID(Tableau2[[#This Row],[Police]],10,2))) ->  | K41: =IF(Tableau2[[#This Row],[Prime Total]]="","",VALUE(MID(Tableau2[[#This Row],[Police]],10,4))) ->  | L41: =IF(Tableau2[[#This Row],[Prime Total]]="","",VLOOKUP(Tableau2[[#This Row],[Classe]],baseproduit,2,FALSE)) ->  | M41: =IF(Tableau2[[#This Row],[Prime Total]]="","",VLOOKUP(Tableau2[[#This Row],[produit]],baseprofdetail,2)) ->  | N41: =IF(Tableau2[[#This Row],[Prime Total]]="","",VLOOKUP(Tableau2[[#This Row],[produit]],baseprofdetail,3)) -> 
D42: =Tableau2[[#This Row],[Police]]&Tableau2[[#This Row],[Date Reglement]] ->  | I42: =DATEDIF(Tableau2[[#This Row],[Date Souscription]],Tableau2[[#This Row],[Date Reglement]],"m")/12 -> 0 | J42: =IF(Tableau2[[#This Row],[Prime Total]]="","",VALUE(MID(Tableau2[[#This Row],[Police]],10,2))) ->  | K42: =IF(Tableau2[[#This Row],[Prime Total]]="","",VALUE(MID(Tableau2[[#This Row],[Police]],10,4))) ->  | L42: =IF(Tableau2[[#This Row],[Prime Total]]="","",VLOOKUP(Tableau2[[#This Row],[Classe]],baseproduit,2,FALSE)) ->  | M42: =IF(Tableau2[[#This Row],[Prime Total]]="","",VLOOKUP(Tableau2[[#This Row],[produit]],baseprofdetail,2)) ->  | N42: =IF(Tableau2[[#This Row],[Prime Total]]="","",VLOOKUP(Tableau2[[#This Row],[produit]],baseprofdetail,3)) -> 
D43: =Tableau2[[#This Row],[Police]]&Tableau2[[#This Row],[Date Reglement]] ->  | I43: =DATEDIF(Tableau2[[#This Row],[Date Souscription]],Tableau2[[#This Row],[Date Reglement]],"m")/12 -> 0 | J43: =IF(Tableau2[[#This Row],[Prime Total]]="","",VALUE(MID(Tableau2[[#This Row],[Police]],10,2))) ->  | K43: =IF(Tableau2[[#This Row],[Prime Total]]="","",VALUE(MID(Tableau2[[#This Row],[Police]],10,4))) ->  | L43: =IF(Tableau2[[#This Row],[Prime Total]]="","",VLOOKUP(Tableau2[[#This Row],[Classe]],baseproduit,2,FALSE)) ->  | M43: =IF(Tableau2[[#This Row],[Prime Total]]="","",VLOOKUP(Tableau2[[#This Row],[produit]],baseprofdetail,2)) ->  | N43: =IF(Tableau2[[#This Row],[Prime Total]]="","",VLOOKUP(Tableau2[[#This Row],[produit]],baseprofdetail,3)) -> 
D44: =Tableau2[[#This Row],[Police]]&Tableau2[[#This Row],[Date Reglement]] ->  | I44: =DATEDIF(Tableau2[[#This Row],[Date Souscription]],Tableau2[[#This Row],[Date Reglement]],"m")/12 -> 0 | J44: =IF(Tableau2[[#This Row],[Prime Total]]="","",VALUE(MID(Tableau2[[#This Row],[Police]],10,2))) ->  | K44: =IF(Tableau2[[#This Row],[Prime Total]]="","",VALUE(MID(Tableau2[[#This Row],[Police]],10,4))) ->  | L44: =IF(Tableau2[[#This Row],[Prime Total]]="","",VLOOKUP(Tableau2[[#This Row],[Classe]],baseproduit,2,FALSE)) ->  | M44: =IF(Tableau2[[#This Row],[Prime Total]]="","",VLOOKUP(Tableau2[[#This Row],[produit]],baseprofdetail,2)) ->  | N44: =IF(Tableau2[[#This Row],[Prime Total]]="","",VLOOKUP(Tableau2[[#This Row],[produit]],baseprofdetail,3)) -> 
D45: =Tableau2[[#This Row],[Police]]&Tableau2[[#This Row],[Date Reglement]] ->  | I45: =DATEDIF(Tableau2[[#This Row],[Date Souscription]],Tableau2[[#This Row],[Date Reglement]],"m")/12 -> 0 | J45: =IF(Tableau2[[#This Row],[Prime Total]]="","",VALUE(MID(Tableau2[[#This Row],[Police]],10,2))) ->  | K45: =IF(Tableau2[[#This Row],[Prime Total]]="","",VALUE(MID(Tableau2[[#This Row],[Police]],10,4))) ->  | L45: =IF(Tableau2[[#This Row],[Prime Total]]="","",VLOOKUP(Tableau2[[#This Row],[Classe]],baseproduit,2,FALSE)) ->  | M45: =IF(Tableau2[[#This Row],[Prime Total]]="","",VLOOKUP(Tableau2[[#This Row],[produit]],baseprofdetail,2)) ->  | N45: =IF(Tableau2[[#This Row],[Prime Total]]="","",VLOOKUP(Tableau2[[#This Row],[produit]],baseprofdetail,3)) -> 
D46: =Tableau2[[#This Row],[Police]]&Tableau2[[#This Row],[Date Reglement]] ->  | I46: =DATEDIF(Tableau2[[#This Row],[Date Souscription]],Tableau2[[#This Row],[Date Reglement]],"m")/12 -> 0 | J46: =IF(Tableau2[[#This Row],[Prime Total]]="","",VALUE(MID(Tableau2[[#This Row],[Police]],10,2))) ->  | K46: =IF(Tableau2[[#This Row],[Prime Total]]="","",VALUE(MID(Tableau2[[#This Row],[Police]],10,4))) ->  | L46: =IF(Tableau2[[#This Row],[Prime Total]]="","",VLOOKUP(Tableau2[[#This Row],[Classe]],baseproduit,2,FALSE)) ->  | M46: =IF(Tableau2[[#This Row],[Prime Total]]="","",VLOOKUP(Tableau2[[#This Row],[produit]],baseprofdetail,2)) ->  | N46: =IF(Tableau2[[#This Row],[Prime Total]]="","",VLOOKUP(Tableau2[[#This Row],[produit]],baseprofdetail,3)) -> 
D47: =Tableau2[[#This Row],[Police]]&Tableau2[[#This Row],[Date Reglement]] ->  | I47: =DATEDIF(Tableau2[[#This Row],[Date Souscription]],Tableau2[[#This Row],[Date Reglement]],"m")/12 -> 0 | J47: =IF(Tableau2[[#This Row],[Prime Total]]="","",VALUE(MID(Tableau2[[#This Row],[Police]],10,2))) ->  | K47: =IF(Tableau2[[#This Row],[Prime Total]]="","",VALUE(MID(Tableau2[[#This Row],[Police]],10,4))) ->  | L47: =IF(Tableau2[[#This Row],[Prime Total]]="","",VLOOKUP(Tableau2[[#This Row],[Classe]],baseproduit,2,FALSE)) ->  | M47: =IF(Tableau2[[#This Row],[Prime Total]]="","",VLOOKUP(Tableau2[[#This Row],[produit]],baseprofdetail,2)) ->  | N47: =IF(Tableau2[[#This Row],[Prime Total]]="","",VLOOKUP(Tableau2[[#This Row],[produit]],baseprofdetail,3)) -> 
D48: =Tableau2[[#This Row],[Police]]&Tableau2[[#This Row],[Date Reglement]] ->  | I48: =DATEDIF(Tableau2[[#This Row],[Date Souscription]],Tableau2[[#This Row],[Date Reglement]],"m")/12 -> 0 | J48: =IF(Tableau2[[#This Row],[Prime Total]]="","",VALUE(MID(Tableau2[[#This Row],[Police]],10,2))) ->  | K48: =IF(Tableau2[[#This Row],[Prime Total]]="","",VALUE(MID(Tableau2[[#This Row],[Police]],10,4))) ->  | L48: =IF(Tableau2[[#This Row],[Prime Total]]="","",VLOOKUP(Tableau2[[#This Row],[Classe]],baseproduit,2,FALSE)) ->  | M48: =IF(Tableau2[[#This Row],[Prime Total]]="","",VLOOKUP(Tableau2[[#This Row],[produit]],baseprofdetail,2)) ->  | N48: =IF(Tableau2[[#This Row],[Prime Total]]="","",VLOOKUP(Tableau2[[#This Row],[produit]],baseprofdetail,3)) -> 
D49: =Tableau2[[#This Row],[Police]]&Tableau2[[#This Row],[Date Reglement]] ->  | I49: =DATEDIF(Tableau2[[#This Row],[Date Souscription]],Tableau2[[#This Row],[Date Reglement]],"m")/12 -> 0 | J49: =IF(Tableau2[[#This Row],[Prime Total]]="","",VALUE(MID(Tableau2[[#This Row],[Police]],10,2))) ->  | K49: =IF(Tableau2[[#This Row],[Prime Total]]="","",VALUE(MID(Tableau2[[#This Row],[Police]],10,4))) ->  | L49: =IF(Tableau2[[#This Row],[Prime Total]]="","",VLOOKUP(Tableau2[[#This Row],[Classe]],baseproduit,2,FALSE)) ->  | M49: =IF(Tableau2[[#This Row],[Prime Total]]="","",VLOOKUP(Tableau2[[#This Row],[produit]],baseprofdetail,2)) ->  | N49: =IF(Tableau2[[#This Row],[Prime Total]]="","",VLOOKUP(Tableau2[[#This Row],[produit]],baseprofdetail,3)) -> 
D50: =Tableau2[[#This Row],[Police]]&Tableau2[[#This Row],[Date Reglement]] ->  | I50: =DATEDIF(Tableau2[[#This Row],[Date Souscription]],Tableau2[[#This Row],[Date Reglement]],"m")/12 -> 0 | J50: =IF(Tableau2[[#This Row],[Prime Total]]="","",VALUE(MID(Tableau2[[#This Row],[Police]],10,2))) ->  | K50: =IF(Tableau2[[#This Row],[Prime Total]]="","",VALUE(MID(Tableau2[[#This Row],[Police]],10,4))) ->  | L50: =IF(Tableau2[[#This Row],[Prime Total]]="","",VLOOKUP(Tableau2[[#This Row],[Classe]],baseproduit,2,FALSE)) ->  | M50: =IF(Tableau2[[#This Row],[Prime Total]]="","",VLOOKUP(Tableau2[[#This Row],[produit]],baseprofdetail,2)) ->  | N50: =IF(Tableau2[[#This Row],[Prime Total]]="","",VLOOKUP(Tableau2[[#This Row],[produit]],baseprofdetail,3)) -> 
D51: =Tableau2[[#This Row],[Police]]&Tableau2[[#This Row],[Date Reglement]] ->  | I51: =DATEDIF(Tableau2[[#This Row],[Date Souscription]],Tableau2[[#This Row],[Date Reglement]],"m")/12 -> 0 | J51: =IF(Tableau2[[#This Row],[Prime Total]]="","",VALUE(MID(Tableau2[[#This Row],[Police]],10,2))) ->  | K51: =IF(Tableau2[[#This Row],[Prime Total]]="","",VALUE(MID(Tableau2[[#This Row],[Police]],10,4))) ->  | L51: =IF(Tableau2[[#This Row],[Prime Total]]="","",VLOOKUP(Tableau2[[#This Row],[Classe]],baseproduit,2,FALSE)) ->  | M51: =IF(Tableau2[[#This Row],[Prime Total]]="","",VLOOKUP(Tableau2[[#This Row],[produit]],baseprofdetail,2)) ->  | N51: =IF(Tableau2[[#This Row],[Prime Total]]="","",VLOOKUP(Tableau2[[#This Row],[produit]],baseprofdetail,3)) -> 
D52: =Tableau2[[#This Row],[Police]]&Tableau2[[#This Row],[Date Reglement]] ->  | I52: =DATEDIF(Tableau2[[#This Row],[Date Souscription]],Tableau2[[#This Row],[Date Reglement]],"m")/12 -> 0 | J52: =IF(Tableau2[[#This Row],[Prime Total]]="","",VALUE(MID(Tableau2[[#This Row],[Police]],10,2))) ->  | K52: =IF(Tableau2[[#This Row],[Prime Total]]="","",VALUE(MID(Tableau2[[#This Row],[Police]],10,4))) ->  | L52: =IF(Tableau2[[#This Row],[Prime Total]]="","",VLOOKUP(Tableau2[[#This Row],[Classe]],baseproduit,2,FALSE)) ->  | M52: =IF(Tableau2[[#This Row],[Prime Total]]="","",VLOOKUP(Tableau2[[#This Row],[produit]],baseprofdetail,2)) ->  | N52: =IF(Tableau2[[#This Row],[Prime Total]]="","",VLOOKUP(Tableau2[[#This Row],[produit]],baseprofdetail,3)) -> 
D53: =Tableau2[[#This Row],[Police]]&Tableau2[[#This Row],[Date Reglement]] ->  | I53: =DATEDIF(Tableau2[[#This Row],[Date Souscription]],Tableau2[[#This Row],[Date Reglement]],"m")/12 -> 0 | J53: =IF(Tableau2[[#This Row],[Prime Total]]="","",VALUE(MID(Tableau2[[#This Row],[Police]],10,2))) ->  | K53: =IF(Tableau2[[#This Row],[Prime Total]]="","",VALUE(MID(Tableau2[[#This Row],[Police]],10,4))) ->  | L53: =IF(Tableau2[[#This Row],[Prime Total]]="","",VLOOKUP(Tableau2[[#This Row],[Classe]],baseproduit,2,FALSE)) ->  | M53: =IF(Tableau2[[#This Row],[Prime Total]]="","",VLOOKUP(Tableau2[[#This Row],[produit]],baseprofdetail,2)) ->  | N53: =IF(Tableau2[[#This Row],[Prime Total]]="","",VLOOKUP(Tableau2[[#This Row],[produit]],baseprofdetail,3)) -> 
D54: =Tableau2[[#This Row],[Police]]&Tableau2[[#This Row],[Date Reglement]] ->  | I54: =DATEDIF(Tableau2[[#This Row],[Date Souscription]],Tableau2[[#This Row],[Date Reglement]],"m")/12 -> 0 | J54: =IF(Tableau2[[#This Row],[Prime Total]]="","",VALUE(MID(Tableau2[[#This Row],[Police]],10,2))) ->  | K54: =IF(Tableau2[[#This Row],[Prime Total]]="","",VALUE(MID(Tableau2[[#This Row],[Police]],10,4))) ->  | L54: =IF(Tableau2[[#This Row],[Prime Total]]="","",VLOOKUP(Tableau2[[#This Row],[Classe]],baseproduit,2,FALSE)) ->  | M54: =IF(Tableau2[[#This Row],[Prime Total]]="","",VLOOKUP(Tableau2[[#This Row],[produit]],baseprofdetail,2)) ->  | N54: =IF(Tableau2[[#This Row],[Prime Total]]="","",VLOOKUP(Tableau2[[#This Row],[produit]],baseprofdetail,3)) -> 
D55: =Tableau2[[#This Row],[Police]]&Tableau2[[#This Row],[Date Reglement]] ->  | I55: =DATEDIF(Tableau2[[#This Row],[Date Souscription]],Tableau2[[#This Row],[Date Reglement]],"m")/12 -> 0 | J55: =IF(Tableau2[[#This Row],[Prime Total]]="","",VALUE(MID(Tableau2[[#This Row],[Police]],10,2))) ->  | K55: =IF(Tableau2[[#This Row],[Prime Total]]="","",VALUE(MID(Tableau2[[#This Row],[Police]],10,4))) ->  | L55: =IF(Tableau2[[#This Row],[Prime Total]]="","",VLOOKUP(Tableau2[[#This Row],[Classe]],baseproduit,2,FALSE)) ->  | M55: =IF(Tableau2[[#This Row],[Prime Total]]="","",VLOOKUP(Tableau2[[#This Row],[produit]],baseprofdetail,2)) ->  | N55: =IF(Tableau2[[#This Row],[Prime Total]]="","",VLOOKUP(Tableau2[[#This Row],[produit]],baseprofdetail,3)) -> 
D56: =Tableau2[[#This Row],[Police]]&Tableau2[[#This Row],[Date Reglement]] ->  | I56: =DATEDIF(Tableau2[[#This Row],[Date Souscription]],Tableau2[[#This Row],[Date Reglement]],"m")/12 -> 0 | J56: =IF(Tableau2[[#This Row],[Prime Total]]="","",VALUE(MID(Tableau2[[#This Row],[Police]],10,2))) ->  | K56: =IF(Tableau2[[#This Row],[Prime Total]]="","",VALUE(MID(Tableau2[[#This Row],[Police]],10,4))) ->  | L56: =IF(Tableau2[[#This Row],[Prime Total]]="","",VLOOKUP(Tableau2[[#This Row],[Classe]],baseproduit,2,FALSE)) ->  | M56: =IF(Tableau2[[#This Row],[Prime Total]]="","",VLOOKUP(Tableau2[[#This Row],[produit]],baseprofdetail,2)) ->  | N56: =IF(Tableau2[[#This Row],[Prime Total]]="","",VLOOKUP(Tableau2[[#This Row],[produit]],baseprofdetail,3)) -> 
D57: =Tableau2[[#This Row],[Police]]&Tableau2[[#This Row],[Date Reglement]] ->  | I57: =DATEDIF(Tableau2[[#This Row],[Date Souscription]],Tableau2[[#This Row],[Date Reglement]],"m")/12 -> 0 | J57: =IF(Tableau2[[#This Row],[Prime Total]]="","",VALUE(MID(Tableau2[[#This Row],[Police]],10,2))) ->  | K57: =IF(Tableau2[[#This Row],[Prime Total]]="","",VALUE(MID(Tableau2[[#This Row],[Police]],10,4))) ->  | L57: =IF(Tableau2[[#This Row],[Prime Total]]="","",VLOOKUP(Tableau2[[#This Row],[Classe]],baseproduit,2,FALSE)) ->  | M57: =IF(Tableau2[[#This Row],[Prime Total]]="","",VLOOKUP(Tableau2[[#This Row],[produit]],baseprofdetail,2)) ->  | N57: =IF(Tableau2[[#This Row],[Prime Total]]="","",VLOOKUP(Tableau2[[#This Row],[produit]],baseprofdetail,3)) -> 
D58: =Tableau2[[#This Row],[Police]]&Tableau2[[#This Row],[Date Reglement]] ->  | I58: =DATEDIF(Tableau2[[#This Row],[Date Souscription]],Tableau2[[#This Row],[Date Reglement]],"m")/12 -> 0 | J58: =IF(Tableau2[[#This Row],[Prime Total]]="","",VALUE(MID(Tableau2[[#This Row],[Police]],10,2))) ->  | K58: =IF(Tableau2[[#This Row],[Prime Total]]="","",VALUE(MID(Tableau2[[#This Row],[Police]],10,4))) ->  | L58: =IF(Tableau2[[#This Row],[Prime Total]]="","",VLOOKUP(Tableau2[[#This Row],[Classe]],baseproduit,2,FALSE)) ->  | M58: =IF(Tableau2[[#This Row],[Prime Total]]="","",VLOOKUP(Tableau2[[#This Row],[produit]],baseprofdetail,2)) ->  | N58: =IF(Tableau2[[#This Row],[Prime Total]]="","",VLOOKUP(Tableau2[[#This Row],[produit]],baseprofdetail,3)) -> 
D59: =Tableau2[[#This Row],[Police]]&Tableau2[[#This Row],[Date Reglement]] ->  | I59: =DATEDIF(Tableau2[[#This Row],[Date Souscription]],Tableau2[[#This Row],[Date Reglement]],"m")/12 -> 0 | J59: =IF(Tableau2[[#This Row],[Prime Total]]="","",VALUE(MID(Tableau2[[#This Row],[Police]],10,2))) ->  | K59: =IF(Tableau2[[#This Row],[Prime Total]]="","",VALUE(MID(Tableau2[[#This Row],[Police]],10,4))) ->  | L59: =IF(Tableau2[[#This Row],[Prime Total]]="","",VLOOKUP(Tableau2[[#This Row],[Classe]],baseproduit,2,FALSE)) ->  | M59: =IF(Tableau2[[#This Row],[Prime Total]]="","",VLOOKUP(Tableau2[[#This Row],[produit]],baseprofdetail,2)) ->  | N59: =IF(Tableau2[[#This Row],[Prime Total]]="","",VLOOKUP(Tableau2[[#This Row],[produit]],baseprofdetail,3)) -> 
D60: =Tableau2[[#This Row],[Police]]&Tableau2[[#This Row],[Date Reglement]] ->  | I60: =DATEDIF(Tableau2[[#This Row],[Date Souscription]],Tableau2[[#This Row],[Date Reglement]],"m")/12 -> 0 | J60: =IF(Tableau2[[#This Row],[Prime Total]]="","",VALUE(MID(Tableau2[[#This Row],[Police]],10,2))) ->  | K60: =IF(Tableau2[[#This Row],[Prime Total]]="","",VALUE(MID(Tableau2[[#This Row],[Police]],10,4))) ->  | L60: =IF(Tableau2[[#This Row],[Prime Total]]="","",VLOOKUP(Tableau2[[#This Row],[Classe]],baseproduit,2,FALSE)) ->  | M60: =IF(Tableau2[[#This Row],[Prime Total]]="","",VLOOKUP(Tableau2[[#This Row],[produit]],baseprofdetail,2)) ->  | N60: =IF(Tableau2[[#This Row],[Prime Total]]="","",VLOOKUP(Tableau2[[#This Row],[produit]],baseprofdetail,3)) -> 
D61: =Tableau2[[#This Row],[Police]]&Tableau2[[#This Row],[Date Reglement]] ->  | I61: =DATEDIF(Tableau2[[#This Row],[Date Souscription]],Tableau2[[#This Row],[Date Reglement]],"m")/12 -> 0 | J61: =IF(Tableau2[[#This Row],[Prime Total]]="","",VALUE(MID(Tableau2[[#This Row],[Police]],10,2))) ->  | K61: =IF(Tableau2[[#This Row],[Prime Total]]="","",VALUE(MID(Tableau2[[#This Row],[Police]],10,4))) ->  | L61: =IF(Tableau2[[#This Row],[Prime Total]]="","",VLOOKUP(Tableau2[[#This Row],[Classe]],baseproduit,2,FALSE)) ->  | M61: =IF(Tableau2[[#This Row],[Prime Total]]="","",VLOOKUP(Tableau2[[#This Row],[produit]],baseprofdetail,2)) ->  | N61: =IF(Tableau2[[#This Row],[Prime Total]]="","",VLOOKUP(Tableau2[[#This Row],[produit]],baseprofdetail,3)) -> 
D62: =Tableau2[[#This Row],[Police]]&Tableau2[[#This Row],[Date Reglement]] ->  | I62: =DATEDIF(Tableau2[[#This Row],[Date Souscription]],Tableau2[[#This Row],[Date Reglement]],"m")/12 -> 0 | J62: =IF(Tableau2[[#This Row],[Prime Total]]="","",VALUE(MID(Tableau2[[#This Row],[Police]],10,2))) ->  | K62: =IF(Tableau2[[#This Row],[Prime Total]]="","",VALUE(MID(Tableau2[[#This Row],[Police]],10,4))) ->  | L62: =IF(Tableau2[[#This Row],[Prime Total]]="","",VLOOKUP(Tableau2[[#This Row],[Classe]],baseproduit,2,FALSE)) ->  | M62: =IF(Tableau2[[#This Row],[Prime Total]]="","",VLOOKUP(Tableau2[[#This Row],[produit]],baseprofdetail,2)) ->  | N62: =IF(Tableau2[[#This Row],[Prime Total]]="","",VLOOKUP(Tableau2[[#This Row],[produit]],baseprofdetail,3)) -> 
D63: =Tableau2[[#This Row],[Police]]&Tableau2[[#This Row],[Date Reglement]] ->  | I63: =DATEDIF(Tableau2[[#This Row],[Date Souscription]],Tableau2[[#This Row],[Date Reglement]],"m")/12 -> 0 | J63: =IF(Tableau2[[#This Row],[Prime Total]]="","",VALUE(MID(Tableau2[[#This Row],[Police]],10,2))) ->  | K63: =IF(Tableau2[[#This Row],[Prime Total]]="","",VALUE(MID(Tableau2[[#This Row],[Police]],10,4))) ->  | L63: =IF(Tableau2[[#This Row],[Prime Total]]="","",VLOOKUP(Tableau2[[#This Row],[Classe]],baseproduit,2,FALSE)) ->  | M63: =IF(Tableau2[[#This Row],[Prime Total]]="","",VLOOKUP(Tableau2[[#This Row],[produit]],baseprofdetail,2)) ->  | N63: =IF(Tableau2[[#This Row],[Prime Total]]="","",VLOOKUP(Tableau2[[#This Row],[produit]],baseprofdetail,3)) -> 
D64: =Tableau2[[#This Row],[Police]]&Tableau2[[#This Row],[Date Reglement]] ->  | I64: =DATEDIF(Tableau2[[#This Row],[Date Souscription]],Tableau2[[#This Row],[Date Reglement]],"m")/12 -> 0 | J64: =IF(Tableau2[[#This Row],[Prime Total]]="","",VALUE(MID(Tableau2[[#This Row],[Police]],10,2))) ->  | K64: =IF(Tableau2[[#This Row],[Prime Total]]="","",VALUE(MID(Tableau2[[#This Row],[Police]],10,4))) ->  | L64: =IF(Tableau2[[#This Row],[Prime Total]]="","",VLOOKUP(Tableau2[[#This Row],[Classe]],baseproduit,2,FALSE)) ->  | M64: =IF(Tableau2[[#This Row],[Prime Total]]="","",VLOOKUP(Tableau2[[#This Row],[produit]],baseprofdetail,2)) ->  | N64: =IF(Tableau2[[#This Row],[Prime Total]]="","",VLOOKUP(Tableau2[[#This Row],[produit]],baseprofdetail,3)) -> 
D65: =Tableau2[[#This Row],[Police]]&Tableau2[[#This Row],[Date Reglement]] ->  | I65: =DATEDIF(Tableau2[[#This Row],[Date Souscription]],Tableau2[[#This Row],[Date Reglement]],"m")/12 -> 0 | J65: =IF(Tableau2[[#This Row],[Prime Total]]="","",VALUE(MID(Tableau2[[#This Row],[Police]],10,2))) ->  | K65: =IF(Tableau2[[#This Row],[Prime Total]]="","",VALUE(MID(Tableau2[[#This Row],[Police]],10,4))) ->  | L65: =IF(Tableau2[[#This Row],[Prime Total]]="","",VLOOKUP(Tableau2[[#This Row],[Classe]],baseproduit,2,FALSE)) ->  | M65: =IF(Tableau2[[#This Row],[Prime Total]]="","",VLOOKUP(Tableau2[[#This Row],[produit]],baseprofdetail,2)) ->  | N65: =IF(Tableau2[[#This Row],[Prime Total]]="","",VLOOKUP(Tableau2[[#This Row],[produit]],baseprofdetail,3)) -> 
D66: =Tableau2[[#This Row],[Police]]&Tableau2[[#This Row],[Date Reglement]] ->  | I66: =DATEDIF(Tableau2[[#This Row],[Date Souscription]],Tableau2[[#This Row],[Date Reglement]],"m")/12 -> 0 | J66: =IF(Tableau2[[#This Row],[Prime Total]]="","",VALUE(MID(Tableau2[[#This Row],[Police]],10,2))) ->  | K66: =IF(Tableau2[[#This Row],[Prime Total]]="","",VALUE(MID(Tableau2[[#This Row],[Police]],10,4))) ->  | L66: =IF(Tableau2[[#This Row],[Prime Total]]="","",VLOOKUP(Tableau2[[#This Row],[Classe]],baseproduit,2,FALSE)) ->  | M66: =IF(Tableau2[[#This Row],[Prime Total]]="","",VLOOKUP(Tableau2[[#This Row],[produit]],baseprofdetail,2)) ->  | N66: =IF(Tableau2[[#This Row],[Prime Total]]="","",VLOOKUP(Tableau2[[#This Row],[produit]],baseprofdetail,3)) -> 
D67: =Tableau2[[#This Row],[Police]]&Tableau2[[#This Row],[Date Reglement]] ->  | I67: =DATEDIF(Tableau2[[#This Row],[Date Souscription]],Tableau2[[#This Row],[Date Reglement]],"m")/12 -> 0 | J67: =IF(Tableau2[[#This Row],[Prime Total]]="","",VALUE(MID(Tableau2[[#This Row],[Police]],10,2))) ->  | K67: =IF(Tableau2[[#This Row],[Prime Total]]="","",VALUE(MID(Tableau2[[#This Row],[Police]],10,4))) ->  | L67: =IF(Tableau2[[#This Row],[Prime Total]]="","",VLOOKUP(Tableau2[[#This Row],[Classe]],baseproduit,2,FALSE)) ->  | M67: =IF(Tableau2[[#This Row],[Prime Total]]="","",VLOOKUP(Tableau2[[#This Row],[produit]],baseprofdetail,2)) ->  | N67: =IF(Tableau2[[#This Row],[Prime Total]]="","",VLOOKUP(Tableau2[[#This Row],[produit]],baseprofdetail,3)) -> 
D68: =Tableau2[[#This Row],[Police]]&Tableau2[[#This Row],[Date Reglement]] ->  | I68: =DATEDIF(Tableau2[[#This Row],[Date Souscription]],Tableau2[[#This Row],[Date Reglement]],"m")/12 -> 0 | J68: =IF(Tableau2[[#This Row],[Prime Total]]="","",VALUE(MID(Tableau2[[#This Row],[Police]],10,2))) ->  | K68: =IF(Tableau2[[#This Row],[Prime Total]]="","",VALUE(MID(Tableau2[[#This Row],[Police]],10,4))) ->  | L68: =IF(Tableau2[[#This Row],[Prime Total]]="","",VLOOKUP(Tableau2[[#This Row],[Classe]],baseproduit,2,FALSE)) ->  | M68: =IF(Tableau2[[#This Row],[Prime Total]]="","",VLOOKUP(Tableau2[[#This Row],[produit]],baseprofdetail,2)) ->  | N68: =IF(Tableau2[[#This Row],[Prime Total]]="","",VLOOKUP(Tableau2[[#This Row],[produit]],baseprofdetail,3)) -> 
D69: =Tableau2[[#This Row],[Police]]&Tableau2[[#This Row],[Date Reglement]] ->  | I69: =DATEDIF(Tableau2[[#This Row],[Date Souscription]],Tableau2[[#This Row],[Date Reglement]],"m")/12 -> 0 | J69: =IF(Tableau2[[#This Row],[Prime Total]]="","",VALUE(MID(Tableau2[[#This Row],[Police]],10,2))) ->  | K69: =IF(Tableau2[[#This Row],[Prime Total]]="","",VALUE(MID(Tableau2[[#This Row],[Police]],10,4))) ->  | L69: =IF(Tableau2[[#This Row],[Prime Total]]="","",VLOOKUP(Tableau2[[#This Row],[Classe]],baseproduit,2,FALSE)) ->  | M69: =IF(Tableau2[[#This Row],[Prime Total]]="","",VLOOKUP(Tableau2[[#This Row],[produit]],baseprofdetail,2)) ->  | N69: =IF(Tableau2[[#This Row],[Prime Total]]="","",VLOOKUP(Tableau2[[#This Row],[produit]],baseprofdetail,3)) -> 
D70: =Tableau2[[#This Row],[Police]]&Tableau2[[#This Row],[Date Reglement]] ->  | I70: =DATEDIF(Tableau2[[#This Row],[Date Souscription]],Tableau2[[#This Row],[Date Reglement]],"m")/12 -> 0 | J70: =IF(Tableau2[[#This Row],[Prime Total]]="","",VALUE(MID(Tableau2[[#This Row],[Police]],10,2))) ->  | K70: =IF(Tableau2[[#This Row],[Prime Total]]="","",VALUE(MID(Tableau2[[#This Row],[Police]],10,4))) ->  | L70: =IF(Tableau2[[#This Row],[Prime Total]]="","",VLOOKUP(Tableau2[[#This Row],[Classe]],baseproduit,2,FALSE)) ->  | M70: =IF(Tableau2[[#This Row],[Prime Total]]="","",VLOOKUP(Tableau2[[#This Row],[produit]],baseprofdetail,2)) ->  | N70: =IF(Tableau2[[#This Row],[Prime Total]]="","",VLOOKUP(Tableau2[[#This Row],[produit]],baseprofdetail,3)) -> 
D71: =Tableau2[[#This Row],[Police]]&Tableau2[[#This Row],[Date Reglement]] ->  | I71: =DATEDIF(Tableau2[[#This Row],[Date Souscription]],Tableau2[[#This Row],[Date Reglement]],"m")/12 -> 0 | J71: =IF(Tableau2[[#This Row],[Prime Total]]="","",VALUE(MID(Tableau2[[#This Row],[Police]],10,2))) ->  | K71: =IF(Tableau2[[#This Row],[Prime Total]]="","",VALUE(MID(Tableau2[[#This Row],[Police]],10,4))) ->  | L71: =IF(Tableau2[[#This Row],[Prime Total]]="","",VLOOKUP(Tableau2[[#This Row],[Classe]],baseproduit,2,FALSE)) ->  | M71: =IF(Tableau2[[#This Row],[Prime Total]]="","",VLOOKUP(Tableau2[[#This Row],[produit]],baseprofdetail,2)) ->  | N71: =IF(Tableau2[[#This Row],[Prime Total]]="","",VLOOKUP(Tableau2[[#This Row],[produit]],baseprofdetail,3)) -> 
D72: =Tableau2[[#This Row],[Police]]&Tableau2[[#This Row],[Date Reglement]] ->  | I72: =DATEDIF(Tableau2[[#This Row],[Date Souscription]],Tableau2[[#This Row],[Date Reglement]],"m")/12 -> 0 | J72: =IF(Tableau2[[#This Row],[Prime Total]]="","",VALUE(MID(Tableau2[[#This Row],[Police]],10,2))) ->  | K72: =IF(Tableau2[[#This Row],[Prime Total]]="","",VALUE(MID(Tableau2[[#This Row],[Police]],10,4))) ->  | L72: =IF(Tableau2[[#This Row],[Prime Total]]="","",VLOOKUP(Tableau2[[#This Row],[Classe]],baseproduit,2,FALSE)) ->  | M72: =IF(Tableau2[[#This Row],[Prime Total]]="","",VLOOKUP(Tableau2[[#This Row],[produit]],baseprofdetail,2)) ->  | N72: =IF(Tableau2[[#This Row],[Prime Total]]="","",VLOOKUP(Tableau2[[#This Row],[produit]],baseprofdetail,3)) -> 
D73: =Tableau2[[#This Row],[Police]]&Tableau2[[#This Row],[Date Reglement]] ->  | I73: =DATEDIF(Tableau2[[#This Row],[Date Souscription]],Tableau2[[#This Row],[Date Reglement]],"m")/12 -> 0 | J73: =IF(Tableau2[[#This Row],[Prime Total]]="","",VALUE(MID(Tableau2[[#This Row],[Police]],10,2))) ->  | K73: =IF(Tableau2[[#This Row],[Prime Total]]="","",VALUE(MID(Tableau2[[#This Row],[Police]],10,4))) ->  | L73: =IF(Tableau2[[#This Row],[Prime Total]]="","",VLOOKUP(Tableau2[[#This Row],[Classe]],baseproduit,2,FALSE)) ->  | M73: =IF(Tableau2[[#This Row],[Prime Total]]="","",VLOOKUP(Tableau2[[#This Row],[produit]],baseprofdetail,2)) ->  | N73: =IF(Tableau2[[#This Row],[Prime Total]]="","",VLOOKUP(Tableau2[[#This Row],[produit]],baseprofdetail,3)) -> 
D74: =Tableau2[[#This Row],[Police]]&Tableau2[[#This Row],[Date Reglement]] ->  | I74: =DATEDIF(Tableau2[[#This Row],[Date Souscription]],Tableau2[[#This Row],[Date Reglement]],"m")/12 -> 0 | J74: =IF(Tableau2[[#This Row],[Prime Total]]="","",VALUE(MID(Tableau2[[#This Row],[Police]],10,2))) ->  | K74: =IF(Tableau2[[#This Row],[Prime Total]]="","",VALUE(MID(Tableau2[[#This Row],[Police]],10,4))) ->  | L74: =IF(Tableau2[[#This Row],[Prime Total]]="","",VLOOKUP(Tableau2[[#This Row],[Classe]],baseproduit,2,FALSE)) ->  | M74: =IF(Tableau2[[#This Row],[Prime Total]]="","",VLOOKUP(Tableau2[[#This Row],[produit]],baseprofdetail,2)) ->  | N74: =IF(Tableau2[[#This Row],[Prime Total]]="","",VLOOKUP(Tableau2[[#This Row],[produit]],baseprofdetail,3)) -> 
D75: =Tableau2[[#This Row],[Police]]&Tableau2[[#This Row],[Date Reglement]] ->  | I75: =DATEDIF(Tableau2[[#This Row],[Date Souscription]],Tableau2[[#This Row],[Date Reglement]],"m")/12 -> 0 | J75: =IF(Tableau2[[#This Row],[Prime Total]]="","",VALUE(MID(Tableau2[[#This Row],[Police]],10,2))) ->  | K75: =IF(Tableau2[[#This Row],[Prime Total]]="","",VALUE(MID(Tableau2[[#This Row],[Police]],10,4))) ->  | L75: =IF(Tableau2[[#This Row],[Prime Total]]="","",VLOOKUP(Tableau2[[#This Row],[Classe]],baseproduit,2,FALSE)) ->  | M75: =IF(Tableau2[[#This Row],[Prime Total]]="","",VLOOKUP(Tableau2[[#This Row],[produit]],baseprofdetail,2)) ->  | N75: =IF(Tableau2[[#This Row],[Prime Total]]="","",VLOOKUP(Tableau2[[#This Row],[produit]],baseprofdetail,3)) -> 
D76: =Tableau2[[#This Row],[Police]]&Tableau2[[#This Row],[Date Reglement]] ->  | I76: =DATEDIF(Tableau2[[#This Row],[Date Souscription]],Tableau2[[#This Row],[Date Reglement]],"m")/12 -> 0 | J76: =IF(Tableau2[[#This Row],[Prime Total]]="","",VALUE(MID(Tableau2[[#This Row],[Police]],10,2))) ->  | K76: =IF(Tableau2[[#This Row],[Prime Total]]="","",VALUE(MID(Tableau2[[#This Row],[Police]],10,4))) ->  | L76: =IF(Tableau2[[#This Row],[Prime Total]]="","",VLOOKUP(Tableau2[[#This Row],[Classe]],baseproduit,2,FALSE)) ->  | M76: =IF(Tableau2[[#This Row],[Prime Total]]="","",VLOOKUP(Tableau2[[#This Row],[produit]],baseprofdetail,2)) ->  | N76: =IF(Tableau2[[#This Row],[Prime Total]]="","",VLOOKUP(Tableau2[[#This Row],[produit]],baseprofdetail,3)) -> 
D77: =Tableau2[[#This Row],[Police]]&Tableau2[[#This Row],[Date Reglement]] ->  | I77: =DATEDIF(Tableau2[[#This Row],[Date Souscription]],Tableau2[[#This Row],[Date Reglement]],"m")/12 -> 0 | J77: =IF(Tableau2[[#This Row],[Prime Total]]="","",VALUE(MID(Tableau2[[#This Row],[Police]],10,2))) ->  | K77: =IF(Tableau2[[#This Row],[Prime Total]]="","",VALUE(MID(Tableau2[[#This Row],[Police]],10,4))) ->  | L77: =IF(Tableau2[[#This Row],[Prime Total]]="","",VLOOKUP(Tableau2[[#This Row],[Classe]],baseproduit,2,FALSE)) ->  | M77: =IF(Tableau2[[#This Row],[Prime Total]]="","",VLOOKUP(Tableau2[[#This Row],[produit]],baseprofdetail,2)) ->  | N77: =IF(Tableau2[[#This Row],[Prime Total]]="","",VLOOKUP(Tableau2[[#This Row],[produit]],baseprofdetail,3)) -> 
D78: =Tableau2[[#This Row],[Police]]&Tableau2[[#This Row],[Date Reglement]] ->  | I78: =DATEDIF(Tableau2[[#This Row],[Date Souscription]],Tableau2[[#This Row],[Date Reglement]],"m")/12 -> 0 | J78: =IF(Tableau2[[#This Row],[Prime Total]]="","",VALUE(MID(Tableau2[[#This Row],[Police]],10,2))) ->  | K78: =IF(Tableau2[[#This Row],[Prime Total]]="","",VALUE(MID(Tableau2[[#This Row],[Police]],10,4))) ->  | L78: =IF(Tableau2[[#This Row],[Prime Total]]="","",VLOOKUP(Tableau2[[#This Row],[Classe]],baseproduit,2,FALSE)) ->  | M78: =IF(Tableau2[[#This Row],[Prime Total]]="","",VLOOKUP(Tableau2[[#This Row],[produit]],baseprofdetail,2)) ->  | N78: =IF(Tableau2[[#This Row],[Prime Total]]="","",VLOOKUP(Tableau2[[#This Row],[produit]],baseprofdetail,3)) -> 
D79: =Tableau2[[#This Row],[Police]]&Tableau2[[#This Row],[Date Reglement]] ->  | I79: =DATEDIF(Tableau2[[#This Row],[Date Souscription]],Tableau2[[#This Row],[Date Reglement]],"m")/12 -> 0 | J79: =IF(Tableau2[[#This Row],[Prime Total]]="","",VALUE(MID(Tableau2[[#This Row],[Police]],10,2))) ->  | K79: =IF(Tableau2[[#This Row],[Prime Total]]="","",VALUE(MID(Tableau2[[#This Row],[Police]],10,4))) ->  | L79: =IF(Tableau2[[#This Row],[Prime Total]]="","",VLOOKUP(Tableau2[[#This Row],[Classe]],baseproduit,2,FALSE)) ->  | M79: =IF(Tableau2[[#This Row],[Prime Total]]="","",VLOOKUP(Tableau2[[#This Row],[produit]],baseprofdetail,2)) ->  | N79: =IF(Tableau2[[#This Row],[Prime Total]]="","",VLOOKUP(Tableau2[[#This Row],[produit]],baseprofdetail,3)) -> 
D80: =Tableau2[[#This Row],[Police]]&Tableau2[[#This Row],[Date Reglement]] ->  | I80: =DATEDIF(Tableau2[[#This Row],[Date Souscription]],Tableau2[[#This Row],[Date Reglement]],"m")/12 -> 0 | J80: =IF(Tableau2[[#This Row],[Prime Total]]="","",VALUE(MID(Tableau2[[#This Row],[Police]],10,2))) ->  | K80: =IF(Tableau2[[#This Row],[Prime Total]]="","",VALUE(MID(Tableau2[[#This Row],[Police]],10,4))) ->  | L80: =IF(Tableau2[[#This Row],[Prime Total]]="","",VLOOKUP(Tableau2[[#This Row],[Classe]],baseproduit,2,FALSE)) ->  | M80: =IF(Tableau2[[#This Row],[Prime Total]]="","",VLOOKUP(Tableau2[[#This Row],[produit]],baseprofdetail,2)) ->  | N80: =IF(Tableau2[[#This Row],[Prime Total]]="","",VLOOKUP(Tableau2[[#This Row],[produit]],baseprofdetail,3)) -> 
D81: =Tableau2[[#This Row],[Police]]&Tableau2[[#This Row],[Date Reglement]] ->  | I81: =DATEDIF(Tableau2[[#This Row],[Date Souscription]],Tableau2[[#This Row],[Date Reglement]],"m")/12 -> 0 | J81: =IF(Tableau2[[#This Row],[Prime Total]]="","",VALUE(MID(Tableau2[[#This Row],[Police]],10,2))) ->  | K81: =IF(Tableau2[[#This Row],[Prime Total]]="","",VALUE(MID(Tableau2[[#This Row],[Police]],10,4))) ->  | L81: =IF(Tableau2[[#This Row],[Prime Total]]="","",VLOOKUP(Tableau2[[#This Row],[Classe]],baseproduit,2,FALSE)) ->  | M81: =IF(Tableau2[[#This Row],[Prime Total]]="","",VLOOKUP(Tableau2[[#This Row],[produit]],baseprofdetail,2)) ->  | N81: =IF(Tableau2[[#This Row],[Prime Total]]="","",VLOOKUP(Tableau2[[#This Row],[produit]],baseprofdetail,3)) -> 
D82: =Tableau2[[#This Row],[Police]]&Tableau2[[#This Row],[Date Reglement]] ->  | I82: =DATEDIF(Tableau2[[#This Row],[Date Souscription]],Tableau2[[#This Row],[Date Reglement]],"m")/12 -> 0 | J82: =IF(Tableau2[[#This Row],[Prime Total]]="","",VALUE(MID(Tableau2[[#This Row],[Police]],10,2))) ->  | K82: =IF(Tableau2[[#This Row],[Prime Total]]="","",VALUE(MID(Tableau2[[#This Row],[Police]],10,4))) ->  | L82: =IF(Tableau2[[#This Row],[Prime Total]]="","",VLOOKUP(Tableau2[[#This Row],[Classe]],baseproduit,2,FALSE)) ->  | M82: =IF(Tableau2[[#This Row],[Prime Total]]="","",VLOOKUP(Tableau2[[#This Row],[produit]],baseprofdetail,2)) ->  | N82: =IF(Tableau2[[#This Row],[Prime Total]]="","",VLOOKUP(Tableau2[[#This Row],[produit]],baseprofdetail,3)) -> 
D83: =Tableau2[[#This Row],[Police]]&Tableau2[[#This Row],[Date Reglement]] ->  | I83: =DATEDIF(Tableau2[[#This Row],[Date Souscription]],Tableau2[[#This Row],[Date Reglement]],"m")/12 -> 0 | J83: =IF(Tableau2[[#This Row],[Prime Total]]="","",VALUE(MID(Tableau2[[#This Row],[Police]],10,2))) ->  | K83: =IF(Tableau2[[#This Row],[Prime Total]]="","",VALUE(MID(Tableau2[[#This Row],[Police]],10,4))) ->  | L83: =IF(Tableau2[[#This Row],[Prime Total]]="","",VLOOKUP(Tableau2[[#This Row],[Classe]],baseproduit,2,FALSE)) ->  | M83: =IF(Tableau2[[#This Row],[Prime Total]]="","",VLOOKUP(Tableau2[[#This Row],[produit]],baseprofdetail,2)) ->  | N83: =IF(Tableau2[[#This Row],[Prime Total]]="","",VLOOKUP(Tableau2[[#This Row],[produit]],baseprofdetail,3)) -> 
D84: =Tableau2[[#This Row],[Police]]&Tableau2[[#This Row],[Date Reglement]] ->  | I84: =DATEDIF(Tableau2[[#This Row],[Date Souscription]],Tableau2[[#This Row],[Date Reglement]],"m")/12 -> 0 | J84: =IF(Tableau2[[#This Row],[Prime Total]]="","",VALUE(MID(Tableau2[[#This Row],[Police]],10,2))) ->  | K84: =IF(Tableau2[[#This Row],[Prime Total]]="","",VALUE(MID(Tableau2[[#This Row],[Police]],10,4))) ->  | L84: =IF(Tableau2[[#This Row],[Prime Total]]="","",VLOOKUP(Tableau2[[#This Row],[Classe]],baseproduit,2,FALSE)) ->  | M84: =IF(Tableau2[[#This Row],[Prime Total]]="","",VLOOKUP(Tableau2[[#This Row],[produit]],baseprofdetail,2)) ->  | N84: =IF(Tableau2[[#This Row],[Prime Total]]="","",VLOOKUP(Tableau2[[#This Row],[produit]],baseprofdetail,3)) -> 
D85: =Tableau2[[#This Row],[Police]]&Tableau2[[#This Row],[Date Reglement]] ->  | I85: =DATEDIF(Tableau2[[#This Row],[Date Souscription]],Tableau2[[#This Row],[Date Reglement]],"m")/12 -> 0 | J85: =IF(Tableau2[[#This Row],[Prime Total]]="","",VALUE(MID(Tableau2[[#This Row],[Police]],10,2))) ->  | K85: =IF(Tableau2[[#This Row],[Prime Total]]="","",VALUE(MID(Tableau2[[#This Row],[Police]],10,4))) ->  | L85: =IF(Tableau2[[#This Row],[Prime Total]]="","",VLOOKUP(Tableau2[[#This Row],[Classe]],baseproduit,2,FALSE)) ->  | M85: =IF(Tableau2[[#This Row],[Prime Total]]="","",VLOOKUP(Tableau2[[#This Row],[produit]],baseprofdetail,2)) ->  | N85: =IF(Tableau2[[#This Row],[Prime Total]]="","",VLOOKUP(Tableau2[[#This Row],[produit]],baseprofdetail,3)) -> 
D86: =Tableau2[[#This Row],[Police]]&Tableau2[[#This Row],[Date Reglement]] ->  | I86: =DATEDIF(Tableau2[[#This Row],[Date Souscription]],Tableau2[[#This Row],[Date Reglement]],"m")/12 -> 0 | J86: =IF(Tableau2[[#This Row],[Prime Total]]="","",VALUE(MID(Tableau2[[#This Row],[Police]],10,2))) ->  | K86: =IF(Tableau2[[#This Row],[Prime Total]]="","",VALUE(MID(Tableau2[[#This Row],[Police]],10,4))) ->  | L86: =IF(Tableau2[[#This Row],[Prime Total]]="","",VLOOKUP(Tableau2[[#This Row],[Classe]],baseproduit,2,FALSE)) ->  | M86: =IF(Tableau2[[#This Row],[Prime Total]]="","",VLOOKUP(Tableau2[[#This Row],[produit]],baseprofdetail,2)) ->  | N86: =IF(Tableau2[[#This Row],[Prime Total]]="","",VLOOKUP(Tableau2[[#This Row],[produit]],baseprofdetail,3)) -> 
D87: =Tableau2[[#This Row],[Police]]&Tableau2[[#This Row],[Date Reglement]] ->  | I87: =DATEDIF(Tableau2[[#This Row],[Date Souscription]],Tableau2[[#This Row],[Date Reglement]],"m")/12 -> 0 | J87: =IF(Tableau2[[#This Row],[Prime Total]]="","",VALUE(MID(Tableau2[[#This Row],[Police]],10,2))) ->  | K87: =IF(Tableau2[[#This Row],[Prime Total]]="","",VALUE(MID(Tableau2[[#This Row],[Police]],10,4))) ->  | L87: =IF(Tableau2[[#This Row],[Prime Total]]="","",VLOOKUP(Tableau2[[#This Row],[Classe]],baseproduit,2,FALSE)) ->  | M87: =IF(Tableau2[[#This Row],[Prime Total]]="","",VLOOKUP(Tableau2[[#This Row],[produit]],baseprofdetail,2)) ->  | N87: =IF(Tableau2[[#This Row],[Prime Total]]="","",VLOOKUP(Tableau2[[#This Row],[produit]],baseprofdetail,3)) -> 
D88: =Tableau2[[#This Row],[Police]]&Tableau2[[#This Row],[Date Reglement]] ->  | I88: =DATEDIF(Tableau2[[#This Row],[Date Souscription]],Tableau2[[#This Row],[Date Reglement]],"m")/12 -> 0 | J88: =IF(Tableau2[[#This Row],[Prime Total]]="","",VALUE(MID(Tableau2[[#This Row],[Police]],10,2))) ->  | K88: =IF(Tableau2[[#This Row],[Prime Total]]="","",VALUE(MID(Tableau2[[#This Row],[Police]],10,4))) ->  | L88: =IF(Tableau2[[#This Row],[Prime Total]]="","",VLOOKUP(Tableau2[[#This Row],[Classe]],baseproduit,2,FALSE)) ->  | M88: =IF(Tableau2[[#This Row],[Prime Total]]="","",VLOOKUP(Tableau2[[#This Row],[produit]],baseprofdetail,2)) ->  | N88: =IF(Tableau2[[#This Row],[Prime Total]]="","",VLOOKUP(Tableau2[[#This Row],[produit]],baseprofdetail,3)) -> 
D89: =Tableau2[[#This Row],[Police]]&Tableau2[[#This Row],[Date Reglement]] ->  | I89: =DATEDIF(Tableau2[[#This Row],[Date Souscription]],Tableau2[[#This Row],[Date Reglement]],"m")/12 -> 0 | J89: =IF(Tableau2[[#This Row],[Prime Total]]="","",VALUE(MID(Tableau2[[#This Row],[Police]],10,2))) ->  | K89: =IF(Tableau2[[#This Row],[Prime Total]]="","",VALUE(MID(Tableau2[[#This Row],[Police]],10,4))) ->  | L89: =IF(Tableau2[[#This Row],[Prime Total]]="","",VLOOKUP(Tableau2[[#This Row],[Classe]],baseproduit,2,FALSE)) ->  | M89: =IF(Tableau2[[#This Row],[Prime Total]]="","",VLOOKUP(Tableau2[[#This Row],[produit]],baseprofdetail,2)) ->  | N89: =IF(Tableau2[[#This Row],[Prime Total]]="","",VLOOKUP(Tableau2[[#This Row],[produit]],baseprofdetail,3)) -> 
D90: =Tableau2[[#This Row],[Police]]&Tableau2[[#This Row],[Date Reglement]] ->  | I90: =DATEDIF(Tableau2[[#This Row],[Date Souscription]],Tableau2[[#This Row],[Date Reglement]],"m")/12 -> 0 | J90: =IF(Tableau2[[#This Row],[Prime Total]]="","",VALUE(MID(Tableau2[[#This Row],[Police]],10,2))) ->  | K90: =IF(Tableau2[[#This Row],[Prime Total]]="","",VALUE(MID(Tableau2[[#This Row],[Police]],10,4))) ->  | L90: =IF(Tableau2[[#This Row],[Prime Total]]="","",VLOOKUP(Tableau2[[#This Row],[Classe]],baseproduit,2,FALSE)) ->  | M90: =IF(Tableau2[[#This Row],[Prime Total]]="","",VLOOKUP(Tableau2[[#This Row],[produit]],baseprofdetail,2)) ->  | N90: =IF(Tableau2[[#This Row],[Prime Total]]="","",VLOOKUP(Tableau2[[#This Row],[produit]],baseprofdetail,3)) -> 
D91: =Tableau2[[#This Row],[Police]]&Tableau2[[#This Row],[Date Reglement]] ->  | I91: =DATEDIF(Tableau2[[#This Row],[Date Souscription]],Tableau2[[#This Row],[Date Reglement]],"m")/12 -> 0 | J91: =IF(Tableau2[[#This Row],[Prime Total]]="","",VALUE(MID(Tableau2[[#This Row],[Police]],10,2))) ->  | K91: =IF(Tableau2[[#This Row],[Prime Total]]="","",VALUE(MID(Tableau2[[#This Row],[Police]],10,4))) ->  | L91: =IF(Tableau2[[#This Row],[Prime Total]]="","",VLOOKUP(Tableau2[[#This Row],[Classe]],baseproduit,2,FALSE)) ->  | M91: =IF(Tableau2[[#This Row],[Prime Total]]="","",VLOOKUP(Tableau2[[#This Row],[produit]],baseprofdetail,2)) ->  | N91: =IF(Tableau2[[#This Row],[Prime Total]]="","",VLOOKUP(Tableau2[[#This Row],[produit]],baseprofdetail,3)) -> 
D92: =Tableau2[[#This Row],[Police]]&Tableau2[[#This Row],[Date Reglement]] ->  | I92: =DATEDIF(Tableau2[[#This Row],[Date Souscription]],Tableau2[[#This Row],[Date Reglement]],"m")/12 -> 0 | J92: =IF(Tableau2[[#This Row],[Prime Total]]="","",VALUE(MID(Tableau2[[#This Row],[Police]],10,2))) ->  | K92: =IF(Tableau2[[#This Row],[Prime Total]]="","",VALUE(MID(Tableau2[[#This Row],[Police]],10,4))) ->  | L92: =IF(Tableau2[[#This Row],[Prime Total]]="","",VLOOKUP(Tableau2[[#This Row],[Classe]],baseproduit,2,FALSE)) ->  | M92: =IF(Tableau2[[#This Row],[Prime Total]]="","",VLOOKUP(Tableau2[[#This Row],[produit]],baseprofdetail,2)) ->  | N92: =IF(Tableau2[[#This Row],[Prime Total]]="","",VLOOKUP(Tableau2[[#This Row],[produit]],baseprofdetail,3)) -> 
D93: =Tableau2[[#This Row],[Police]]&Tableau2[[#This Row],[Date Reglement]] ->  | I93: =DATEDIF(Tableau2[[#This Row],[Date Souscription]],Tableau2[[#This Row],[Date Reglement]],"m")/12 -> 0 | J93: =IF(Tableau2[[#This Row],[Prime Total]]="","",VALUE(MID(Tableau2[[#This Row],[Police]],10,2))) ->  | K93: =IF(Tableau2[[#This Row],[Prime Total]]="","",VALUE(MID(Tableau2[[#This Row],[Police]],10,4))) ->  | L93: =IF(Tableau2[[#This Row],[Prime Total]]="","",VLOOKUP(Tableau2[[#This Row],[Classe]],baseproduit,2,FALSE)) ->  | M93: =IF(Tableau2[[#This Row],[Prime Total]]="","",VLOOKUP(Tableau2[[#This Row],[produit]],baseprofdetail,2)) ->  | N93: =IF(Tableau2[[#This Row],[Prime Total]]="","",VLOOKUP(Tableau2[[#This Row],[produit]],baseprofdetail,3)) -> 
D94: =Tableau2[[#This Row],[Police]]&Tableau2[[#This Row],[Date Reglement]] ->  | I94: =DATEDIF(Tableau2[[#This Row],[Date Souscription]],Tableau2[[#This Row],[Date Reglement]],"m")/12 -> 0 | J94: =IF(Tableau2[[#This Row],[Prime Total]]="","",VALUE(MID(Tableau2[[#This Row],[Police]],10,2))) ->  | K94: =IF(Tableau2[[#This Row],[Prime Total]]="","",VALUE(MID(Tableau2[[#This Row],[Police]],10,4))) ->  | L94: =IF(Tableau2[[#This Row],[Prime Total]]="","",VLOOKUP(Tableau2[[#This Row],[Classe]],baseproduit,2,FALSE)) ->  | M94: =IF(Tableau2[[#This Row],[Prime Total]]="","",VLOOKUP(Tableau2[[#This Row],[produit]],baseprofdetail,2)) ->  | N94: =IF(Tableau2[[#This Row],[Prime Total]]="","",VLOOKUP(Tableau2[[#This Row],[produit]],baseprofdetail,3)) -> 
D95: =Tableau2[[#This Row],[Police]]&Tableau2[[#This Row],[Date Reglement]] ->  | I95: =DATEDIF(Tableau2[[#This Row],[Date Souscription]],Tableau2[[#This Row],[Date Reglement]],"m")/12 -> 0 | J95: =IF(Tableau2[[#This Row],[Prime Total]]="","",VALUE(MID(Tableau2[[#This Row],[Police]],10,2))) ->  | K95: =IF(Tableau2[[#This Row],[Prime Total]]="","",VALUE(MID(Tableau2[[#This Row],[Police]],10,4))) ->  | L95: =IF(Tableau2[[#This Row],[Prime Total]]="","",VLOOKUP(Tableau2[[#This Row],[Classe]],baseproduit,2,FALSE)) ->  | M95: =IF(Tableau2[[#This Row],[Prime Total]]="","",VLOOKUP(Tableau2[[#This Row],[produit]],baseprofdetail,2)) ->  | N95: =IF(Tableau2[[#This Row],[Prime Total]]="","",VLOOKUP(Tableau2[[#This Row],[produit]],baseprofdetail,3)) -> 
D96: =Tableau2[[#This Row],[Police]]&Tableau2[[#This Row],[Date Reglement]] ->  | I96: =DATEDIF(Tableau2[[#This Row],[Date Souscription]],Tableau2[[#This Row],[Date Reglement]],"m")/12 -> 0 | J96: =IF(Tableau2[[#This Row],[Prime Total]]="","",VALUE(MID(Tableau2[[#This Row],[Police]],10,2))) ->  | K96: =IF(Tableau2[[#This Row],[Prime Total]]="","",VALUE(MID(Tableau2[[#This Row],[Police]],10,4))) ->  | L96: =IF(Tableau2[[#This Row],[Prime Total]]="","",VLOOKUP(Tableau2[[#This Row],[Classe]],baseproduit,2,FALSE)) ->  | M96: =IF(Tableau2[[#This Row],[Prime Total]]="","",VLOOKUP(Tableau2[[#This Row],[produit]],baseprofdetail,2)) ->  | N96: =IF(Tableau2[[#This Row],[Prime Total]]="","",VLOOKUP(Tableau2[[#This Row],[produit]],baseprofdetail,3)) -> 
D97: =Tableau2[[#This Row],[Police]]&Tableau2[[#This Row],[Date Reglement]] ->  | I97: =DATEDIF(Tableau2[[#This Row],[Date Souscription]],Tableau2[[#This Row],[Date Reglement]],"m")/12 -> 0 | J97: =IF(Tableau2[[#This Row],[Prime Total]]="","",VALUE(MID(Tableau2[[#This Row],[Police]],10,2))) ->  | K97: =IF(Tableau2[[#This Row],[Prime Total]]="","",VALUE(MID(Tableau2[[#This Row],[Police]],10,4))) ->  | L97: =IF(Tableau2[[#This Row],[Prime Total]]="","",VLOOKUP(Tableau2[[#This Row],[Classe]],baseproduit,2,FALSE)) ->  | M97: =IF(Tableau2[[#This Row],[Prime Total]]="","",VLOOKUP(Tableau2[[#This Row],[produit]],baseprofdetail,2)) ->  | N97: =IF(Tableau2[[#This Row],[Prime Total]]="","",VLOOKUP(Tableau2[[#This Row],[produit]],baseprofdetail,3)) -> 
D98: =Tableau2[[#This Row],[Police]]&Tableau2[[#This Row],[Date Reglement]] ->  | I98: =DATEDIF(Tableau2[[#This Row],[Date Souscription]],Tableau2[[#This Row],[Date Reglement]],"m")/12 -> 0 | J98: =IF(Tableau2[[#This Row],[Prime Total]]="","",VALUE(MID(Tableau2[[#This Row],[Police]],10,2))) ->  | K98: =IF(Tableau2[[#This Row],[Prime Total]]="","",VALUE(MID(Tableau2[[#This Row],[Police]],10,4))) ->  | L98: =IF(Tableau2[[#This Row],[Prime Total]]="","",VLOOKUP(Tableau2[[#This Row],[Classe]],baseproduit,2,FALSE)) ->  | M98: =IF(Tableau2[[#This Row],[Prime Total]]="","",VLOOKUP(Tableau2[[#This Row],[produit]],baseprofdetail,2)) ->  | N98: =IF(Tableau2[[#This Row],[Prime Total]]="","",VLOOKUP(Tableau2[[#This Row],[produit]],baseprofdetail,3)) -> 
D99: =Tableau2[[#This Row],[Police]]&Tableau2[[#This Row],[Date Reglement]] ->  | I99: =DATEDIF(Tableau2[[#This Row],[Date Souscription]],Tableau2[[#This Row],[Date Reglement]],"m")/12 -> 0 | J99: =IF(Tableau2[[#This Row],[Prime Total]]="","",VALUE(MID(Tableau2[[#This Row],[Police]],10,2))) ->  | K99: =IF(Tableau2[[#This Row],[Prime Total]]="","",VALUE(MID(Tableau2[[#This Row],[Police]],10,4))) ->  | L99: =IF(Tableau2[[#This Row],[Prime Total]]="","",VLOOKUP(Tableau2[[#This Row],[Classe]],baseproduit,2,FALSE)) ->  | M99: =IF(Tableau2[[#This Row],[Prime Total]]="","",VLOOKUP(Tableau2[[#This Row],[produit]],baseprofdetail,2)) ->  | N99: =IF(Tableau2[[#This Row],[Prime Total]]="","",VLOOKUP(Tableau2[[#This Row],[produit]],baseprofdetail,3)) -> 
D100: =Tableau2[[#This Row],[Police]]&Tableau2[[#This Row],[Date Reglement]] ->  | I100: =DATEDIF(Tableau2[[#This Row],[Date Souscription]],Tableau2[[#This Row],[Date Reglement]],"m")/12 -> 0 | J100: =IF(Tableau2[[#This Row],[Prime Total]]="","",VALUE(MID(Tableau2[[#This Row],[Police]],10,2))) ->  | K100: =IF(Tableau2[[#This Row],[Prime Total]]="","",VALUE(MID(Tableau2[[#This Row],[Police]],10,4))) ->  | L100: =IF(Tableau2[[#This Row],[Prime Total]]="","",VLOOKUP(Tableau2[[#This Row],[Classe]],baseproduit,2,FALSE)) ->  | M100: =IF(Tableau2[[#This Row],[Prime Total]]="","",VLOOKUP(Tableau2[[#This Row],[produit]],baseprofdetail,2)) ->  | N100: =IF(Tableau2[[#This Row],[Prime Total]]="","",VLOOKUP(Tableau2[[#This Row],[produit]],baseprofdetail,3)) -> 
D101: =Tableau2[[#This Row],[Police]]&Tableau2[[#This Row],[Date Reglement]] ->  | I101: =DATEDIF(Tableau2[[#This Row],[Date Souscription]],Tableau2[[#This Row],[Date Reglement]],"m")/12 -> 0 | J101: =IF(Tableau2[[#This Row],[Prime Total]]="","",VALUE(MID(Tableau2[[#This Row],[Police]],10,2))) ->  | K101: =IF(Tableau2[[#This Row],[Prime Total]]="","",VALUE(MID(Tableau2[[#This Row],[Police]],10,4))) ->  | L101: =IF(Tableau2[[#This Row],[Prime Total]]="","",VLOOKUP(Tableau2[[#This Row],[Classe]],baseproduit,2,FALSE)) ->  | M101: =IF(Tableau2[[#This Row],[Prime Total]]="","",VLOOKUP(Tableau2[[#This Row],[produit]],baseprofdetail,2)) ->  | N101: =IF(Tableau2[[#This Row],[Prime Total]]="","",VLOOKUP(Tableau2[[#This Row],[produit]],baseprofdetail,3)) -> 
D102: =Tableau2[[#This Row],[Police]]&Tableau2[[#This Row],[Date Reglement]] ->  | I102: =DATEDIF(Tableau2[[#This Row],[Date Souscription]],Tableau2[[#This Row],[Date Reglement]],"m")/12 -> 0 | J102: =IF(Tableau2[[#This Row],[Prime Total]]="","",VALUE(MID(Tableau2[[#This Row],[Police]],10,2))) ->  | K102: =IF(Tableau2[[#This Row],[Prime Total]]="","",VALUE(MID(Tableau2[[#This Row],[Police]],10,4))) ->  | L102: =IF(Tableau2[[#This Row],[Prime Total]]="","",VLOOKUP(Tableau2[[#This Row],[Classe]],baseproduit,2,FALSE)) ->  | M102: =IF(Tableau2[[#This Row],[Prime Total]]="","",VLOOKUP(Tableau2[[#This Row],[produit]],baseprofdetail,2)) ->  | N102: =IF(Tableau2[[#This Row],[Prime Total]]="","",VLOOKUP(Tableau2[[#This Row],[produit]],baseprofdetail,3)) -> 
D103: =Tableau2[[#This Row],[Police]]&Tableau2[[#This Row],[Date Reglement]] ->  | I103: =DATEDIF(Tableau2[[#This Row],[Date Souscription]],Tableau2[[#This Row],[Date Reglement]],"m")/12 -> 0 | J103: =IF(Tableau2[[#This Row],[Prime Total]]="","",VALUE(MID(Tableau2[[#This Row],[Police]],10,2))) ->  | K103: =IF(Tableau2[[#This Row],[Prime Total]]="","",VALUE(MID(Tableau2[[#This Row],[Police]],10,4))) ->  | L103: =IF(Tableau2[[#This Row],[Prime Total]]="","",VLOOKUP(Tableau2[[#This Row],[Classe]],baseproduit,2,FALSE)) ->  | M103: =IF(Tableau2[[#This Row],[Prime Total]]="","",VLOOKUP(Tableau2[[#This Row],[produit]],baseprofdetail,2)) ->  | N103: =IF(Tableau2[[#This Row],[Prime Total]]="","",VLOOKUP(Tableau2[[#This Row],[produit]],baseprofdetail,3)) -> 
D104: =Tableau2[[#This Row],[Police]]&Tableau2[[#This Row],[Date Reglement]] ->  | I104: =DATEDIF(Tableau2[[#This Row],[Date Souscription]],Tableau2[[#This Row],[Date Reglement]],"m")/12 -> 0 | J104: =IF(Tableau2[[#This Row],[Prime Total]]="","",VALUE(MID(Tableau2[[#This Row],[Police]],10,2))) ->  | K104: =IF(Tableau2[[#This Row],[Prime Total]]="","",VALUE(MID(Tableau2[[#This Row],[Police]],10,4))) ->  | L104: =IF(Tableau2[[#This Row],[Prime Total]]="","",VLOOKUP(Tableau2[[#This Row],[Classe]],baseproduit,2,FALSE)) ->  | M104: =IF(Tableau2[[#This Row],[Prime Total]]="","",VLOOKUP(Tableau2[[#This Row],[produit]],baseprofdetail,2)) ->  | N104: =IF(Tableau2[[#This Row],[Prime Total]]="","",VLOOKUP(Tableau2[[#This Row],[produit]],baseprofdetail,3)) -> 
D105: =Tableau2[[#This Row],[Police]]&Tableau2[[#This Row],[Date Reglement]] ->  | I105: =DATEDIF(Tableau2[[#This Row],[Date Souscription]],Tableau2[[#This Row],[Date Reglement]],"m")/12 -> 0 | J105: =IF(Tableau2[[#This Row],[Prime Total]]="","",VALUE(MID(Tableau2[[#This Row],[Police]],10,2))) ->  | K105: =IF(Tableau2[[#This Row],[Prime Total]]="","",VALUE(MID(Tableau2[[#This Row],[Police]],10,4))) ->  | L105: =IF(Tableau2[[#This Row],[Prime Total]]="","",VLOOKUP(Tableau2[[#This Row],[Classe]],baseproduit,2,FALSE)) ->  | M105: =IF(Tableau2[[#This Row],[Prime Total]]="","",VLOOKUP(Tableau2[[#This Row],[produit]],baseprofdetail,2)) ->  | N105: =IF(Tableau2[[#This Row],[Prime Total]]="","",VLOOKUP(Tableau2[[#This Row],[produit]],baseprofdetail,3)) -> 
D106: =Tableau2[[#This Row],[Police]]&Tableau2[[#This Row],[Date Reglement]] ->  | I106: =DATEDIF(Tableau2[[#This Row],[Date Souscription]],Tableau2[[#This Row],[Date Reglement]],"m")/12 -> 0 | J106: =IF(Tableau2[[#This Row],[Prime Total]]="","",VALUE(MID(Tableau2[[#This Row],[Police]],10,2))) ->  | K106: =IF(Tableau2[[#This Row],[Prime Total]]="","",VALUE(MID(Tableau2[[#This Row],[Police]],10,4))) ->  | L106: =IF(Tableau2[[#This Row],[Prime Total]]="","",VLOOKUP(Tableau2[[#This Row],[Classe]],baseproduit,2,FALSE)) ->  | M106: =IF(Tableau2[[#This Row],[Prime Total]]="","",VLOOKUP(Tableau2[[#This Row],[produit]],baseprofdetail,2)) ->  | N106: =IF(Tableau2[[#This Row],[Prime Total]]="","",VLOOKUP(Tableau2[[#This Row],[produit]],baseprofdetail,3)) -> 
D107: =Tableau2[[#This Row],[Police]]&Tableau2[[#This Row],[Date Reglement]] ->  | I107: =DATEDIF(Tableau2[[#This Row],[Date Souscription]],Tableau2[[#This Row],[Date Reglement]],"m")/12 -> 0 | J107: =IF(Tableau2[[#This Row],[Prime Total]]="","",VALUE(MID(Tableau2[[#This Row],[Police]],10,2))) ->  | K107: =IF(Tableau2[[#This Row],[Prime Total]]="","",VALUE(MID(Tableau2[[#This Row],[Police]],10,4))) ->  | L107: =IF(Tableau2[[#This Row],[Prime Total]]="","",VLOOKUP(Tableau2[[#This Row],[Classe]],baseproduit,2,FALSE)) ->  | M107: =IF(Tableau2[[#This Row],[Prime Total]]="","",VLOOKUP(Tableau2[[#This Row],[produit]],baseprofdetail,2)) ->  | N107: =IF(Tableau2[[#This Row],[Prime Total]]="","",VLOOKUP(Tableau2[[#This Row],[produit]],baseprofdetail,3)) -> 
D108: =Tableau2[[#This Row],[Police]]&Tableau2[[#This Row],[Date Reglement]] ->  | I108: =DATEDIF(Tableau2[[#This Row],[Date Souscription]],Tableau2[[#This Row],[Date Reglement]],"m")/12 -> 0 | J108: =IF(Tableau2[[#This Row],[Prime Total]]="","",VALUE(MID(Tableau2[[#This Row],[Police]],10,2))) ->  | K108: =IF(Tableau2[[#This Row],[Prime Total]]="","",VALUE(MID(Tableau2[[#This Row],[Police]],10,4))) ->  | L108: =IF(Tableau2[[#This Row],[Prime Total]]="","",VLOOKUP(Tableau2[[#This Row],[Classe]],baseproduit,2,FALSE)) ->  | M108: =IF(Tableau2[[#This Row],[Prime Total]]="","",VLOOKUP(Tableau2[[#This Row],[produit]],baseprofdetail,2)) ->  | N108: =IF(Tableau2[[#This Row],[Prime Total]]="","",VLOOKUP(Tableau2[[#This Row],[produit]],baseprofdetail,3)) -> 
D109: =Tableau2[[#This Row],[Police]]&Tableau2[[#This Row],[Date Reglement]] ->  | I109: =DATEDIF(Tableau2[[#This Row],[Date Souscription]],Tableau2[[#This Row],[Date Reglement]],"m")/12 -> 0 | J109: =IF(Tableau2[[#This Row],[Prime Total]]="","",VALUE(MID(Tableau2[[#This Row],[Police]],10,2))) ->  | K109: =IF(Tableau2[[#This Row],[Prime Total]]="","",VALUE(MID(Tableau2[[#This Row],[Police]],10,4))) ->  | L109: =IF(Tableau2[[#This Row],[Prime Total]]="","",VLOOKUP(Tableau2[[#This Row],[Classe]],baseproduit,2,FALSE)) ->  | M109: =IF(Tableau2[[#This Row],[Prime Total]]="","",VLOOKUP(Tableau2[[#This Row],[produit]],baseprofdetail,2)) ->  | N109: =IF(Tableau2[[#This Row],[Prime Total]]="","",VLOOKUP(Tableau2[[#This Row],[produit]],baseprofdetail,3)) -> 
D110: =Tableau2[[#This Row],[Police]]&Tableau2[[#This Row],[Date Reglement]] ->  | I110: =DATEDIF(Tableau2[[#This Row],[Date Souscription]],Tableau2[[#This Row],[Date Reglement]],"m")/12 -> 0 | J110: =IF(Tableau2[[#This Row],[Prime Total]]="","",VALUE(MID(Tableau2[[#This Row],[Police]],10,2))) ->  | K110: =IF(Tableau2[[#This Row],[Prime Total]]="","",VALUE(MID(Tableau2[[#This Row],[Police]],10,4))) ->  | L110: =IF(Tableau2[[#This Row],[Prime Total]]="","",VLOOKUP(Tableau2[[#This Row],[Classe]],baseproduit,2,FALSE)) ->  | M110: =IF(Tableau2[[#This Row],[Prime Total]]="","",VLOOKUP(Tableau2[[#This Row],[produit]],baseprofdetail,2)) ->  | N110: =IF(Tableau2[[#This Row],[Prime Total]]="","",VLOOKUP(Tableau2[[#This Row],[produit]],baseprofdetail,3)) -> 
D111: =Tableau2[[#This Row],[Police]]&Tableau2[[#This Row],[Date Reglement]] ->  | I111: =DATEDIF(Tableau2[[#This Row],[Date Souscription]],Tableau2[[#This Row],[Date Reglement]],"m")/12 -> 0 | J111: =IF(Tableau2[[#This Row],[Prime Total]]="","",VALUE(MID(Tableau2[[#This Row],[Police]],10,2))) ->  | K111: =IF(Tableau2[[#This Row],[Prime Total]]="","",VALUE(MID(Tableau2[[#This Row],[Police]],10,4))) ->  | L111: =IF(Tableau2[[#This Row],[Prime Total]]="","",VLOOKUP(Tableau2[[#This Row],[Classe]],baseproduit,2,FALSE)) ->  | M111: =IF(Tableau2[[#This Row],[Prime Total]]="","",VLOOKUP(Tableau2[[#This Row],[produit]],baseprofdetail,2)) ->  | N111: =IF(Tableau2[[#This Row],[Prime Total]]="","",VLOOKUP(Tableau2[[#This Row],[produit]],baseprofdetail,3)) -> 
D112: =Tableau2[[#This Row],[Police]]&Tableau2[[#This Row],[Date Reglement]] ->  | I112: =DATEDIF(Tableau2[[#This Row],[Date Souscription]],Tableau2[[#This Row],[Date Reglement]],"m")/12 -> 0 | J112: =IF(Tableau2[[#This Row],[Prime Total]]="","",VALUE(MID(Tableau2[[#This Row],[Police]],10,2))) ->  | K112: =IF(Tableau2[[#This Row],[Prime Total]]="","",VALUE(MID(Tableau2[[#This Row],[Police]],10,4))) ->  | L112: =IF(Tableau2[[#This Row],[Prime Total]]="","",VLOOKUP(Tableau2[[#This Row],[Classe]],baseproduit,2,FALSE)) ->  | M112: =IF(Tableau2[[#This Row],[Prime Total]]="","",VLOOKUP(Tableau2[[#This Row],[produit]],baseprofdetail,2)) ->  | N112: =IF(Tableau2[[#This Row],[Prime Total]]="","",VLOOKUP(Tableau2[[#This Row],[produit]],baseprofdetail,3)) -> 
D113: =Tableau2[[#This Row],[Police]]&Tableau2[[#This Row],[Date Reglement]] ->  | I113: =DATEDIF(Tableau2[[#This Row],[Date Souscription]],Tableau2[[#This Row],[Date Reglement]],"m")/12 -> 0 | J113: =IF(Tableau2[[#This Row],[Prime Total]]="","",VALUE(MID(Tableau2[[#This Row],[Police]],10,2))) ->  | K113: =IF(Tableau2[[#This Row],[Prime Total]]="","",VALUE(MID(Tableau2[[#This Row],[Police]],10,4))) ->  | L113: =IF(Tableau2[[#This Row],[Prime Total]]="","",VLOOKUP(Tableau2[[#This Row],[Classe]],baseproduit,2,FALSE)) ->  | M113: =IF(Tableau2[[#This Row],[Prime Total]]="","",VLOOKUP(Tableau2[[#This Row],[produit]],baseprofdetail,2)) ->  | N113: =IF(Tableau2[[#This Row],[Prime Total]]="","",VLOOKUP(Tableau2[[#This Row],[produit]],baseprofdetail,3)) -> 
D114: =Tableau2[[#This Row],[Police]]&Tableau2[[#This Row],[Date Reglement]] ->  | I114: =DATEDIF(Tableau2[[#This Row],[Date Souscription]],Tableau2[[#This Row],[Date Reglement]],"m")/12 -> 0 | J114: =IF(Tableau2[[#This Row],[Prime Total]]="","",VALUE(MID(Tableau2[[#This Row],[Police]],10,2))) ->  | K114: =IF(Tableau2[[#This Row],[Prime Total]]="","",VALUE(MID(Tableau2[[#This Row],[Police]],10,4))) ->  | L114: =IF(Tableau2[[#This Row],[Prime Total]]="","",VLOOKUP(Tableau2[[#This Row],[Classe]],baseproduit,2,FALSE)) ->  | M114: =IF(Tableau2[[#This Row],[Prime Total]]="","",VLOOKUP(Tableau2[[#This Row],[produit]],baseprofdetail,2)) ->  | N114: =IF(Tableau2[[#This Row],[Prime Total]]="","",VLOOKUP(Tableau2[[#This Row],[produit]],baseprofdetail,3)) -> 
D115: =Tableau2[[#This Row],[Police]]&Tableau2[[#This Row],[Date Reglement]] ->  | I115: =DATEDIF(Tableau2[[#This Row],[Date Souscription]],Tableau2[[#This Row],[Date Reglement]],"m")/12 -> 0 | J115: =IF(Tableau2[[#This Row],[Prime Total]]="","",VALUE(MID(Tableau2[[#This Row],[Police]],10,2))) ->  | K115: =IF(Tableau2[[#This Row],[Prime Total]]="","",VALUE(MID(Tableau2[[#This Row],[Police]],10,4))) ->  | L115: =IF(Tableau2[[#This Row],[Prime Total]]="","",VLOOKUP(Tableau2[[#This Row],[Classe]],baseproduit,2,FALSE)) ->  | M115: =IF(Tableau2[[#This Row],[Prime Total]]="","",VLOOKUP(Tableau2[[#This Row],[produit]],baseprofdetail,2)) ->  | N115: =IF(Tableau2[[#This Row],[Prime Total]]="","",VLOOKUP(Tableau2[[#This Row],[produit]],baseprofdetail,3)) -> 
D116: =Tableau2[[#This Row],[Police]]&Tableau2[[#This Row],[Date Reglement]] ->  | I116: =DATEDIF(Tableau2[[#This Row],[Date Souscription]],Tableau2[[#This Row],[Date Reglement]],"m")/12 -> 0 | J116: =IF(Tableau2[[#This Row],[Prime Total]]="","",VALUE(MID(Tableau2[[#This Row],[Police]],10,2))) ->  | K116: =IF(Tableau2[[#This Row],[Prime Total]]="","",VALUE(MID(Tableau2[[#This Row],[Police]],10,4))) ->  | L116: =IF(Tableau2[[#This Row],[Prime Total]]="","",VLOOKUP(Tableau2[[#This Row],[Classe]],baseproduit,2,FALSE)) ->  | M116: =IF(Tableau2[[#This Row],[Prime Total]]="","",VLOOKUP(Tableau2[[#This Row],[produit]],baseprofdetail,2)) ->  | N116: =IF(Tableau2[[#This Row],[Prime Total]]="","",VLOOKUP(Tableau2[[#This Row],[produit]],baseprofdetail,3)) -> 
D117: =Tableau2[[#This Row],[Police]]&Tableau2[[#This Row],[Date Reglement]] ->  | I117: =DATEDIF(Tableau2[[#This Row],[Date Souscription]],Tableau2[[#This Row],[Date Reglement]],"m")/12 -> 0 | J117: =IF(Tableau2[[#This Row],[Prime Total]]="","",VALUE(MID(Tableau2[[#This Row],[Police]],10,2))) ->  | K117: =IF(Tableau2[[#This Row],[Prime Total]]="","",VALUE(MID(Tableau2[[#This Row],[Police]],10,4))) ->  | L117: =IF(Tableau2[[#This Row],[Prime Total]]="","",VLOOKUP(Tableau2[[#This Row],[Classe]],baseproduit,2,FALSE)) ->  | M117: =IF(Tableau2[[#This Row],[Prime Total]]="","",VLOOKUP(Tableau2[[#This Row],[produit]],baseprofdetail,2)) ->  | N117: =IF(Tableau2[[#This Row],[Prime Total]]="","",VLOOKUP(Tableau2[[#This Row],[produit]],baseprofdetail,3)) -> 
D118: =Tableau2[[#This Row],[Police]]&Tableau2[[#This Row],[Date Reglement]] ->  | I118: =DATEDIF(Tableau2[[#This Row],[Date Souscription]],Tableau2[[#This Row],[Date Reglement]],"m")/12 -> 0 | J118: =IF(Tableau2[[#This Row],[Prime Total]]="","",VALUE(MID(Tableau2[[#This Row],[Police]],10,2))) ->  | K118: =IF(Tableau2[[#This Row],[Prime Total]]="","",VALUE(MID(Tableau2[[#This Row],[Police]],10,4))) ->  | L118: =IF(Tableau2[[#This Row],[Prime Total]]="","",VLOOKUP(Tableau2[[#This Row],[Classe]],baseproduit,2,FALSE)) ->  | M118: =IF(Tableau2[[#This Row],[Prime Total]]="","",VLOOKUP(Tableau2[[#This Row],[produit]],baseprofdetail,2)) ->  | N118: =IF(Tableau2[[#This Row],[Prime Total]]="","",VLOOKUP(Tableau2[[#This Row],[produit]],baseprofdetail,3)) -> 
D119: =Tableau2[[#This Row],[Police]]&Tableau2[[#This Row],[Date Reglement]] ->  | I119: =DATEDIF(Tableau2[[#This Row],[Date Souscription]],Tableau2[[#This Row],[Date Reglement]],"m")/12 -> 0 | J119: =IF(Tableau2[[#This Row],[Prime Total]]="","",VALUE(MID(Tableau2[[#This Row],[Police]],10,2))) ->  | K119: =IF(Tableau2[[#This Row],[Prime Total]]="","",VALUE(MID(Tableau2[[#This Row],[Police]],10,4))) ->  | L119: =IF(Tableau2[[#This Row],[Prime Total]]="","",VLOOKUP(Tableau2[[#This Row],[Classe]],baseproduit,2,FALSE)) ->  | M119: =IF(Tableau2[[#This Row],[Prime Total]]="","",VLOOKUP(Tableau2[[#This Row],[produit]],baseprofdetail,2)) ->  | N119: =IF(Tableau2[[#This Row],[Prime Total]]="","",VLOOKUP(Tableau2[[#This Row],[produit]],baseprofdetail,3)) -> 
D120: =Tableau2[[#This Row],[Police]]&Tableau2[[#This Row],[Date Reglement]] ->  | I120: =DATEDIF(Tableau2[[#This Row],[Date Souscription]],Tableau2[[#This Row],[Date Reglement]],"m")/12 -> 0 | J120: =IF(Tableau2[[#This Row],[Prime Total]]="","",VALUE(MID(Tableau2[[#This Row],[Police]],10,2))) ->  | K120: =IF(Tableau2[[#This Row],[Prime Total]]="","",VALUE(MID(Tableau2[[#This Row],[Police]],10,4))) ->  | L120: =IF(Tableau2[[#This Row],[Prime Total]]="","",VLOOKUP(Tableau2[[#This Row],[Classe]],baseproduit,2,FALSE)) ->  | M120: =IF(Tableau2[[#This Row],[Prime Total]]="","",VLOOKUP(Tableau2[[#This Row],[produit]],baseprofdetail,2)) ->  | N120: =IF(Tableau2[[#This Row],[Prime Total]]="","",VLOOKUP(Tableau2[[#This Row],[produit]],baseprofdetail,3)) -> 
D121: =Tableau2[[#This Row],[Police]]&Tableau2[[#This Row],[Date Reglement]] ->  | I121: =DATEDIF(Tableau2[[#This Row],[Date Souscription]],Tableau2[[#This Row],[Date Reglement]],"m")/12 -> 0 | J121: =IF(Tableau2[[#This Row],[Prime Total]]="","",VALUE(MID(Tableau2[[#This Row],[Police]],10,2))) ->  | K121: =IF(Tableau2[[#This Row],[Prime Total]]="","",VALUE(MID(Tableau2[[#This Row],[Police]],10,4))) ->  | L121: =IF(Tableau2[[#This Row],[Prime Total]]="","",VLOOKUP(Tableau2[[#This Row],[Classe]],baseproduit,2,FALSE)) ->  | M121: =IF(Tableau2[[#This Row],[Prime Total]]="","",VLOOKUP(Tableau2[[#This Row],[produit]],baseprofdetail,2)) ->  | N121: =IF(Tableau2[[#This Row],[Prime Total]]="","",VLOOKUP(Tableau2[[#This Row],[produit]],baseprofdetail,3)) -> 
D122: =Tableau2[[#This Row],[Police]]&Tableau2[[#This Row],[Date Reglement]] ->  | I122: =DATEDIF(Tableau2[[#This Row],[Date Souscription]],Tableau2[[#This Row],[Date Reglement]],"m")/12 -> 0 | J122: =IF(Tableau2[[#This Row],[Prime Total]]="","",VALUE(MID(Tableau2[[#This Row],[Police]],10,2))) ->  | K122: =IF(Tableau2[[#This Row],[Prime Total]]="","",VALUE(MID(Tableau2[[#This Row],[Police]],10,4))) ->  | L122: =IF(Tableau2[[#This Row],[Prime Total]]="","",VLOOKUP(Tableau2[[#This Row],[Classe]],baseproduit,2,FALSE)) ->  | M122: =IF(Tableau2[[#This Row],[Prime Total]]="","",VLOOKUP(Tableau2[[#This Row],[produit]],baseprofdetail,2)) ->  | N122: =IF(Tableau2[[#This Row],[Prime Total]]="","",VLOOKUP(Tableau2[[#This Row],[produit]],baseprofdetail,3)) -> 
D123: =Tableau2[[#This Row],[Police]]&Tableau2[[#This Row],[Date Reglement]] ->  | I123: =DATEDIF(Tableau2[[#This Row],[Date Souscription]],Tableau2[[#This Row],[Date Reglement]],"m")/12 -> 0 | J123: =IF(Tableau2[[#This Row],[Prime Total]]="","",VALUE(MID(Tableau2[[#This Row],[Police]],10,2))) ->  | K123: =IF(Tableau2[[#This Row],[Prime Total]]="","",VALUE(MID(Tableau2[[#This Row],[Police]],10,4))) ->  | L123: =IF(Tableau2[[#This Row],[Prime Total]]="","",VLOOKUP(Tableau2[[#This Row],[Classe]],baseproduit,2,FALSE)) ->  | M123: =IF(Tableau2[[#This Row],[Prime Total]]="","",VLOOKUP(Tableau2[[#This Row],[produit]],baseprofdetail,2)) ->  | N123: =IF(Tableau2[[#This Row],[Prime Total]]="","",VLOOKUP(Tableau2[[#This Row],[produit]],baseprofdetail,3)) -> 
D124: =Tableau2[[#This Row],[Police]]&Tableau2[[#This Row],[Date Reglement]] ->  | I124: =DATEDIF(Tableau2[[#This Row],[Date Souscription]],Tableau2[[#This Row],[Date Reglement]],"m")/12 -> 0 | J124: =IF(Tableau2[[#This Row],[Prime Total]]="","",VALUE(MID(Tableau2[[#This Row],[Police]],10,2))) ->  | K124: =IF(Tableau2[[#This Row],[Prime Total]]="","",VALUE(MID(Tableau2[[#This Row],[Police]],10,4))) ->  | L124: =IF(Tableau2[[#This Row],[Prime Total]]="","",VLOOKUP(Tableau2[[#This Row],[Classe]],baseproduit,2,FALSE)) ->  | M124: =IF(Tableau2[[#This Row],[Prime Total]]="","",VLOOKUP(Tableau2[[#This Row],[produit]],baseprofdetail,2)) ->  | N124: =IF(Tableau2[[#This Row],[Prime Total]]="","",VLOOKUP(Tableau2[[#This Row],[produit]],baseprofdetail,3)) -> 
D125: =Tableau2[[#This Row],[Police]]&Tableau2[[#This Row],[Date Reglement]] ->  | I125: =DATEDIF(Tableau2[[#This Row],[Date Souscription]],Tableau2[[#This Row],[Date Reglement]],"m")/12 -> 0 | J125: =IF(Tableau2[[#This Row],[Prime Total]]="","",VALUE(MID(Tableau2[[#This Row],[Police]],10,2))) ->  | K125: =IF(Tableau2[[#This Row],[Prime Total]]="","",VALUE(MID(Tableau2[[#This Row],[Police]],10,4))) ->  | L125: =IF(Tableau2[[#This Row],[Prime Total]]="","",VLOOKUP(Tableau2[[#This Row],[Classe]],baseproduit,2,FALSE)) ->  | M125: =IF(Tableau2[[#This Row],[Prime Total]]="","",VLOOKUP(Tableau2[[#This Row],[produit]],baseprofdetail,2)) ->  | N125: =IF(Tableau2[[#This Row],[Prime Total]]="","",VLOOKUP(Tableau2[[#This Row],[produit]],baseprofdetail,3)) -> 
D126: =Tableau2[[#This Row],[Police]]&Tableau2[[#This Row],[Date Reglement]] ->  | I126: =DATEDIF(Tableau2[[#This Row],[Date Souscription]],Tableau2[[#This Row],[Date Reglement]],"m")/12 -> 0 | J126: =IF(Tableau2[[#This Row],[Prime Total]]="","",VALUE(MID(Tableau2[[#This Row],[Police]],10,2))) ->  | K126: =IF(Tableau2[[#This Row],[Prime Total]]="","",VALUE(MID(Tableau2[[#This Row],[Police]],10,4))) ->  | L126: =IF(Tableau2[[#This Row],[Prime Total]]="","",VLOOKUP(Tableau2[[#This Row],[Classe]],baseproduit,2,FALSE)) ->  | M126: =IF(Tableau2[[#This Row],[Prime Total]]="","",VLOOKUP(Tableau2[[#This Row],[produit]],baseprofdetail,2)) ->  | N126: =IF(Tableau2[[#This Row],[Prime Total]]="","",VLOOKUP(Tableau2[[#This Row],[produit]],baseprofdetail,3)) -> 
D127: =Tableau2[[#This Row],[Police]]&Tableau2[[#This Row],[Date Reglement]] ->  | I127: =DATEDIF(Tableau2[[#This Row],[Date Souscription]],Tableau2[[#This Row],[Date Reglement]],"m")/12 -> 0 | J127: =IF(Tableau2[[#This Row],[Prime Total]]="","",VALUE(MID(Tableau2[[#This Row],[Police]],10,2))) ->  | K127: =IF(Tableau2[[#This Row],[Prime Total]]="","",VALUE(MID(Tableau2[[#This Row],[Police]],10,4))) ->  | L127: =IF(Tableau2[[#This Row],[Prime Total]]="","",VLOOKUP(Tableau2[[#This Row],[Classe]],baseproduit,2,FALSE)) ->  | M127: =IF(Tableau2[[#This Row],[Prime Total]]="","",VLOOKUP(Tableau2[[#This Row],[produit]],baseprofdetail,2)) ->  | N127: =IF(Tableau2[[#This Row],[Prime Total]]="","",VLOOKUP(Tableau2[[#This Row],[produit]],baseprofdetail,3)) -> 
D128: =Tableau2[[#This Row],[Police]]&Tableau2[[#This Row],[Date Reglement]] ->  | I128: =DATEDIF(Tableau2[[#This Row],[Date Souscription]],Tableau2[[#This Row],[Date Reglement]],"m")/12 -> 0 | J128: =IF(Tableau2[[#This Row],[Prime Total]]="","",VALUE(MID(Tableau2[[#This Row],[Police]],10,2))) ->  | K128: =IF(Tableau2[[#This Row],[Prime Total]]="","",VALUE(MID(Tableau2[[#This Row],[Police]],10,4))) ->  | L128: =IF(Tableau2[[#This Row],[Prime Total]]="","",VLOOKUP(Tableau2[[#This Row],[Classe]],baseproduit,2,FALSE)) ->  | M128: =IF(Tableau2[[#This Row],[Prime Total]]="","",VLOOKUP(Tableau2[[#This Row],[produit]],baseprofdetail,2)) ->  | N128: =IF(Tableau2[[#This Row],[Prime Total]]="","",VLOOKUP(Tableau2[[#This Row],[produit]],baseprofdetail,3)) -> 
D129: =Tableau2[[#This Row],[Police]]&Tableau2[[#This Row],[Date Reglement]] ->  | I129: =DATEDIF(Tableau2[[#This Row],[Date Souscription]],Tableau2[[#This Row],[Date Reglement]],"m")/12 -> 0 | J129: =IF(Tableau2[[#This Row],[Prime Total]]="","",VALUE(MID(Tableau2[[#This Row],[Police]],10,2))) ->  | K129: =IF(Tableau2[[#This Row],[Prime Total]]="","",VALUE(MID(Tableau2[[#This Row],[Police]],10,4))) ->  | L129: =IF(Tableau2[[#This Row],[Prime Total]]="","",VLOOKUP(Tableau2[[#This Row],[Classe]],baseproduit,2,FALSE)) ->  | M129: =IF(Tableau2[[#This Row],[Prime Total]]="","",VLOOKUP(Tableau2[[#This Row],[produit]],baseprofdetail,2)) ->  | N129: =IF(Tableau2[[#This Row],[Prime Total]]="","",VLOOKUP(Tableau2[[#This Row],[produit]],baseprofdetail,3)) -> 
D130: =Tableau2[[#This Row],[Police]]&Tableau2[[#This Row],[Date Reglement]] ->  | I130: =DATEDIF(Tableau2[[#This Row],[Date Souscription]],Tableau2[[#This Row],[Date Reglement]],"m")/12 -> 0 | J130: =IF(Tableau2[[#This Row],[Prime Total]]="","",VALUE(MID(Tableau2[[#This Row],[Police]],10,2))) ->  | K130: =IF(Tableau2[[#This Row],[Prime Total]]="","",VALUE(MID(Tableau2[[#This Row],[Police]],10,4))) ->  | L130: =IF(Tableau2[[#This Row],[Prime Total]]="","",VLOOKUP(Tableau2[[#This Row],[Classe]],baseproduit,2,FALSE)) ->  | M130: =IF(Tableau2[[#This Row],[Prime Total]]="","",VLOOKUP(Tableau2[[#This Row],[produit]],baseprofdetail,2)) ->  | N130: =IF(Tableau2[[#This Row],[Prime Total]]="","",VLOOKUP(Tableau2[[#This Row],[produit]],baseprofdetail,3)) -> 
D131: =Tableau2[[#This Row],[Police]]&Tableau2[[#This Row],[Date Reglement]] ->  | I131: =DATEDIF(Tableau2[[#This Row],[Date Souscription]],Tableau2[[#This Row],[Date Reglement]],"m")/12 -> 0 | J131: =IF(Tableau2[[#This Row],[Prime Total]]="","",VALUE(MID(Tableau2[[#This Row],[Police]],10,2))) ->  | K131: =IF(Tableau2[[#This Row],[Prime Total]]="","",VALUE(MID(Tableau2[[#This Row],[Police]],10,4))) ->  | L131: =IF(Tableau2[[#This Row],[Prime Total]]="","",VLOOKUP(Tableau2[[#This Row],[Classe]],baseproduit,2,FALSE)) ->  | M131: =IF(Tableau2[[#This Row],[Prime Total]]="","",VLOOKUP(Tableau2[[#This Row],[produit]],baseprofdetail,2)) ->  | N131: =IF(Tableau2[[#This Row],[Prime Total]]="","",VLOOKUP(Tableau2[[#This Row],[produit]],baseprofdetail,3)) -> 
D132: =Tableau2[[#This Row],[Police]]&Tableau2[[#This Row],[Date Reglement]] ->  | I132: =DATEDIF(Tableau2[[#This Row],[Date Souscription]],Tableau2[[#This Row],[Date Reglement]],"m")/12 -> 0 | J132: =IF(Tableau2[[#This Row],[Prime Total]]="","",VALUE(MID(Tableau2[[#This Row],[Police]],10,2))) ->  | K132: =IF(Tableau2[[#This Row],[Prime Total]]="","",VALUE(MID(Tableau2[[#This Row],[Police]],10,4))) ->  | L132: =IF(Tableau2[[#This Row],[Prime Total]]="","",VLOOKUP(Tableau2[[#This Row],[Classe]],baseproduit,2,FALSE)) ->  | M132: =IF(Tableau2[[#This Row],[Prime Total]]="","",VLOOKUP(Tableau2[[#This Row],[produit]],baseprofdetail,2)) ->  | N132: =IF(Tableau2[[#This Row],[Prime Total]]="","",VLOOKUP(Tableau2[[#This Row],[produit]],baseprofdetail,3)) -> 
D133: =Tableau2[[#This Row],[Police]]&Tableau2[[#This Row],[Date Reglement]] ->  | I133: =DATEDIF(Tableau2[[#This Row],[Date Souscription]],Tableau2[[#This Row],[Date Reglement]],"m")/12 -> 0 | J133: =IF(Tableau2[[#This Row],[Prime Total]]="","",VALUE(MID(Tableau2[[#This Row],[Police]],10,2))) ->  | K133: =IF(Tableau2[[#This Row],[Prime Total]]="","",VALUE(MID(Tableau2[[#This Row],[Police]],10,4))) ->  | L133: =IF(Tableau2[[#This Row],[Prime Total]]="","",VLOOKUP(Tableau2[[#This Row],[Classe]],baseproduit,2,FALSE)) ->  | M133: =IF(Tableau2[[#This Row],[Prime Total]]="","",VLOOKUP(Tableau2[[#This Row],[produit]],baseprofdetail,2)) ->  | N133: =IF(Tableau2[[#This Row],[Prime Total]]="","",VLOOKUP(Tableau2[[#This Row],[produit]],baseprofdetail,3)) -> 
D134: =Tableau2[[#This Row],[Police]]&Tableau2[[#This Row],[Date Reglement]] ->  | I134: =DATEDIF(Tableau2[[#This Row],[Date Souscription]],Tableau2[[#This Row],[Date Reglement]],"m")/12 -> 0 | J134: =IF(Tableau2[[#This Row],[Prime Total]]="","",VALUE(MID(Tableau2[[#This Row],[Police]],10,2))) ->  | K134: =IF(Tableau2[[#This Row],[Prime Total]]="","",VALUE(MID(Tableau2[[#This Row],[Police]],10,4))) ->  | L134: =IF(Tableau2[[#This Row],[Prime Total]]="","",VLOOKUP(Tableau2[[#This Row],[Classe]],baseproduit,2,FALSE)) ->  | M134: =IF(Tableau2[[#This Row],[Prime Total]]="","",VLOOKUP(Tableau2[[#This Row],[produit]],baseprofdetail,2)) ->  | N134: =IF(Tableau2[[#This Row],[Prime Total]]="","",VLOOKUP(Tableau2[[#This Row],[produit]],baseprofdetail,3)) -> 
D135: =Tableau2[[#This Row],[Police]]&Tableau2[[#This Row],[Date Reglement]] ->  | I135: =DATEDIF(Tableau2[[#This Row],[Date Souscription]],Tableau2[[#This Row],[Date Reglement]],"m")/12 -> 0 | J135: =IF(Tableau2[[#This Row],[Prime Total]]="","",VALUE(MID(Tableau2[[#This Row],[Police]],10,2))) ->  | K135: =IF(Tableau2[[#This Row],[Prime Total]]="","",VALUE(MID(Tableau2[[#This Row],[Police]],10,4))) ->  | L135: =IF(Tableau2[[#This Row],[Prime Total]]="","",VLOOKUP(Tableau2[[#This Row],[Classe]],baseproduit,2,FALSE)) ->  | M135: =IF(Tableau2[[#This Row],[Prime Total]]="","",VLOOKUP(Tableau2[[#This Row],[produit]],baseprofdetail,2)) ->  | N135: =IF(Tableau2[[#This Row],[Prime Total]]="","",VLOOKUP(Tableau2[[#This Row],[produit]],baseprofdetail,3)) -> 
D136: =Tableau2[[#This Row],[Police]]&Tableau2[[#This Row],[Date Reglement]] ->  | I136: =DATEDIF(Tableau2[[#This Row],[Date Souscription]],Tableau2[[#This Row],[Date Reglement]],"m")/12 -> 0 | J136: =IF(Tableau2[[#This Row],[Prime Total]]="","",VALUE(MID(Tableau2[[#This Row],[Police]],10,2))) ->  | K136: =IF(Tableau2[[#This Row],[Prime Total]]="","",VALUE(MID(Tableau2[[#This Row],[Police]],10,4))) ->  | L136: =IF(Tableau2[[#This Row],[Prime Total]]="","",VLOOKUP(Tableau2[[#This Row],[Classe]],baseproduit,2,FALSE)) ->  | M136: =IF(Tableau2[[#This Row],[Prime Total]]="","",VLOOKUP(Tableau2[[#This Row],[produit]],baseprofdetail,2)) ->  | N136: =IF(Tableau2[[#This Row],[Prime Total]]="","",VLOOKUP(Tableau2[[#This Row],[produit]],baseprofdetail,3)) -> 
D137: =Tableau2[[#This Row],[Police]]&Tableau2[[#This Row],[Date Reglement]] ->  | I137: =DATEDIF(Tableau2[[#This Row],[Date Souscription]],Tableau2[[#This Row],[Date Reglement]],"m")/12 -> 0 | J137: =IF(Tableau2[[#This Row],[Prime Total]]="","",VALUE(MID(Tableau2[[#This Row],[Police]],10,2))) ->  | K137: =IF(Tableau2[[#This Row],[Prime Total]]="","",VALUE(MID(Tableau2[[#This Row],[Police]],10,4))) ->  | L137: =IF(Tableau2[[#This Row],[Prime Total]]="","",VLOOKUP(Tableau2[[#This Row],[Classe]],baseproduit,2,FALSE)) ->  | M137: =IF(Tableau2[[#This Row],[Prime Total]]="","",VLOOKUP(Tableau2[[#This Row],[produit]],baseprofdetail,2)) ->  | N137: =IF(Tableau2[[#This Row],[Prime Total]]="","",VLOOKUP(Tableau2[[#This Row],[produit]],baseprofdetail,3)) -> 
D138: =Tableau2[[#This Row],[Police]]&Tableau2[[#This Row],[Date Reglement]] ->  | I138: =DATEDIF(Tableau2[[#This Row],[Date Souscription]],Tableau2[[#This Row],[Date Reglement]],"m")/12 -> 0 | J138: =IF(Tableau2[[#This Row],[Prime Total]]="","",VALUE(MID(Tableau2[[#This Row],[Police]],10,2))) ->  | K138: =IF(Tableau2[[#This Row],[Prime Total]]="","",VALUE(MID(Tableau2[[#This Row],[Police]],10,4))) ->  | L138: =IF(Tableau2[[#This Row],[Prime Total]]="","",VLOOKUP(Tableau2[[#This Row],[Classe]],baseproduit,2,FALSE)) ->  | M138: =IF(Tableau2[[#This Row],[Prime Total]]="","",VLOOKUP(Tableau2[[#This Row],[produit]],baseprofdetail,2)) ->  | N138: =IF(Tableau2[[#This Row],[Prime Total]]="","",VLOOKUP(Tableau2[[#This Row],[produit]],baseprofdetail,3)) -> 
D139: =Tableau2[[#This Row],[Police]]&Tableau2[[#This Row],[Date Reglement]] ->  | I139: =DATEDIF(Tableau2[[#This Row],[Date Souscription]],Tableau2[[#This Row],[Date Reglement]],"m")/12 -> 0 | J139: =IF(Tableau2[[#This Row],[Prime Total]]="","",VALUE(MID(Tableau2[[#This Row],[Police]],10,2))) ->  | K139: =IF(Tableau2[[#This Row],[Prime Total]]="","",VALUE(MID(Tableau2[[#This Row],[Police]],10,4))) ->  | L139: =IF(Tableau2[[#This Row],[Prime Total]]="","",VLOOKUP(Tableau2[[#This Row],[Classe]],baseproduit,2,FALSE)) ->  | M139: =IF(Tableau2[[#This Row],[Prime Total]]="","",VLOOKUP(Tableau2[[#This Row],[produit]],baseprofdetail,2)) ->  | N139: =IF(Tableau2[[#This Row],[Prime Total]]="","",VLOOKUP(Tableau2[[#This Row],[produit]],baseprofdetail,3)) -> 
D140: =Tableau2[[#This Row],[Police]]&Tableau2[[#This Row],[Date Reglement]] ->  | I140: =DATEDIF(Tableau2[[#This Row],[Date Souscription]],Tableau2[[#This Row],[Date Reglement]],"m")/12 -> 0 | J140: =IF(Tableau2[[#This Row],[Prime Total]]="","",VALUE(MID(Tableau2[[#This Row],[Police]],10,2))) ->  | K140: =IF(Tableau2[[#This Row],[Prime Total]]="","",VALUE(MID(Tableau2[[#This Row],[Police]],10,4))) ->  | L140: =IF(Tableau2[[#This Row],[Prime Total]]="","",VLOOKUP(Tableau2[[#This Row],[Classe]],baseproduit,2,FALSE)) ->  | M140: =IF(Tableau2[[#This Row],[Prime Total]]="","",VLOOKUP(Tableau2[[#This Row],[produit]],baseprofdetail,2)) ->  | N140: =IF(Tableau2[[#This Row],[Prime Total]]="","",VLOOKUP(Tableau2[[#This Row],[produit]],baseprofdetail,3)) -> 
D141: =Tableau2[[#This Row],[Police]]&Tableau2[[#This Row],[Date Reglement]] ->  | I141: =DATEDIF(Tableau2[[#This Row],[Date Souscription]],Tableau2[[#This Row],[Date Reglement]],"m")/12 -> 0 | J141: =IF(Tableau2[[#This Row],[Prime Total]]="","",VALUE(MID(Tableau2[[#This Row],[Police]],10,2))) ->  | K141: =IF(Tableau2[[#This Row],[Prime Total]]="","",VALUE(MID(Tableau2[[#This Row],[Police]],10,4))) ->  | L141: =IF(Tableau2[[#This Row],[Prime Total]]="","",VLOOKUP(Tableau2[[#This Row],[Classe]],baseproduit,2,FALSE)) ->  | M141: =IF(Tableau2[[#This Row],[Prime Total]]="","",VLOOKUP(Tableau2[[#This Row],[produit]],baseprofdetail,2)) ->  | N141: =IF(Tableau2[[#This Row],[Prime Total]]="","",VLOOKUP(Tableau2[[#This Row],[produit]],baseprofdetail,3)) -> 
D142: =Tableau2[[#This Row],[Police]]&Tableau2[[#This Row],[Date Reglement]] ->  | I142: =DATEDIF(Tableau2[[#This Row],[Date Souscription]],Tableau2[[#This Row],[Date Reglement]],"m")/12 -> 0 | J142: =IF(Tableau2[[#This Row],[Prime Total]]="","",VALUE(MID(Tableau2[[#This Row],[Police]],10,2))) ->  | K142: =IF(Tableau2[[#This Row],[Prime Total]]="","",VALUE(MID(Tableau2[[#This Row],[Police]],10,4))) ->  | L142: =IF(Tableau2[[#This Row],[Prime Total]]="","",VLOOKUP(Tableau2[[#This Row],[Classe]],baseproduit,2,FALSE)) ->  | M142: =IF(Tableau2[[#This Row],[Prime Total]]="","",VLOOKUP(Tableau2[[#This Row],[produit]],baseprofdetail,2)) ->  | N142: =IF(Tableau2[[#This Row],[Prime Total]]="","",VLOOKUP(Tableau2[[#This Row],[produit]],baseprofdetail,3)) -> 
D143: =Tableau2[[#This Row],[Police]]&Tableau2[[#This Row],[Date Reglement]] ->  | I143: =DATEDIF(Tableau2[[#This Row],[Date Souscription]],Tableau2[[#This Row],[Date Reglement]],"m")/12 -> 0 | J143: =IF(Tableau2[[#This Row],[Prime Total]]="","",VALUE(MID(Tableau2[[#This Row],[Police]],10,2))) ->  | K143: =IF(Tableau2[[#This Row],[Prime Total]]="","",VALUE(MID(Tableau2[[#This Row],[Police]],10,4))) ->  | L143: =IF(Tableau2[[#This Row],[Prime Total]]="","",VLOOKUP(Tableau2[[#This Row],[Classe]],baseproduit,2,FALSE)) ->  | M143: =IF(Tableau2[[#This Row],[Prime Total]]="","",VLOOKUP(Tableau2[[#This Row],[produit]],baseprofdetail,2)) ->  | N143: =IF(Tableau2[[#This Row],[Prime Total]]="","",VLOOKUP(Tableau2[[#This Row],[produit]],baseprofdetail,3)) -> 
D144: =Tableau2[[#This Row],[Police]]&Tableau2[[#This Row],[Date Reglement]] ->  | I144: =DATEDIF(Tableau2[[#This Row],[Date Souscription]],Tableau2[[#This Row],[Date Reglement]],"m")/12 -> 0 | J144: =IF(Tableau2[[#This Row],[Prime Total]]="","",VALUE(MID(Tableau2[[#This Row],[Police]],10,2))) ->  | K144: =IF(Tableau2[[#This Row],[Prime Total]]="","",VALUE(MID(Tableau2[[#This Row],[Police]],10,4))) ->  | L144: =IF(Tableau2[[#This Row],[Prime Total]]="","",VLOOKUP(Tableau2[[#This Row],[Classe]],baseproduit,2,FALSE)) ->  | M144: =IF(Tableau2[[#This Row],[Prime Total]]="","",VLOOKUP(Tableau2[[#This Row],[produit]],baseprofdetail,2)) ->  | N144: =IF(Tableau2[[#This Row],[Prime Total]]="","",VLOOKUP(Tableau2[[#This Row],[produit]],baseprofdetail,3)) -> 
D145: =Tableau2[[#This Row],[Police]]&Tableau2[[#This Row],[Date Reglement]] ->  | I145: =DATEDIF(Tableau2[[#This Row],[Date Souscription]],Tableau2[[#This Row],[Date Reglement]],"m")/12 -> 0 | J145: =IF(Tableau2[[#This Row],[Prime Total]]="","",VALUE(MID(Tableau2[[#This Row],[Police]],10,2))) ->  | K145: =IF(Tableau2[[#This Row],[Prime Total]]="","",VALUE(MID(Tableau2[[#This Row],[Police]],10,4))) ->  | L145: =IF(Tableau2[[#This Row],[Prime Total]]="","",VLOOKUP(Tableau2[[#This Row],[Classe]],baseproduit,2,FALSE)) ->  | M145: =IF(Tableau2[[#This Row],[Prime Total]]="","",VLOOKUP(Tableau2[[#This Row],[produit]],baseprofdetail,2)) ->  | N145: =IF(Tableau2[[#This Row],[Prime Total]]="","",VLOOKUP(Tableau2[[#This Row],[produit]],baseprofdetail,3)) -> 
D146: =Tableau2[[#This Row],[Police]]&Tableau2[[#This Row],[Date Reglement]] ->  | I146: =DATEDIF(Tableau2[[#This Row],[Date Souscription]],Tableau2[[#This Row],[Date Reglement]],"m")/12 -> 0 | J146: =IF(Tableau2[[#This Row],[Prime Total]]="","",VALUE(MID(Tableau2[[#This Row],[Police]],10,2))) ->  | K146: =IF(Tableau2[[#This Row],[Prime Total]]="","",VALUE(MID(Tableau2[[#This Row],[Police]],10,4))) ->  | L146: =IF(Tableau2[[#This Row],[Prime Total]]="","",VLOOKUP(Tableau2[[#This Row],[Classe]],baseproduit,2,FALSE)) ->  | M146: =IF(Tableau2[[#This Row],[Prime Total]]="","",VLOOKUP(Tableau2[[#This Row],[produit]],baseprofdetail,2)) ->  | N146: =IF(Tableau2[[#This Row],[Prime Total]]="","",VLOOKUP(Tableau2[[#This Row],[produit]],baseprofdetail,3)) -> 
D147: =Tableau2[[#This Row],[Police]]&Tableau2[[#This Row],[Date Reglement]] ->  | I147: =DATEDIF(Tableau2[[#This Row],[Date Souscription]],Tableau2[[#This Row],[Date Reglement]],"m")/12 -> 0 | J147: =IF(Tableau2[[#This Row],[Prime Total]]="","",VALUE(MID(Tableau2[[#This Row],[Police]],10,2))) ->  | K147: =IF(Tableau2[[#This Row],[Prime Total]]="","",VALUE(MID(Tableau2[[#This Row],[Police]],10,4))) ->  | L147: =IF(Tableau2[[#This Row],[Prime Total]]="","",VLOOKUP(Tableau2[[#This Row],[Classe]],baseproduit,2,FALSE)) ->  | M147: =IF(Tableau2[[#This Row],[Prime Total]]="","",VLOOKUP(Tableau2[[#This Row],[produit]],baseprofdetail,2)) ->  | N147: =IF(Tableau2[[#This Row],[Prime Total]]="","",VLOOKUP(Tableau2[[#This Row],[produit]],baseprofdetail,3)) -> 
D148: =Tableau2[[#This Row],[Police]]&Tableau2[[#This Row],[Date Reglement]] ->  | I148: =DATEDIF(Tableau2[[#This Row],[Date Souscription]],Tableau2[[#This Row],[Date Reglement]],"m")/12 -> 0 | J148: =IF(Tableau2[[#This Row],[Prime Total]]="","",VALUE(MID(Tableau2[[#This Row],[Police]],10,2))) ->  | K148: =IF(Tableau2[[#This Row],[Prime Total]]="","",VALUE(MID(Tableau2[[#This Row],[Police]],10,4))) ->  | L148: =IF(Tableau2[[#This Row],[Prime Total]]="","",VLOOKUP(Tableau2[[#This Row],[Classe]],baseproduit,2,FALSE)) ->  | M148: =IF(Tableau2[[#This Row],[Prime Total]]="","",VLOOKUP(Tableau2[[#This Row],[produit]],baseprofdetail,2)) ->  | N148: =IF(Tableau2[[#This Row],[Prime Total]]="","",VLOOKUP(Tableau2[[#This Row],[produit]],baseprofdetail,3)) -> 
D149: =Tableau2[[#This Row],[Police]]&Tableau2[[#This Row],[Date Reglement]] ->  | I149: =DATEDIF(Tableau2[[#This Row],[Date Souscription]],Tableau2[[#This Row],[Date Reglement]],"m")/12 -> 0 | J149: =IF(Tableau2[[#This Row],[Prime Total]]="","",VALUE(MID(Tableau2[[#This Row],[Police]],10,2))) ->  | K149: =IF(Tableau2[[#This Row],[Prime Total]]="","",VALUE(MID(Tableau2[[#This Row],[Police]],10,4))) ->  | L149: =IF(Tableau2[[#This Row],[Prime Total]]="","",VLOOKUP(Tableau2[[#This Row],[Classe]],baseproduit,2,FALSE)) ->  | M149: =IF(Tableau2[[#This Row],[Prime Total]]="","",VLOOKUP(Tableau2[[#This Row],[produit]],baseprofdetail,2)) ->  | N149: =IF(Tableau2[[#This Row],[Prime Total]]="","",VLOOKUP(Tableau2[[#This Row],[produit]],baseprofdetail,3)) -> 
D150: =Tableau2[[#This Row],[Police]]&Tableau2[[#This Row],[Date Reglement]] ->  | I150: =DATEDIF(Tableau2[[#This Row],[Date Souscription]],Tableau2[[#This Row],[Date Reglement]],"m")/12 -> 0 | J150: =IF(Tableau2[[#This Row],[Prime Total]]="","",VALUE(MID(Tableau2[[#This Row],[Police]],10,2))) ->  | K150: =IF(Tableau2[[#This Row],[Prime Total]]="","",VALUE(MID(Tableau2[[#This Row],[Police]],10,4))) ->  | L150: =IF(Tableau2[[#This Row],[Prime Total]]="","",VLOOKUP(Tableau2[[#This Row],[Classe]],baseproduit,2,FALSE)) ->  | M150: =IF(Tableau2[[#This Row],[Prime Total]]="","",VLOOKUP(Tableau2[[#This Row],[produit]],baseprofdetail,2)) ->  | N150: =IF(Tableau2[[#This Row],[Prime Total]]="","",VLOOKUP(Tableau2[[#This Row],[produit]],baseprofdetail,3)) -> 
D151: =Tableau2[[#This Row],[Police]]&Tableau2[[#This Row],[Date Reglement]] ->  | I151: =DATEDIF(Tableau2[[#This Row],[Date Souscription]],Tableau2[[#This Row],[Date Reglement]],"m")/12 -> 0 | J151: =IF(Tableau2[[#This Row],[Prime Total]]="","",VALUE(MID(Tableau2[[#This Row],[Police]],10,2))) ->  | K151: =IF(Tableau2[[#This Row],[Prime Total]]="","",VALUE(MID(Tableau2[[#This Row],[Police]],10,4))) ->  | L151: =IF(Tableau2[[#This Row],[Prime Total]]="","",VLOOKUP(Tableau2[[#This Row],[Classe]],baseproduit,2,FALSE)) ->  | M151: =IF(Tableau2[[#This Row],[Prime Total]]="","",VLOOKUP(Tableau2[[#This Row],[produit]],baseprofdetail,2)) ->  | N151: =IF(Tableau2[[#This Row],[Prime Total]]="","",VLOOKUP(Tableau2[[#This Row],[produit]],baseprofdetail,3)) -> 
D152: =Tableau2[[#This Row],[Police]]&Tableau2[[#This Row],[Date Reglement]] ->  | I152: =DATEDIF(Tableau2[[#This Row],[Date Souscription]],Tableau2[[#This Row],[Date Reglement]],"m")/12 -> 0 | J152: =IF(Tableau2[[#This Row],[Prime Total]]="","",VALUE(MID(Tableau2[[#This Row],[Police]],10,2))) ->  | K152: =IF(Tableau2[[#This Row],[Prime Total]]="","",VALUE(MID(Tableau2[[#This Row],[Police]],10,4))) ->  | L152: =IF(Tableau2[[#This Row],[Prime Total]]="","",VLOOKUP(Tableau2[[#This Row],[Classe]],baseproduit,2,FALSE)) ->  | M152: =IF(Tableau2[[#This Row],[Prime Total]]="","",VLOOKUP(Tableau2[[#This Row],[produit]],baseprofdetail,2)) ->  | N152: =IF(Tableau2[[#This Row],[Prime Total]]="","",VLOOKUP(Tableau2[[#This Row],[produit]],baseprofdetail,3)) -> 
D153: =Tableau2[[#This Row],[Police]]&Tableau2[[#This Row],[Date Reglement]] ->  | I153: =DATEDIF(Tableau2[[#This Row],[Date Souscription]],Tableau2[[#This Row],[Date Reglement]],"m")/12 -> 0 | J153: =IF(Tableau2[[#This Row],[Prime Total]]="","",VALUE(MID(Tableau2[[#This Row],[Police]],10,2))) ->  | K153: =IF(Tableau2[[#This Row],[Prime Total]]="","",VALUE(MID(Tableau2[[#This Row],[Police]],10,4))) ->  | L153: =IF(Tableau2[[#This Row],[Prime Total]]="","",VLOOKUP(Tableau2[[#This Row],[Classe]],baseproduit,2,FALSE)) ->  | M153: =IF(Tableau2[[#This Row],[Prime Total]]="","",VLOOKUP(Tableau2[[#This Row],[produit]],baseprofdetail,2)) ->  | N153: =IF(Tableau2[[#This Row],[Prime Total]]="","",VLOOKUP(Tableau2[[#This Row],[produit]],baseprofdetail,3)) -> 
D154: =Tableau2[[#This Row],[Police]]&Tableau2[[#This Row],[Date Reglement]] ->  | I154: =DATEDIF(Tableau2[[#This Row],[Date Souscription]],Tableau2[[#This Row],[Date Reglement]],"m")/12 -> 0 | J154: =IF(Tableau2[[#This Row],[Prime Total]]="","",VALUE(MID(Tableau2[[#This Row],[Police]],10,2))) ->  | K154: =IF(Tableau2[[#This Row],[Prime Total]]="","",VALUE(MID(Tableau2[[#This Row],[Police]],10,4))) ->  | L154: =IF(Tableau2[[#This Row],[Prime Total]]="","",VLOOKUP(Tableau2[[#This Row],[Classe]],baseproduit,2,FALSE)) ->  | M154: =IF(Tableau2[[#This Row],[Prime Total]]="","",VLOOKUP(Tableau2[[#This Row],[produit]],baseprofdetail,2)) ->  | N154: =IF(Tableau2[[#This Row],[Prime Total]]="","",VLOOKUP(Tableau2[[#This Row],[produit]],baseprofdetail,3)) -> 
D155: =Tableau2[[#This Row],[Police]]&Tableau2[[#This Row],[Date Reglement]] ->  | I155: =DATEDIF(Tableau2[[#This Row],[Date Souscription]],Tableau2[[#This Row],[Date Reglement]],"m")/12 -> 0 | J155: =IF(Tableau2[[#This Row],[Prime Total]]="","",VALUE(MID(Tableau2[[#This Row],[Police]],10,2))) ->  | K155: =IF(Tableau2[[#This Row],[Prime Total]]="","",VALUE(MID(Tableau2[[#This Row],[Police]],10,4))) ->  | L155: =IF(Tableau2[[#This Row],[Prime Total]]="","",VLOOKUP(Tableau2[[#This Row],[Classe]],baseproduit,2,FALSE)) ->  | M155: =IF(Tableau2[[#This Row],[Prime Total]]="","",VLOOKUP(Tableau2[[#This Row],[produit]],baseprofdetail,2)) ->  | N155: =IF(Tableau2[[#This Row],[Prime Total]]="","",VLOOKUP(Tableau2[[#This Row],[produit]],baseprofdetail,3)) -> 
D156: =Tableau2[[#This Row],[Police]]&Tableau2[[#This Row],[Date Reglement]] ->  | I156: =DATEDIF(Tableau2[[#This Row],[Date Souscription]],Tableau2[[#This Row],[Date Reglement]],"m")/12 -> 0 | J156: =IF(Tableau2[[#This Row],[Prime Total]]="","",VALUE(MID(Tableau2[[#This Row],[Police]],10,2))) ->  | K156: =IF(Tableau2[[#This Row],[Prime Total]]="","",VALUE(MID(Tableau2[[#This Row],[Police]],10,4))) ->  | L156: =IF(Tableau2[[#This Row],[Prime Total]]="","",VLOOKUP(Tableau2[[#This Row],[Classe]],baseproduit,2,FALSE)) ->  | M156: =IF(Tableau2[[#This Row],[Prime Total]]="","",VLOOKUP(Tableau2[[#This Row],[produit]],baseprofdetail,2)) ->  | N156: =IF(Tableau2[[#This Row],[Prime Total]]="","",VLOOKUP(Tableau2[[#This Row],[produit]],baseprofdetail,3)) -> 
D157: =Tableau2[[#This Row],[Police]]&Tableau2[[#This Row],[Date Reglement]] ->  | I157: =DATEDIF(Tableau2[[#This Row],[Date Souscription]],Tableau2[[#This Row],[Date Reglement]],"m")/12 -> 0 | J157: =IF(Tableau2[[#This Row],[Prime Total]]="","",VALUE(MID(Tableau2[[#This Row],[Police]],10,2))) ->  | K157: =IF(Tableau2[[#This Row],[Prime Total]]="","",VALUE(MID(Tableau2[[#This Row],[Police]],10,4))) ->  | L157: =IF(Tableau2[[#This Row],[Prime Total]]="","",VLOOKUP(Tableau2[[#This Row],[Classe]],baseproduit,2,FALSE)) ->  | M157: =IF(Tableau2[[#This Row],[Prime Total]]="","",VLOOKUP(Tableau2[[#This Row],[produit]],baseprofdetail,2)) ->  | N157: =IF(Tableau2[[#This Row],[Prime Total]]="","",VLOOKUP(Tableau2[[#This Row],[produit]],baseprofdetail,3)) -> 
D158: =Tableau2[[#This Row],[Police]]&Tableau2[[#This Row],[Date Reglement]] ->  | I158: =DATEDIF(Tableau2[[#This Row],[Date Souscription]],Tableau2[[#This Row],[Date Reglement]],"m")/12 -> 0 | J158: =IF(Tableau2[[#This Row],[Prime Total]]="","",VALUE(MID(Tableau2[[#This Row],[Police]],10,2))) ->  | K158: =IF(Tableau2[[#This Row],[Prime Total]]="","",VALUE(MID(Tableau2[[#This Row],[Police]],10,4))) ->  | L158: =IF(Tableau2[[#This Row],[Prime Total]]="","",VLOOKUP(Tableau2[[#This Row],[Classe]],baseproduit,2,FALSE)) ->  | M158: =IF(Tableau2[[#This Row],[Prime Total]]="","",VLOOKUP(Tableau2[[#This Row],[produit]],baseprofdetail,2)) ->  | N158: =IF(Tableau2[[#This Row],[Prime Total]]="","",VLOOKUP(Tableau2[[#This Row],[produit]],baseprofdetail,3)) -> 
D159: =Tableau2[[#This Row],[Police]]&Tableau2[[#This Row],[Date Reglement]] ->  | I159: =DATEDIF(Tableau2[[#This Row],[Date Souscription]],Tableau2[[#This Row],[Date Reglement]],"m")/12 -> 0 | J159: =IF(Tableau2[[#This Row],[Prime Total]]="","",VALUE(MID(Tableau2[[#This Row],[Police]],10,2))) ->  | K159: =IF(Tableau2[[#This Row],[Prime Total]]="","",VALUE(MID(Tableau2[[#This Row],[Police]],10,4))) ->  | L159: =IF(Tableau2[[#This Row],[Prime Total]]="","",VLOOKUP(Tableau2[[#This Row],[Classe]],baseproduit,2,FALSE)) ->  | M159: =IF(Tableau2[[#This Row],[Prime Total]]="","",VLOOKUP(Tableau2[[#This Row],[produit]],baseprofdetail,2)) ->  | N159: =IF(Tableau2[[#This Row],[Prime Total]]="","",VLOOKUP(Tableau2[[#This Row],[produit]],baseprofdetail,3)) -> 
D160: =Tableau2[[#This Row],[Police]]&Tableau2[[#This Row],[Date Reglement]] ->  | I160: =DATEDIF(Tableau2[[#This Row],[Date Souscription]],Tableau2[[#This Row],[Date Reglement]],"m")/12 -> 0 | J160: =IF(Tableau2[[#This Row],[Prime Total]]="","",VALUE(MID(Tableau2[[#This Row],[Police]],10,2))) ->  | K160: =IF(Tableau2[[#This Row],[Prime Total]]="","",VALUE(MID(Tableau2[[#This Row],[Police]],10,4))) ->  | L160: =IF(Tableau2[[#This Row],[Prime Total]]="","",VLOOKUP(Tableau2[[#This Row],[Classe]],baseproduit,2,FALSE)) ->  | M160: =IF(Tableau2[[#This Row],[Prime Total]]="","",VLOOKUP(Tableau2[[#This Row],[produit]],baseprofdetail,2)) ->  | N160: =IF(Tableau2[[#This Row],[Prime Total]]="","",VLOOKUP(Tableau2[[#This Row],[produit]],baseprofdetail,3)) -> 
D161: =Tableau2[[#This Row],[Police]]&Tableau2[[#This Row],[Date Reglement]] ->  | I161: =DATEDIF(Tableau2[[#This Row],[Date Souscription]],Tableau2[[#This Row],[Date Reglement]],"m")/12 -> 0 | J161: =IF(Tableau2[[#This Row],[Prime Total]]="","",VALUE(MID(Tableau2[[#This Row],[Police]],10,2))) ->  | K161: =IF(Tableau2[[#This Row],[Prime Total]]="","",VALUE(MID(Tableau2[[#This Row],[Police]],10,4))) ->  | L161: =IF(Tableau2[[#This Row],[Prime Total]]="","",VLOOKUP(Tableau2[[#This Row],[Classe]],baseproduit,2,FALSE)) ->  | M161: =IF(Tableau2[[#This Row],[Prime Total]]="","",VLOOKUP(Tableau2[[#This Row],[produit]],baseprofdetail,2)) ->  | N161: =IF(Tableau2[[#This Row],[Prime Total]]="","",VLOOKUP(Tableau2[[#This Row],[produit]],baseprofdetail,3)) -> 
D162: =Tableau2[[#This Row],[Police]]&Tableau2[[#This Row],[Date Reglement]] ->  | I162: =DATEDIF(Tableau2[[#This Row],[Date Souscription]],Tableau2[[#This Row],[Date Reglement]],"m")/12 -> 0 | J162: =IF(Tableau2[[#This Row],[Prime Total]]="","",VALUE(MID(Tableau2[[#This Row],[Police]],10,2))) ->  | K162: =IF(Tableau2[[#This Row],[Prime Total]]="","",VALUE(MID(Tableau2[[#This Row],[Police]],10,4))) ->  | L162: =IF(Tableau2[[#This Row],[Prime Total]]="","",VLOOKUP(Tableau2[[#This Row],[Classe]],baseproduit,2,FALSE)) ->  | M162: =IF(Tableau2[[#This Row],[Prime Total]]="","",VLOOKUP(Tableau2[[#This Row],[produit]],baseprofdetail,2)) ->  | N162: =IF(Tableau2[[#This Row],[Prime Total]]="","",VLOOKUP(Tableau2[[#This Row],[produit]],baseprofdetail,3)) -> 
D163: =Tableau2[[#This Row],[Police]]&Tableau2[[#This Row],[Date Reglement]] ->  | I163: =DATEDIF(Tableau2[[#This Row],[Date Souscription]],Tableau2[[#This Row],[Date Reglement]],"m")/12 -> 0 | J163: =IF(Tableau2[[#This Row],[Prime Total]]="","",VALUE(MID(Tableau2[[#This Row],[Police]],10,2))) ->  | K163: =IF(Tableau2[[#This Row],[Prime Total]]="","",VALUE(MID(Tableau2[[#This Row],[Police]],10,4))) ->  | L163: =IF(Tableau2[[#This Row],[Prime Total]]="","",VLOOKUP(Tableau2[[#This Row],[Classe]],baseproduit,2,FALSE)) ->  | M163: =IF(Tableau2[[#This Row],[Prime Total]]="","",VLOOKUP(Tableau2[[#This Row],[produit]],baseprofdetail,2)) ->  | N163: =IF(Tableau2[[#This Row],[Prime Total]]="","",VLOOKUP(Tableau2[[#This Row],[produit]],baseprofdetail,3)) -> 
D164: =Tableau2[[#This Row],[Police]]&Tableau2[[#This Row],[Date Reglement]] ->  | I164: =DATEDIF(Tableau2[[#This Row],[Date Souscription]],Tableau2[[#This Row],[Date Reglement]],"m")/12 -> 0 | J164: =IF(Tableau2[[#This Row],[Prime Total]]="","",VALUE(MID(Tableau2[[#This Row],[Police]],10,2))) ->  | K164: =IF(Tableau2[[#This Row],[Prime Total]]="","",VALUE(MID(Tableau2[[#This Row],[Police]],10,4))) ->  | L164: =IF(Tableau2[[#This Row],[Prime Total]]="","",VLOOKUP(Tableau2[[#This Row],[Classe]],baseproduit,2,FALSE)) ->  | M164: =IF(Tableau2[[#This Row],[Prime Total]]="","",VLOOKUP(Tableau2[[#This Row],[produit]],baseprofdetail,2)) ->  | N164: =IF(Tableau2[[#This Row],[Prime Total]]="","",VLOOKUP(Tableau2[[#This Row],[produit]],baseprofdetail,3)) -> 
D165: =Tableau2[[#This Row],[Police]]&Tableau2[[#This Row],[Date Reglement]] ->  | I165: =DATEDIF(Tableau2[[#This Row],[Date Souscription]],Tableau2[[#This Row],[Date Reglement]],"m")/12 -> 0 | J165: =IF(Tableau2[[#This Row],[Prime Total]]="","",VALUE(MID(Tableau2[[#This Row],[Police]],10,2))) ->  | K165: =IF(Tableau2[[#This Row],[Prime Total]]="","",VALUE(MID(Tableau2[[#This Row],[Police]],10,4))) ->  | L165: =IF(Tableau2[[#This Row],[Prime Total]]="","",VLOOKUP(Tableau2[[#This Row],[Classe]],baseproduit,2,FALSE)) ->  | M165: =IF(Tableau2[[#This Row],[Prime Total]]="","",VLOOKUP(Tableau2[[#This Row],[produit]],baseprofdetail,2)) ->  | N165: =IF(Tableau2[[#This Row],[Prime Total]]="","",VLOOKUP(Tableau2[[#This Row],[produit]],baseprofdetail,3)) -> 
D166: =Tableau2[[#This Row],[Police]]&Tableau2[[#This Row],[Date Reglement]] ->  | I166: =DATEDIF(Tableau2[[#This Row],[Date Souscription]],Tableau2[[#This Row],[Date Reglement]],"m")/12 -> 0 | J166: =IF(Tableau2[[#This Row],[Prime Total]]="","",VALUE(MID(Tableau2[[#This Row],[Police]],10,2))) ->  | K166: =IF(Tableau2[[#This Row],[Prime Total]]="","",VALUE(MID(Tableau2[[#This Row],[Police]],10,4))) ->  | L166: =IF(Tableau2[[#This Row],[Prime Total]]="","",VLOOKUP(Tableau2[[#This Row],[Classe]],baseproduit,2,FALSE)) ->  | M166: =IF(Tableau2[[#This Row],[Prime Total]]="","",VLOOKUP(Tableau2[[#This Row],[produit]],baseprofdetail,2)) ->  | N166: =IF(Tableau2[[#This Row],[Prime Total]]="","",VLOOKUP(Tableau2[[#This Row],[produit]],baseprofdetail,3)) -> 
D167: =Tableau2[[#This Row],[Police]]&Tableau2[[#This Row],[Date Reglement]] ->  | I167: =DATEDIF(Tableau2[[#This Row],[Date Souscription]],Tableau2[[#This Row],[Date Reglement]],"m")/12 -> 0 | J167: =IF(Tableau2[[#This Row],[Prime Total]]="","",VALUE(MID(Tableau2[[#This Row],[Police]],10,2))) ->  | K167: =IF(Tableau2[[#This Row],[Prime Total]]="","",VALUE(MID(Tableau2[[#This Row],[Police]],10,4))) ->  | L167: =IF(Tableau2[[#This Row],[Prime Total]]="","",VLOOKUP(Tableau2[[#This Row],[Classe]],baseproduit,2,FALSE)) ->  | M167: =IF(Tableau2[[#This Row],[Prime Total]]="","",VLOOKUP(Tableau2[[#This Row],[produit]],baseprofdetail,2)) ->  | N167: =IF(Tableau2[[#This Row],[Prime Total]]="","",VLOOKUP(Tableau2[[#This Row],[produit]],baseprofdetail,3)) -> 
D168: =Tableau2[[#This Row],[Police]]&Tableau2[[#This Row],[Date Reglement]] ->  | I168: =DATEDIF(Tableau2[[#This Row],[Date Souscription]],Tableau2[[#This Row],[Date Reglement]],"m")/12 -> 0 | J168: =IF(Tableau2[[#This Row],[Prime Total]]="","",VALUE(MID(Tableau2[[#This Row],[Police]],10,2))) ->  | K168: =IF(Tableau2[[#This Row],[Prime Total]]="","",VALUE(MID(Tableau2[[#This Row],[Police]],10,4))) ->  | L168: =IF(Tableau2[[#This Row],[Prime Total]]="","",VLOOKUP(Tableau2[[#This Row],[Classe]],baseproduit,2,FALSE)) ->  | M168: =IF(Tableau2[[#This Row],[Prime Total]]="","",VLOOKUP(Tableau2[[#This Row],[produit]],baseprofdetail,2)) ->  | N168: =IF(Tableau2[[#This Row],[Prime Total]]="","",VLOOKUP(Tableau2[[#This Row],[produit]],baseprofdetail,3)) -> 
D169: =Tableau2[[#This Row],[Police]]&Tableau2[[#This Row],[Date Reglement]] ->  | I169: =DATEDIF(Tableau2[[#This Row],[Date Souscription]],Tableau2[[#This Row],[Date Reglement]],"m")/12 -> 0 | J169: =IF(Tableau2[[#This Row],[Prime Total]]="","",VALUE(MID(Tableau2[[#This Row],[Police]],10,2))) ->  | K169: =IF(Tableau2[[#This Row],[Prime Total]]="","",VALUE(MID(Tableau2[[#This Row],[Police]],10,4))) ->  | L169: =IF(Tableau2[[#This Row],[Prime Total]]="","",VLOOKUP(Tableau2[[#This Row],[Classe]],baseproduit,2,FALSE)) ->  | M169: =IF(Tableau2[[#This Row],[Prime Total]]="","",VLOOKUP(Tableau2[[#This Row],[produit]],baseprofdetail,2)) ->  | N169: =IF(Tableau2[[#This Row],[Prime Total]]="","",VLOOKUP(Tableau2[[#This Row],[produit]],baseprofdetail,3)) -> 
D170: =Tableau2[[#This Row],[Police]]&Tableau2[[#This Row],[Date Reglement]] ->  | I170: =DATEDIF(Tableau2[[#This Row],[Date Souscription]],Tableau2[[#This Row],[Date Reglement]],"m")/12 -> 0 | J170: =IF(Tableau2[[#This Row],[Prime Total]]="","",VALUE(MID(Tableau2[[#This Row],[Police]],10,2))) ->  | K170: =IF(Tableau2[[#This Row],[Prime Total]]="","",VALUE(MID(Tableau2[[#This Row],[Police]],10,4))) ->  | L170: =IF(Tableau2[[#This Row],[Prime Total]]="","",VLOOKUP(Tableau2[[#This Row],[Classe]],baseproduit,2,FALSE)) ->  | M170: =IF(Tableau2[[#This Row],[Prime Total]]="","",VLOOKUP(Tableau2[[#This Row],[produit]],baseprofdetail,2)) ->  | N170: =IF(Tableau2[[#This Row],[Prime Total]]="","",VLOOKUP(Tableau2[[#This Row],[produit]],baseprofdetail,3)) -> 
D171: =Tableau2[[#This Row],[Police]]&Tableau2[[#This Row],[Date Reglement]] ->  | I171: =DATEDIF(Tableau2[[#This Row],[Date Souscription]],Tableau2[[#This Row],[Date Reglement]],"m")/12 -> 0 | J171: =IF(Tableau2[[#This Row],[Prime Total]]="","",VALUE(MID(Tableau2[[#This Row],[Police]],10,2))) ->  | K171: =IF(Tableau2[[#This Row],[Prime Total]]="","",VALUE(MID(Tableau2[[#This Row],[Police]],10,4))) ->  | L171: =IF(Tableau2[[#This Row],[Prime Total]]="","",VLOOKUP(Tableau2[[#This Row],[Classe]],baseproduit,2,FALSE)) ->  | M171: =IF(Tableau2[[#This Row],[Prime Total]]="","",VLOOKUP(Tableau2[[#This Row],[produit]],baseprofdetail,2)) ->  | N171: =IF(Tableau2[[#This Row],[Prime Total]]="","",VLOOKUP(Tableau2[[#This Row],[produit]],baseprofdetail,3)) -> 
D172: =Tableau2[[#This Row],[Police]]&Tableau2[[#This Row],[Date Reglement]] ->  | I172: =DATEDIF(Tableau2[[#This Row],[Date Souscription]],Tableau2[[#This Row],[Date Reglement]],"m")/12 -> 0 | J172: =IF(Tableau2[[#This Row],[Prime Total]]="","",VALUE(MID(Tableau2[[#This Row],[Police]],10,2))) ->  | K172: =IF(Tableau2[[#This Row],[Prime Total]]="","",VALUE(MID(Tableau2[[#This Row],[Police]],10,4))) ->  | L172: =IF(Tableau2[[#This Row],[Prime Total]]="","",VLOOKUP(Tableau2[[#This Row],[Classe]],baseproduit,2,FALSE)) ->  | M172: =IF(Tableau2[[#This Row],[Prime Total]]="","",VLOOKUP(Tableau2[[#This Row],[produit]],baseprofdetail,2)) ->  | N172: =IF(Tableau2[[#This Row],[Prime Total]]="","",VLOOKUP(Tableau2[[#This Row],[produit]],baseprofdetail,3)) -> 
D173: =Tableau2[[#This Row],[Police]]&Tableau2[[#This Row],[Date Reglement]] ->  | I173: =DATEDIF(Tableau2[[#This Row],[Date Souscription]],Tableau2[[#This Row],[Date Reglement]],"m")/12 -> 0 | J173: =IF(Tableau2[[#This Row],[Prime Total]]="","",VALUE(MID(Tableau2[[#This Row],[Police]],10,2))) ->  | K173: =IF(Tableau2[[#This Row],[Prime Total]]="","",VALUE(MID(Tableau2[[#This Row],[Police]],10,4))) ->  | L173: =IF(Tableau2[[#This Row],[Prime Total]]="","",VLOOKUP(Tableau2[[#This Row],[Classe]],baseproduit,2,FALSE)) ->  | M173: =IF(Tableau2[[#This Row],[Prime Total]]="","",VLOOKUP(Tableau2[[#This Row],[produit]],baseprofdetail,2)) ->  | N173: =IF(Tableau2[[#This Row],[Prime Total]]="","",VLOOKUP(Tableau2[[#This Row],[produit]],baseprofdetail,3)) -> 
D174: =Tableau2[[#This Row],[Police]]&Tableau2[[#This Row],[Date Reglement]] ->  | I174: =DATEDIF(Tableau2[[#This Row],[Date Souscription]],Tableau2[[#This Row],[Date Reglement]],"m")/12 -> 0 | J174: =IF(Tableau2[[#This Row],[Prime Total]]="","",VALUE(MID(Tableau2[[#This Row],[Police]],10,2))) ->  | K174: =IF(Tableau2[[#This Row],[Prime Total]]="","",VALUE(MID(Tableau2[[#This Row],[Police]],10,4))) ->  | L174: =IF(Tableau2[[#This Row],[Prime Total]]="","",VLOOKUP(Tableau2[[#This Row],[Classe]],baseproduit,2,FALSE)) ->  | M174: =IF(Tableau2[[#This Row],[Prime Total]]="","",VLOOKUP(Tableau2[[#This Row],[produit]],baseprofdetail,2)) ->  | N174: =IF(Tableau2[[#This Row],[Prime Total]]="","",VLOOKUP(Tableau2[[#This Row],[produit]],baseprofdetail,3)) -> 
D175: =Tableau2[[#This Row],[Police]]&Tableau2[[#This Row],[Date Reglement]] ->  | I175: =DATEDIF(Tableau2[[#This Row],[Date Souscription]],Tableau2[[#This Row],[Date Reglement]],"m")/12 -> 0 | J175: =IF(Tableau2[[#This Row],[Prime Total]]="","",VALUE(MID(Tableau2[[#This Row],[Police]],10,2))) ->  | K175: =IF(Tableau2[[#This Row],[Prime Total]]="","",VALUE(MID(Tableau2[[#This Row],[Police]],10,4))) ->  | L175: =IF(Tableau2[[#This Row],[Prime Total]]="","",VLOOKUP(Tableau2[[#This Row],[Classe]],baseproduit,2,FALSE)) ->  | M175: =IF(Tableau2[[#This Row],[Prime Total]]="","",VLOOKUP(Tableau2[[#This Row],[produit]],baseprofdetail,2)) ->  | N175: =IF(Tableau2[[#This Row],[Prime Total]]="","",VLOOKUP(Tableau2[[#This Row],[produit]],baseprofdetail,3)) -> 
D176: =Tableau2[[#This Row],[Police]]&Tableau2[[#This Row],[Date Reglement]] ->  | I176: =DATEDIF(Tableau2[[#This Row],[Date Souscription]],Tableau2[[#This Row],[Date Reglement]],"m")/12 -> 0 | J176: =IF(Tableau2[[#This Row],[Prime Total]]="","",VALUE(MID(Tableau2[[#This Row],[Police]],10,2))) ->  | K176: =IF(Tableau2[[#This Row],[Prime Total]]="","",VALUE(MID(Tableau2[[#This Row],[Police]],10,4))) ->  | L176: =IF(Tableau2[[#This Row],[Prime Total]]="","",VLOOKUP(Tableau2[[#This Row],[Classe]],baseproduit,2,FALSE)) ->  | M176: =IF(Tableau2[[#This Row],[Prime Total]]="","",VLOOKUP(Tableau2[[#This Row],[produit]],baseprofdetail,2)) ->  | N176: =IF(Tableau2[[#This Row],[Prime Total]]="","",VLOOKUP(Tableau2[[#This Row],[produit]],baseprofdetail,3)) -> 
D177: =Tableau2[[#This Row],[Police]]&Tableau2[[#This Row],[Date Reglement]] ->  | I177: =DATEDIF(Tableau2[[#This Row],[Date Souscription]],Tableau2[[#This Row],[Date Reglement]],"m")/12 -> 0 | J177: =IF(Tableau2[[#This Row],[Prime Total]]="","",VALUE(MID(Tableau2[[#This Row],[Police]],10,2))) ->  | K177: =IF(Tableau2[[#This Row],[Prime Total]]="","",VALUE(MID(Tableau2[[#This Row],[Police]],10,4))) ->  | L177: =IF(Tableau2[[#This Row],[Prime Total]]="","",VLOOKUP(Tableau2[[#This Row],[Classe]],baseproduit,2,FALSE)) ->  | M177: =IF(Tableau2[[#This Row],[Prime Total]]="","",VLOOKUP(Tableau2[[#This Row],[produit]],baseprofdetail,2)) ->  | N177: =IF(Tableau2[[#This Row],[Prime Total]]="","",VLOOKUP(Tableau2[[#This Row],[produit]],baseprofdetail,3)) -> 
D178: =Tableau2[[#This Row],[Police]]&Tableau2[[#This Row],[Date Reglement]] ->  | I178: =DATEDIF(Tableau2[[#This Row],[Date Souscription]],Tableau2[[#This Row],[Date Reglement]],"m")/12 -> 0 | J178: =IF(Tableau2[[#This Row],[Prime Total]]="","",VALUE(MID(Tableau2[[#This Row],[Police]],10,2))) ->  | K178: =IF(Tableau2[[#This Row],[Prime Total]]="","",VALUE(MID(Tableau2[[#This Row],[Police]],10,4))) ->  | L178: =IF(Tableau2[[#This Row],[Prime Total]]="","",VLOOKUP(Tableau2[[#This Row],[Classe]],baseproduit,2,FALSE)) ->  | M178: =IF(Tableau2[[#This Row],[Prime Total]]="","",VLOOKUP(Tableau2[[#This Row],[produit]],baseprofdetail,2)) ->  | N178: =IF(Tableau2[[#This Row],[Prime Total]]="","",VLOOKUP(Tableau2[[#This Row],[produit]],baseprofdetail,3)) -> 
D179: =Tableau2[[#This Row],[Police]]&Tableau2[[#This Row],[Date Reglement]] ->  | I179: =DATEDIF(Tableau2[[#This Row],[Date Souscription]],Tableau2[[#This Row],[Date Reglement]],"m")/12 -> 0 | J179: =IF(Tableau2[[#This Row],[Prime Total]]="","",VALUE(MID(Tableau2[[#This Row],[Police]],10,2))) ->  | K179: =IF(Tableau2[[#This Row],[Prime Total]]="","",VALUE(MID(Tableau2[[#This Row],[Police]],10,4))) ->  | L179: =IF(Tableau2[[#This Row],[Prime Total]]="","",VLOOKUP(Tableau2[[#This Row],[Classe]],baseproduit,2,FALSE)) ->  | M179: =IF(Tableau2[[#This Row],[Prime Total]]="","",VLOOKUP(Tableau2[[#This Row],[produit]],baseprofdetail,2)) ->  | N179: =IF(Tableau2[[#This Row],[Prime Total]]="","",VLOOKUP(Tableau2[[#This Row],[produit]],baseprofdetail,3)) -> 
D180: =Tableau2[[#This Row],[Police]]&Tableau2[[#This Row],[Date Reglement]] ->  | I180: =DATEDIF(Tableau2[[#This Row],[Date Souscription]],Tableau2[[#This Row],[Date Reglement]],"m")/12 -> 0 | J180: =IF(Tableau2[[#This Row],[Prime Total]]="","",VALUE(MID(Tableau2[[#This Row],[Police]],10,2))) ->  | K180: =IF(Tableau2[[#This Row],[Prime Total]]="","",VALUE(MID(Tableau2[[#This Row],[Police]],10,4))) ->  | L180: =IF(Tableau2[[#This Row],[Prime Total]]="","",VLOOKUP(Tableau2[[#This Row],[Classe]],baseproduit,2,FALSE)) ->  | M180: =IF(Tableau2[[#This Row],[Prime Total]]="","",VLOOKUP(Tableau2[[#This Row],[produit]],baseprofdetail,2)) ->  | N180: =IF(Tableau2[[#This Row],[Prime Total]]="","",VLOOKUP(Tableau2[[#This Row],[produit]],baseprofdetail,3)) -> 
D181: =Tableau2[[#This Row],[Police]]&Tableau2[[#This Row],[Date Reglement]] ->  | I181: =DATEDIF(Tableau2[[#This Row],[Date Souscription]],Tableau2[[#This Row],[Date Reglement]],"m")/12 -> 0 | J181: =IF(Tableau2[[#This Row],[Prime Total]]="","",VALUE(MID(Tableau2[[#This Row],[Police]],10,2))) ->  | K181: =IF(Tableau2[[#This Row],[Prime Total]]="","",VALUE(MID(Tableau2[[#This Row],[Police]],10,4))) ->  | L181: =IF(Tableau2[[#This Row],[Prime Total]]="","",VLOOKUP(Tableau2[[#This Row],[Classe]],baseproduit,2,FALSE)) ->  | M181: =IF(Tableau2[[#This Row],[Prime Total]]="","",VLOOKUP(Tableau2[[#This Row],[produit]],baseprofdetail,2)) ->  | N181: =IF(Tableau2[[#This Row],[Prime Total]]="","",VLOOKUP(Tableau2[[#This Row],[produit]],baseprofdetail,3)) -> 
D182: =Tableau2[[#This Row],[Police]]&Tableau2[[#This Row],[Date Reglement]] ->  | I182: =DATEDIF(Tableau2[[#This Row],[Date Souscription]],Tableau2[[#This Row],[Date Reglement]],"m")/12 -> 0 | J182: =IF(Tableau2[[#This Row],[Prime Total]]="","",VALUE(MID(Tableau2[[#This Row],[Police]],10,2))) ->  | K182: =IF(Tableau2[[#This Row],[Prime Total]]="","",VALUE(MID(Tableau2[[#This Row],[Police]],10,4))) ->  | L182: =IF(Tableau2[[#This Row],[Prime Total]]="","",VLOOKUP(Tableau2[[#This Row],[Classe]],baseproduit,2,FALSE)) ->  | M182: =IF(Tableau2[[#This Row],[Prime Total]]="","",VLOOKUP(Tableau2[[#This Row],[produit]],baseprofdetail,2)) ->  | N182: =IF(Tableau2[[#This Row],[Prime Total]]="","",VLOOKUP(Tableau2[[#This Row],[produit]],baseprofdetail,3)) -> 
D183: =Tableau2[[#This Row],[Police]]&Tableau2[[#This Row],[Date Reglement]] ->  | I183: =DATEDIF(Tableau2[[#This Row],[Date Souscription]],Tableau2[[#This Row],[Date Reglement]],"m")/12 -> 0 | J183: =IF(Tableau2[[#This Row],[Prime Total]]="","",VALUE(MID(Tableau2[[#This Row],[Police]],10,2))) ->  | K183: =IF(Tableau2[[#This Row],[Prime Total]]="","",VALUE(MID(Tableau2[[#This Row],[Police]],10,4))) ->  | L183: =IF(Tableau2[[#This Row],[Prime Total]]="","",VLOOKUP(Tableau2[[#This Row],[Classe]],baseproduit,2,FALSE)) ->  | M183: =IF(Tableau2[[#This Row],[Prime Total]]="","",VLOOKUP(Tableau2[[#This Row],[produit]],baseprofdetail,2)) ->  | N183: =IF(Tableau2[[#This Row],[Prime Total]]="","",VLOOKUP(Tableau2[[#This Row],[produit]],baseprofdetail,3)) -> 
D184: =Tableau2[[#This Row],[Police]]&Tableau2[[#This Row],[Date Reglement]] ->  | I184: =DATEDIF(Tableau2[[#This Row],[Date Souscription]],Tableau2[[#This Row],[Date Reglement]],"m")/12 -> 0 | J184: =IF(Tableau2[[#This Row],[Prime Total]]="","",VALUE(MID(Tableau2[[#This Row],[Police]],10,2))) ->  | K184: =IF(Tableau2[[#This Row],[Prime Total]]="","",VALUE(MID(Tableau2[[#This Row],[Police]],10,4))) ->  | L184: =IF(Tableau2[[#This Row],[Prime Total]]="","",VLOOKUP(Tableau2[[#This Row],[Classe]],baseproduit,2,FALSE)) ->  | M184: =IF(Tableau2[[#This Row],[Prime Total]]="","",VLOOKUP(Tableau2[[#This Row],[produit]],baseprofdetail,2)) ->  | N184: =IF(Tableau2[[#This Row],[Prime Total]]="","",VLOOKUP(Tableau2[[#This Row],[produit]],baseprofdetail,3)) -> 
D185: =Tableau2[[#This Row],[Police]]&Tableau2[[#This Row],[Date Reglement]] ->  | I185: =DATEDIF(Tableau2[[#This Row],[Date Souscription]],Tableau2[[#This Row],[Date Reglement]],"m")/12 -> 0 | J185: =IF(Tableau2[[#This Row],[Prime Total]]="","",VALUE(MID(Tableau2[[#This Row],[Police]],10,2))) ->  | K185: =IF(Tableau2[[#This Row],[Prime Total]]="","",VALUE(MID(Tableau2[[#This Row],[Police]],10,4))) ->  | L185: =IF(Tableau2[[#This Row],[Prime Total]]="","",VLOOKUP(Tableau2[[#This Row],[Classe]],baseproduit,2,FALSE)) ->  | M185: =IF(Tableau2[[#This Row],[Prime Total]]="","",VLOOKUP(Tableau2[[#This Row],[produit]],baseprofdetail,2)) ->  | N185: =IF(Tableau2[[#This Row],[Prime Total]]="","",VLOOKUP(Tableau2[[#This Row],[produit]],baseprofdetail,3)) -> 
D186: =Tableau2[[#This Row],[Police]]&Tableau2[[#This Row],[Date Reglement]] ->  | I186: =DATEDIF(Tableau2[[#This Row],[Date Souscription]],Tableau2[[#This Row],[Date Reglement]],"m")/12 -> 0 | J186: =IF(Tableau2[[#This Row],[Prime Total]]="","",VALUE(MID(Tableau2[[#This Row],[Police]],10,2))) ->  | K186: =IF(Tableau2[[#This Row],[Prime Total]]="","",VALUE(MID(Tableau2[[#This Row],[Police]],10,4))) ->  | L186: =IF(Tableau2[[#This Row],[Prime Total]]="","",VLOOKUP(Tableau2[[#This Row],[Classe]],baseproduit,2,FALSE)) ->  | M186: =IF(Tableau2[[#This Row],[Prime Total]]="","",VLOOKUP(Tableau2[[#This Row],[produit]],baseprofdetail,2)) ->  | N186: =IF(Tableau2[[#This Row],[Prime Total]]="","",VLOOKUP(Tableau2[[#This Row],[produit]],baseprofdetail,3)) -> 
D187: =Tableau2[[#This Row],[Police]]&Tableau2[[#This Row],[Date Reglement]] ->  | I187: =DATEDIF(Tableau2[[#This Row],[Date Souscription]],Tableau2[[#This Row],[Date Reglement]],"m")/12 -> 0 | J187: =IF(Tableau2[[#This Row],[Prime Total]]="","",VALUE(MID(Tableau2[[#This Row],[Police]],10,2))) ->  | K187: =IF(Tableau2[[#This Row],[Prime Total]]="","",VALUE(MID(Tableau2[[#This Row],[Police]],10,4))) ->  | L187: =IF(Tableau2[[#This Row],[Prime Total]]="","",VLOOKUP(Tableau2[[#This Row],[Classe]],baseproduit,2,FALSE)) ->  | M187: =IF(Tableau2[[#This Row],[Prime Total]]="","",VLOOKUP(Tableau2[[#This Row],[produit]],baseprofdetail,2)) ->  | N187: =IF(Tableau2[[#This Row],[Prime Total]]="","",VLOOKUP(Tableau2[[#This Row],[produit]],baseprofdetail,3)) -> 
D188: =Tableau2[[#This Row],[Police]]&Tableau2[[#This Row],[Date Reglement]] ->  | I188: =DATEDIF(Tableau2[[#This Row],[Date Souscription]],Tableau2[[#This Row],[Date Reglement]],"m")/12 -> 0 | J188: =IF(Tableau2[[#This Row],[Prime Total]]="","",VALUE(MID(Tableau2[[#This Row],[Police]],10,2))) ->  | K188: =IF(Tableau2[[#This Row],[Prime Total]]="","",VALUE(MID(Tableau2[[#This Row],[Police]],10,4))) ->  | L188: =IF(Tableau2[[#This Row],[Prime Total]]="","",VLOOKUP(Tableau2[[#This Row],[Classe]],baseproduit,2,FALSE)) ->  | M188: =IF(Tableau2[[#This Row],[Prime Total]]="","",VLOOKUP(Tableau2[[#This Row],[produit]],baseprofdetail,2)) ->  | N188: =IF(Tableau2[[#This Row],[Prime Total]]="","",VLOOKUP(Tableau2[[#This Row],[produit]],baseprofdetail,3)) -> 
D189: =Tableau2[[#This Row],[Police]]&Tableau2[[#This Row],[Date Reglement]] ->  | I189: =DATEDIF(Tableau2[[#This Row],[Date Souscription]],Tableau2[[#This Row],[Date Reglement]],"m")/12 -> 0 | J189: =IF(Tableau2[[#This Row],[Prime Total]]="","",VALUE(MID(Tableau2[[#This Row],[Police]],10,2))) ->  | K189: =IF(Tableau2[[#This Row],[Prime Total]]="","",VALUE(MID(Tableau2[[#This Row],[Police]],10,4))) ->  | L189: =IF(Tableau2[[#This Row],[Prime Total]]="","",VLOOKUP(Tableau2[[#This Row],[Classe]],baseproduit,2,FALSE)) ->  | M189: =IF(Tableau2[[#This Row],[Prime Total]]="","",VLOOKUP(Tableau2[[#This Row],[produit]],baseprofdetail,2)) ->  | N189: =IF(Tableau2[[#This Row],[Prime Total]]="","",VLOOKUP(Tableau2[[#This Row],[produit]],baseprofdetail,3)) -> 
D190: =Tableau2[[#This Row],[Police]]&Tableau2[[#This Row],[Date Reglement]] ->  | I190: =DATEDIF(Tableau2[[#This Row],[Date Souscription]],Tableau2[[#This Row],[Date Reglement]],"m")/12 -> 0 | J190: =IF(Tableau2[[#This Row],[Prime Total]]="","",VALUE(MID(Tableau2[[#This Row],[Police]],10,2))) ->  | K190: =IF(Tableau2[[#This Row],[Prime Total]]="","",VALUE(MID(Tableau2[[#This Row],[Police]],10,4))) ->  | L190: =IF(Tableau2[[#This Row],[Prime Total]]="","",VLOOKUP(Tableau2[[#This Row],[Classe]],baseproduit,2,FALSE)) ->  | M190: =IF(Tableau2[[#This Row],[Prime Total]]="","",VLOOKUP(Tableau2[[#This Row],[produit]],baseprofdetail,2)) ->  | N190: =IF(Tableau2[[#This Row],[Prime Total]]="","",VLOOKUP(Tableau2[[#This Row],[produit]],baseprofdetail,3)) -> 
D191: =Tableau2[[#This Row],[Police]]&Tableau2[[#This Row],[Date Reglement]] ->  | I191: =DATEDIF(Tableau2[[#This Row],[Date Souscription]],Tableau2[[#This Row],[Date Reglement]],"m")/12 -> 0 | J191: =IF(Tableau2[[#This Row],[Prime Total]]="","",VALUE(MID(Tableau2[[#This Row],[Police]],10,2))) ->  | K191: =IF(Tableau2[[#This Row],[Prime Total]]="","",VALUE(MID(Tableau2[[#This Row],[Police]],10,4))) ->  | L191: =IF(Tableau2[[#This Row],[Prime Total]]="","",VLOOKUP(Tableau2[[#This Row],[Classe]],baseproduit,2,FALSE)) ->  | M191: =IF(Tableau2[[#This Row],[Prime Total]]="","",VLOOKUP(Tableau2[[#This Row],[produit]],baseprofdetail,2)) ->  | N191: =IF(Tableau2[[#This Row],[Prime Total]]="","",VLOOKUP(Tableau2[[#This Row],[produit]],baseprofdetail,3)) -> 
D192: =Tableau2[[#This Row],[Police]]&Tableau2[[#This Row],[Date Reglement]] ->  | I192: =DATEDIF(Tableau2[[#This Row],[Date Souscription]],Tableau2[[#This Row],[Date Reglement]],"m")/12 -> 0 | J192: =IF(Tableau2[[#This Row],[Prime Total]]="","",VALUE(MID(Tableau2[[#This Row],[Police]],10,2))) ->  | K192: =IF(Tableau2[[#This Row],[Prime Total]]="","",VALUE(MID(Tableau2[[#This Row],[Police]],10,4))) ->  | L192: =IF(Tableau2[[#This Row],[Prime Total]]="","",VLOOKUP(Tableau2[[#This Row],[Classe]],baseproduit,2,FALSE)) ->  | M192: =IF(Tableau2[[#This Row],[Prime Total]]="","",VLOOKUP(Tableau2[[#This Row],[produit]],baseprofdetail,2)) ->  | N192: =IF(Tableau2[[#This Row],[Prime Total]]="","",VLOOKUP(Tableau2[[#This Row],[produit]],baseprofdetail,3)) -> 
D193: =Tableau2[[#This Row],[Police]]&Tableau2[[#This Row],[Date Reglement]] ->  | I193: =DATEDIF(Tableau2[[#This Row],[Date Souscription]],Tableau2[[#This Row],[Date Reglement]],"m")/12 -> 0 | J193: =IF(Tableau2[[#This Row],[Prime Total]]="","",VALUE(MID(Tableau2[[#This Row],[Police]],10,2))) ->  | K193: =IF(Tableau2[[#This Row],[Prime Total]]="","",VALUE(MID(Tableau2[[#This Row],[Police]],10,4))) ->  | L193: =IF(Tableau2[[#This Row],[Prime Total]]="","",VLOOKUP(Tableau2[[#This Row],[Classe]],baseproduit,2,FALSE)) ->  | M193: =IF(Tableau2[[#This Row],[Prime Total]]="","",VLOOKUP(Tableau2[[#This Row],[produit]],baseprofdetail,2)) ->  | N193: =IF(Tableau2[[#This Row],[Prime Total]]="","",VLOOKUP(Tableau2[[#This Row],[produit]],baseprofdetail,3)) -> 
D194: =Tableau2[[#This Row],[Police]]&Tableau2[[#This Row],[Date Reglement]] ->  | I194: =DATEDIF(Tableau2[[#This Row],[Date Souscription]],Tableau2[[#This Row],[Date Reglement]],"m")/12 -> 0 | J194: =IF(Tableau2[[#This Row],[Prime Total]]="","",VALUE(MID(Tableau2[[#This Row],[Police]],10,2))) ->  | K194: =IF(Tableau2[[#This Row],[Prime Total]]="","",VALUE(MID(Tableau2[[#This Row],[Police]],10,4))) ->  | L194: =IF(Tableau2[[#This Row],[Prime Total]]="","",VLOOKUP(Tableau2[[#This Row],[Classe]],baseproduit,2,FALSE)) ->  | M194: =IF(Tableau2[[#This Row],[Prime Total]]="","",VLOOKUP(Tableau2[[#This Row],[produit]],baseprofdetail,2)) ->  | N194: =IF(Tableau2[[#This Row],[Prime Total]]="","",VLOOKUP(Tableau2[[#This Row],[produit]],baseprofdetail,3)) -> 
D195: =Tableau2[[#This Row],[Police]]&Tableau2[[#This Row],[Date Reglement]] ->  | I195: =DATEDIF(Tableau2[[#This Row],[Date Souscription]],Tableau2[[#This Row],[Date Reglement]],"m")/12 -> 0 | J195: =IF(Tableau2[[#This Row],[Prime Total]]="","",VALUE(MID(Tableau2[[#This Row],[Police]],10,2))) ->  | K195: =IF(Tableau2[[#This Row],[Prime Total]]="","",VALUE(MID(Tableau2[[#This Row],[Police]],10,4))) ->  | L195: =IF(Tableau2[[#This Row],[Prime Total]]="","",VLOOKUP(Tableau2[[#This Row],[Classe]],baseproduit,2,FALSE)) ->  | M195: =IF(Tableau2[[#This Row],[Prime Total]]="","",VLOOKUP(Tableau2[[#This Row],[produit]],baseprofdetail,2)) ->  | N195: =IF(Tableau2[[#This Row],[Prime Total]]="","",VLOOKUP(Tableau2[[#This Row],[produit]],baseprofdetail,3)) -> 
D196: =Tableau2[[#This Row],[Police]]&Tableau2[[#This Row],[Date Reglement]] ->  | I196: =DATEDIF(Tableau2[[#This Row],[Date Souscription]],Tableau2[[#This Row],[Date Reglement]],"m")/12 -> 0 | J196: =IF(Tableau2[[#This Row],[Prime Total]]="","",VALUE(MID(Tableau2[[#This Row],[Police]],10,2))) ->  | K196: =IF(Tableau2[[#This Row],[Prime Total]]="","",VALUE(MID(Tableau2[[#This Row],[Police]],10,4))) ->  | L196: =IF(Tableau2[[#This Row],[Prime Total]]="","",VLOOKUP(Tableau2[[#This Row],[Classe]],baseproduit,2,FALSE)) ->  | M196: =IF(Tableau2[[#This Row],[Prime Total]]="","",VLOOKUP(Tableau2[[#This Row],[produit]],baseprofdetail,2)) ->  | N196: =IF(Tableau2[[#This Row],[Prime Total]]="","",VLOOKUP(Tableau2[[#This Row],[produit]],baseprofdetail,3)) -> 
D197: =Tableau2[[#This Row],[Police]]&Tableau2[[#This Row],[Date Reglement]] ->  | I197: =DATEDIF(Tableau2[[#This Row],[Date Souscription]],Tableau2[[#This Row],[Date Reglement]],"m")/12 -> 0 | J197: =IF(Tableau2[[#This Row],[Prime Total]]="","",VALUE(MID(Tableau2[[#This Row],[Police]],10,2))) ->  | K197: =IF(Tableau2[[#This Row],[Prime Total]]="","",VALUE(MID(Tableau2[[#This Row],[Police]],10,4))) ->  | L197: =IF(Tableau2[[#This Row],[Prime Total]]="","",VLOOKUP(Tableau2[[#This Row],[Classe]],baseproduit,2,FALSE)) ->  | M197: =IF(Tableau2[[#This Row],[Prime Total]]="","",VLOOKUP(Tableau2[[#This Row],[produit]],baseprofdetail,2)) ->  | N197: =IF(Tableau2[[#This Row],[Prime Total]]="","",VLOOKUP(Tableau2[[#This Row],[produit]],baseprofdetail,3)) -> 
D198: =Tableau2[[#This Row],[Police]]&Tableau2[[#This Row],[Date Reglement]] ->  | I198: =DATEDIF(Tableau2[[#This Row],[Date Souscription]],Tableau2[[#This Row],[Date Reglement]],"m")/12 -> 0 | J198: =IF(Tableau2[[#This Row],[Prime Total]]="","",VALUE(MID(Tableau2[[#This Row],[Police]],10,2))) ->  | K198: =IF(Tableau2[[#This Row],[Prime Total]]="","",VALUE(MID(Tableau2[[#This Row],[Police]],10,4))) ->  | L198: =IF(Tableau2[[#This Row],[Prime Total]]="","",VLOOKUP(Tableau2[[#This Row],[Classe]],baseproduit,2,FALSE)) ->  | M198: =IF(Tableau2[[#This Row],[Prime Total]]="","",VLOOKUP(Tableau2[[#This Row],[produit]],baseprofdetail,2)) ->  | N198: =IF(Tableau2[[#This Row],[Prime Total]]="","",VLOOKUP(Tableau2[[#This Row],[produit]],baseprofdetail,3)) -> 
D199: =Tableau2[[#This Row],[Police]]&Tableau2[[#This Row],[Date Reglement]] ->  | I199: =DATEDIF(Tableau2[[#This Row],[Date Souscription]],Tableau2[[#This Row],[Date Reglement]],"m")/12 -> 0 | J199: =IF(Tableau2[[#This Row],[Prime Total]]="","",VALUE(MID(Tableau2[[#This Row],[Police]],10,2))) ->  | K199: =IF(Tableau2[[#This Row],[Prime Total]]="","",VALUE(MID(Tableau2[[#This Row],[Police]],10,4))) ->  | L199: =IF(Tableau2[[#This Row],[Prime Total]]="","",VLOOKUP(Tableau2[[#This Row],[Classe]],baseproduit,2,FALSE)) ->  | M199: =IF(Tableau2[[#This Row],[Prime Total]]="","",VLOOKUP(Tableau2[[#This Row],[produit]],baseprofdetail,2)) ->  | N199: =IF(Tableau2[[#This Row],[Prime Total]]="","",VLOOKUP(Tableau2[[#This Row],[produit]],baseprofdetail,3)) -> 
D200: =Tableau2[[#This Row],[Police]]&Tableau2[[#This Row],[Date Reglement]] ->  | I200: =DATEDIF(Tableau2[[#This Row],[Date Souscription]],Tableau2[[#This Row],[Date Reglement]],"m")/12 -> 0 | J200: =IF(Tableau2[[#This Row],[Prime Total]]="","",VALUE(MID(Tableau2[[#This Row],[Police]],10,2))) ->  | K200: =IF(Tableau2[[#This Row],[Prime Total]]="","",VALUE(MID(Tableau2[[#This Row],[Police]],10,4))) ->  | L200: =IF(Tableau2[[#This Row],[Prime Total]]="","",VLOOKUP(Tableau2[[#This Row],[Classe]],baseproduit,2,FALSE)) ->  | M200: =IF(Tableau2[[#This Row],[Prime Total]]="","",VLOOKUP(Tableau2[[#This Row],[produit]],baseprofdetail,2)) ->  | N200: =IF(Tableau2[[#This Row],[Prime Total]]="","",VLOOKUP(Tableau2[[#This Row],[produit]],baseprofdetail,3)) -> 
... 80 more rows

Sheet SET UP PRODUIT
A1: Class Code | B1: Class Name | C1: Branch Code | D1: Sub Class Name | E1: Client Type
A2: 11 | B2: Automobile | C2: 1100 | D2: Automobile Particulier | E2: particulier
A3: 11 | B3: Automobile | C3: 1110 | D3: Automobile MLA | E3: entreprise
A4: 11 | B4: Automobile | C4: 1112 | D4: OTO + LAKI | E4: particulier
A5: 11 | B5: Automobile | C5: 1113 | D5: OTO ECO LAKI | E5: particulier
A6: 11 | B6: Automobile | C6: 1114 | D6: OTO + AMANE | E6: particulier
A7: 11 | B7: Automobile | C7: 1115 | D7: OTO+ 3M | E7: particulier
A8: 11 | B8: Automobile | C8: 1116 | D8: OTO + M | E8: particulier
A9: 11 | B9: Automobile | C9: 1117 | D9: Kounek M'hanni | E9: particulier
A10: 11 | B10: Automobile | C10: 1118 | D10: Al NAWAT Invest. | E10: entreprise
A11: 11 | B11: Automobile | C11: 1119 | D11: OTO+ Plus | E11: particulier
A12: 11 | B12: Automobile | C12: 1123 | D12: OTO+ SALON | E12: particulier
A13: 11 | B13: Automobile | C13: 1124 | D13: LAKI + | E13: particulier
A14: 11 | B14: Automobile | C14: 1125 | D14: OTO + Trucks | E14: particulier
A15: 11 | B15: Automobile | C15: 1126 | D15: OTO-Brasil | E15: particulier
A16: 11 | B16: Automobile | C16: 1127 | D16: LAKI++ | E16: particulier
A17: 11 | B17: Automobile | C17: 1129 | D17: OTO CLASICO | E17: particulier
A18: 11 | B18: Automobile | C18: 1130 | D18: OTO KM | E18: particulier
A19: 11 | B19: Automobile | C19: 1131 | D19: OTO ENSEIGNANT | E19: particulier
A20: 11 | B20: Automobile | C20: 1132 | D20: OTO SANTE | E20: particulier
A21: 11 | B21: Automobile | C21: 1133 | D21: OTO MOADAF | E21: particulier
A22: 11 | B22: Automobile | C22: 1134 | D22: OTO UTILITAIRE | E22: particulier
A23: 11 | B23: Automobile | C23: 1135 | D23: OTO ECOLE | E23: particulier
A24: 11 | B24: Automobile | C24: 1136 | D24: OTO TAXI | E24: particulier
A25: 11 | B25: Automobile | C25: 1137 | D25: OTO TPV | E25: particulier
A26: 11 | B26: Automobile | C26: 1138 | D26: OTO TPM | E26: particulier
A27: 11 | B27: Automobile | C27: 1142 | D27: OTO PROFESSIONNEL | E27: particulier
A28: 11 | B28: Automobile | C28: 1192 | D28: RC Concessionnaire | E28: entreprise
A29: 11 | B29: Automobile | C29: 1195 | D29: OTO LOCATION FLOTTE | E29: entreprise
A30: 11 | B30: Automobile | C30: 1196 | D30: OTO TAXI FLOTTE | E30: entreprise
A31: 11 | B31: Automobile | C31: 1197 | D31: AUTO CIEPTAL | E31: entreprise
A32: 11 | B32: Automobile | C32: 1198 | D32: Automobile Flotte | E32: entreprise
A33: 11 | B33: Automobile | C33: 1199 | D33: Automobile Flotte | E33: entreprise
A34: 12 | B34: Incendie | C34: 1211 | D34: Incendie et risques annexes (RI) | E34: entreprise
A35: 12 | B35: Incendie | C35: 1212 | D35: Multirisques exploitation | E35: entreprise
A36: 12 | B36: Incendie | C36: 1221 | D36: Incendie et risques annexes (RS) | E36: entreprise
A37: 12 | B37: Incendie | C37: 1222 | D37: Multirisque habitation | E37: particulier
A38: 12 | B38: Incendie | C38: 1223 | D38: Multirisque Immeuble | E38: entreprise
A39: 12 | B39: Incendie | C39: 1224 | D39: Multirisque professionnelle | E39: entreprise
A40: 12 | B40: Incendie | C40: 1225 | D40: Multirisque habitation | E40: particulier
A41: 12 | B41: Incendie | C41: 1226 | D41: MRH Forfaitaire | E41: particulier
A42: 12 | B42: Incendie | C42: 1227 | D42: Catastrophe naturelle | E42: particulier
A43: 12 | B43: Incendie | C43: 1242 | D43: Multi Risque Pro Prof | E43: entreprise
A44: 12 | B44: Incendie | C44: 1245 | D44: Multirisque professionnelle | E44: entreprise
A45: 12 | B45: Incendie | C45: 1290 | D45: Catastrophe naturelle | E45: particulier
A46: 13 | B46: Engineering | C46: 1311 | D46: RC Professionnelle des conceteurs, controleurs techniques, maitres d'œuvre et assimiles | E46: entreprise
A47: 13 | B47: Engineering | C47: 1312 | D47: RC Professionnelle réalisateurs d'ouvrages | E47: entreprise
A48: 13 | B48: Engineering | C48: 1313 | D48: RC Chantier | E48: entreprise
A49: 13 | B49: Engineering | C49: 1321 | D49: Tous risques chantier | E49: entreprise
A50: 13 | B50: Engineering | C50: 1322 | D50: Tous risques montage | E50: entreprise
A51: 13 | B51: Engineering | C51: 1331 | D51: RC décennale | E51: entreprise
A52: 14 | B52: Responsabilité Civile | C52: 1411 | D52: Résponsabilité civile générale | E52: entreprise
A53: 14 | B53: Responsabilité Civile | C53: 1412 | D53: Résponsabilité civile etablissement hospitaliers | E53: entreprise
A54: 14 | B54: Responsabilité Civile | C54: 1413 | D54: Résponsabilité civile des communes | E54: entreprise
A55: 14 | B55: Responsabilité Civile | C55: 1414 | D55: Résponsabilité civile des associations sportives | E55: entreprise
A56: 14 | B56: Responsabilité Civile | C56: 1415 | D56: Résponsabilité civile colonies de vacances | E56: entreprise
A57: 14 | B57: Responsabilité Civile | C57: 1416 | D57: Résponsabilité civile education et formation | E57: entreprise
A58: 14 | B58: Responsabilité Civile | C58: 1417 | D58: Résponsabilité civile chasse | E58: entreprise
A59: 14 | B59: Responsabilité Civile | C59: 1418 | D59: Résponsabilité civile pêche | E59: entreprise
A60: 14 | B60: Responsabilité Civile | C60: 1419 | D60: autres Résponsabilité civile générale | E60: entreprise
A61: 14 | B61: Responsabilité Civile | C61: 1421 | D61: Résponsabilité civile produit livres | E61: entreprise
A62: 14 | B62: Responsabilité Civile | C62: 1422 | D62: Responsabilité Civile Comptables Publics | E62: entreprise
A63: 14 | B63: Responsabilité Civile | C63: 1429 | D63: autres Résponsabilité civile professionnelles | E63: entreprise
A64: 14 | B64: Responsabilité Civile | C64: 1431 | D64: RC professionnelle agents immobiliers | E64: entreprise
A65: 14 | B65: Responsabilité Civile | C65: 1442 | D65: Responsabilité Civil Pro | E65: entreprise
A66: 15 | B66: Dommages aux Biens | C66: 1511 | D66: Dégâts des eaux | E66: entreprise
A67: 15 | B67: Dommages aux Biens | C67: 1521 | D67: Bris de glaces | E67: entreprise
A68: 15 | B68: Dommages aux Biens | C68: 1531 | D68: assurances contre le vol | E68: entreprise
A69: 15 | B69: Dommages aux Biens | C69: 1532 | D69: vol sur la personne | E69: entreprise
A70: 15 | B70: Dommages aux Biens | C70: 1533 | D70: Vol en coffre | E70: entreprise
A71: 15 | B71: Dommages aux Biens | C71: 1540 | D71: tous risques machines MLA | E71: entreprise
A72: 15 | B72: Dommages aux Biens | C72: 1541 | D72: Bris de machines | E72: entreprise
A73: 15 | B73: Dommages aux Biens | C73: 1542 | D73: tous risques engins de chantiers | E73: entreprise
A74: 15 | B74: Dommages aux Biens | C74: 1543 | D74: tous risques enchgins de chantier MLA | E74: entreprise
A75: 15 | B75: Dommages aux Biens | C75: 1551 | D75: tous risques informatique et electoniques | E75: entreprise
A76: 15 | B76: Dommages aux Biens | C76: 1552 | D76: tous risques ordinateurs | E76: entreprise
A77: 15 | B77: Dommages aux Biens | C77: 1553 | D77: perte de produits en entrepôts frigorifiques | E77: entreprise
A78: 15 | B78: Dommages aux Biens | C78: 1554 | D78: tous risque foires et expositions | E78: entreprise
A79: 16 | B79: Perte Pécuniaire | C79: 1611 | D79: Perte d'exploitations | E79: entreprise
A80: 16 | B80: Perte Pécuniaire | C80: 1631 | D80: Pertes d'exploitation après evènement naturel | E80: entreprise
A81: 17 | B81: Protection Juridique | C81: 1701 | D81: protection juridique automobile | E81: particulier
A82: 17 | B82: Protection Juridique | C82: 1702 | D82: protection juridique vie privée | E82: particulier
A83: 17 | B83: Protection Juridique | C83: 1703 | D83: protection juridique professionnelle | E83: particulier
A84: 31 | B84: Transport Terrestre | C84: 3111 | D84: RC voiturier | E84: entreprise
A85: 31 | B85: Transport Terrestre | C85: 3121 | D85: FT public au voyage | E85: entreprise
A86: 31 | B86: Transport Terrestre | C86: 3122 | D86: FT privé | E86: entreprise
A87: 31 | B87: Transport Terrestre | C87: 3132 | D87: FT public abonnement | E87: entreprise
A88: 33 | B88: Transport Aérien | C88: 3331 | D88: FA au voyage | E88: entreprise
A89: 33 | B89: Transport Aérien | C89: 3332 | D89: FA abonnement | E89: entreprise
A90: 34 | B90: Transport Maritime | C90: 3413 | D90: Corp de navire de pêche | E90: entreprise
A91: 34 | B91: Transport Maritime | C91: 3414 | D91: Corp de bateau de plaisance | E91: entreprise
A92: 34 | B92: Transport Maritime | C92: 3417 | D92: RC acconier | E92: entreprise
A93: 34 | B93: Transport Maritime | C93: 3431 | D93: Facultés maritimes voyage | E93: entreprise
A94: 34 | B94: Transport Maritime | C94: 3432 | D94: Facultés maritimes abonnement | E94: entreprise
